Workbook

Sheet Read me

Sheet Control panel
B1: Enter power in blue box. Note that 0.01 watts is 1 volt peak in 50 ohm system.
B2: Enter line impedances in the other two blue boxes. Line 1 impedance occurs from 0 to 25, Line 2 starts at 25.
B3: The mismatch occurs at bl=25.
B4: bl greater than 25 provides the forward wave, bl less than 25 provides the backward and composite waves
B5: The bl numbers in the spreadsheet are in reverse (decreasing) order.
B6: Watch the composite wave trace the detected standing wave pattern when it moves!
B7: Input power, Watts: | D7: 1
B8: Line 1 Impedance, W | D8: 50
B9: Line 2 Impedance, W | D9: 100
B10: Output power, Watts | D10: =D7*(1-C11^2) -> 0.8888888889 | F10: Loss, dB | G10: =10*LOG(D10/D7) -> -0.5115252245
B11: Ref. coeff. | C11: =(D9-D8)/(D9+D8) -> 0.3333333333 | D11: This is calculated from the two impedances.
B12: SWR | C12: =(1+ABS(C11))/(1-ABS(C11)) -> 2 | D12: So is this.
B13: SWR | C13: =AF17 -> 2.006843816 | D13: this is calulated numerically (an approximation) | H13: These columns represent the waveform at different times, during an entire 2*pi cycle. | AE13: Here's where we detect the maximum, which is the standing wave
B14: increment | C14: 0.1 | D14: Just ignore this. | H14: 0 | I14: =H14+1 -> 1 | J14: 2 | K14: 3 | L14: 4 | M14: 5 | N14: 6 | O14: 7 | P14: 8 | Q14: 9 | R14: 10 | S14: 11 | T14: 12 | U14: 13 | V14: 14 | W14: 15 | X14: 16 | Y14: 17 | Z14: 18 | AA14: 19 | AB14: 20
B15: wtMAX | C15: 50 | D15: Effectively controls the speed of the animation | AE15: min | AF15: =MIN(AE70:AE320) -> 0.6600144045
B16: wt | C16: =$E$16/1000*$C$15 -> 14.4 | E16: 288 | H16: 0 | I16: =PI()/10*I14 -> 0.3141592654 | J16: 0.6283185307 | K16: 0.9424777961 | L16: 1.256637061 | M16: 1.570796327 | N16: 1.884955592 | O16: 2.199114858 | P16: 2.513274123 | Q16: 2.827433388 | R16: 3.141592654 | S16: 3.455751919 | T16: 3.769911184 | U16: 4.08407045 | V16: 4.398229715 | W16: 4.71238898 | X16: 5.026548246 | Y16: 5.340707511 | Z16: 5.654866776 | AA16: 5.969026042 | AB16: 6.283185307 | AE16: max | AF16: =MAX(AE70:AE320) -> 1.324545826
D17: forward wave | E17: backward wave | F17: composite | H17: composite | I17: composite | J17: composite | K17: composite | L17: composite | M17: composite | N17: composite | O17: composite | P17: composite | Q17: composite | R17: composite | S17: composite | T17: composite | U17: composite | V17: composite | W17: composite | X17: composite | Y17: composite | Z17: composite | AA17: composite | AB17: composite | AE17: ratio | AF17: =AF16/AF15 -> 2.006843816
C18: bl | D18: sin(wt-bl))
C19: 30 | D19: =SQRT(2*$D$7*$D$9)*SIN(-C19+C$16)*SQRT(1-$C$11^2) -> -1.436715364
C20: =C19-C$14 -> 29.9 | D20: =SQRT(2*$D$7*$D$9)*SIN(-C20+C$16)*SQRT(1-$C$11^2) -> -2.752899759
C21: =C20-C$14 -> 29.8 | D21: =SQRT(2*$D$7*$D$9)*SIN(-C21+C$16)*SQRT(1-$C$11^2) -> -4.04157809
C22: 29.7 | D22: =SQRT(2*$D$7*$D$9)*SIN(-C22+C$16)*SQRT(1-$C$11^2) -> -5.289874308
C23: 29.6 | D23: =SQRT(2*$D$7*$D$9)*SIN(-C23+C$16)*SQRT(1-$C$11^2) -> -6.485315851
C24: 29.5 | D24: =SQRT(2*$D$7*$D$9)*SIN(-C24+C$16)*SQRT(1-$C$11^2) -> -7.615958262
C25: 29.4 | D25: =SQRT(2*$D$7*$D$9)*SIN(-C25+C$16)*SQRT(1-$C$11^2) -> -8.670504535
C26: 29.3 | D26: =SQRT(2*$D$7*$D$9)*SIN(-C26+C$16)*SQRT(1-$C$11^2) -> -9.638417993
C27: 29.2 | D27: =SQRT(2*$D$7*$D$9)*SIN(-C27+C$16)*SQRT(1-$C$11^2) -> -10.51002757
C28: 29.1 | D28: =SQRT(2*$D$7*$D$9)*SIN(-C28+C$16)*SQRT(1-$C$11^2) -> -11.27662442
C29: 29 | D29: =SQRT(2*$D$7*$D$9)*SIN(-C29+C$16)*SQRT(1-$C$11^2) -> -11.93054896
C30: 28.9 | D30: =SQRT(2*$D$7*$D$9)*SIN(-C30+C$16)*SQRT(1-$C$11^2) -> -12.46526741
C31: 28.8 | D31: =SQRT(2*$D$7*$D$9)*SIN(-C31+C$16)*SQRT(1-$C$11^2) -> -12.87543702
C32: 28.7 | D32: =SQRT(2*$D$7*$D$9)*SIN(-C32+C$16)*SQRT(1-$C$11^2) -> -13.15695952
C33: 28.6 | D33: =SQRT(2*$D$7*$D$9)*SIN(-C33+C$16)*SQRT(1-$C$11^2) -> -13.30702204
C34: 28.5 | D34: =SQRT(2*$D$7*$D$9)*SIN(-C34+C$16)*SQRT(1-$C$11^2) -> -13.32412518
C35: 28.4 | D35: =SQRT(2*$D$7*$D$9)*SIN(-C35+C$16)*SQRT(1-$C$11^2) -> -13.20809808
C36: 28.3 | D36: =SQRT(2*$D$7*$D$9)*SIN(-C36+C$16)*SQRT(1-$C$11^2) -> -12.96010002
C37: 28.2 | D37: =SQRT(2*$D$7*$D$9)*SIN(-C37+C$16)*SQRT(1-$C$11^2) -> -12.58260893
C38: 28.1 | D38: =SQRT(2*$D$7*$D$9)*SIN(-C38+C$16)*SQRT(1-$C$11^2) -> -12.07939656
C39: 28 | D39: =SQRT(2*$D$7*$D$9)*SIN(-C39+C$16)*SQRT(1-$C$11^2) -> -11.45549086
C40: 27.9 | D40: =SQRT(2*$D$7*$D$9)*SIN(-C40+C$16)*SQRT(1-$C$11^2) -> -10.71712569
C41: 27.8 | D41: =SQRT(2*$D$7*$D$9)*SIN(-C41+C$16)*SQRT(1-$C$11^2) -> -9.871678533
C42: 27.7 | D42: =SQRT(2*$D$7*$D$9)*SIN(-C42+C$16)*SQRT(1-$C$11^2) -> -8.927596829
C43: 27.6 | D43: =SQRT(2*$D$7*$D$9)*SIN(-C43+C$16)*SQRT(1-$C$11^2) -> -7.894313529
C44: 27.5 | D44: =SQRT(2*$D$7*$D$9)*SIN(-C44+C$16)*SQRT(1-$C$11^2) -> -6.782152858
C45: 27.4 | D45: =SQRT(2*$D$7*$D$9)*SIN(-C45+C$16)*SQRT(1-$C$11^2) -> -5.602227158
C46: 27.3 | D46: =SQRT(2*$D$7*$D$9)*SIN(-C46+C$16)*SQRT(1-$C$11^2) -> -4.366325855
C47: 27.2 | D47: =SQRT(2*$D$7*$D$9)*SIN(-C47+C$16)*SQRT(1-$C$11^2) -> -3.086797668
C48: 27.1 | D48: =SQRT(2*$D$7*$D$9)*SIN(-C48+C$16)*SQRT(1-$C$11^2) -> -1.776427219
C49: 27 | D49: =SQRT(2*$D$7*$D$9)*SIN(-C49+C$16)*SQRT(1-$C$11^2) -> -0.4483072963
C50: 26.9 | D50: =SQRT(2*$D$7*$D$9)*SIN(-C50+C$16)*SQRT(1-$C$11^2) -> 0.8842919647
C51: 26.8 | D51: =SQRT(2*$D$7*$D$9)*SIN(-C51+C$16)*SQRT(1-$C$11^2) -> 2.208055673
C52: 26.7 | D52: =SQRT(2*$D$7*$D$9)*SIN(-C52+C$16)*SQRT(1-$C$11^2) -> 3.509757218
C53: 26.6 | D53: =SQRT(2*$D$7*$D$9)*SIN(-C53+C$16)*SQRT(1-$C$11^2) -> 4.77639043
C54: 26.5 | D54: =SQRT(2*$D$7*$D$9)*SIN(-C54+C$16)*SQRT(1-$C$11^2) -> 5.995299527
C55: 26.4 | D55: =SQRT(2*$D$7*$D$9)*SIN(-C55+C$16)*SQRT(1-$C$11^2) -> 7.154305573
C56: 26.3 | D56: =SQRT(2*$D$7*$D$9)*SIN(-C56+C$16)*SQRT(1-$C$11^2) -> 8.241828163
C57: 26.2 | D57: =SQRT(2*$D$7*$D$9)*SIN(-C57+C$16)*SQRT(1-$C$11^2) -> 9.24700113
C58: 26.1 | D58: =SQRT(2*$D$7*$D$9)*SIN(-C58+C$16)*SQRT(1-$C$11^2) -> 10.15978112
C59: 26 | D59: =SQRT(2*$D$7*$D$9)*SIN(-C59+C$16)*SQRT(1-$C$11^2) -> 10.97104793
C60: 25.9 | D60: =SQRT(2*$D$7*$D$9)*SIN(-C60+C$16)*SQRT(1-$C$11^2) -> 11.67269566
C61: 25.8 | D61: =SQRT(2*$D$7*$D$9)*SIN(-C61+C$16)*SQRT(1-$C$11^2) -> 12.25771368
C62: 25.7 | D62: =SQRT(2*$D$7*$D$9)*SIN(-C62+C$16)*SQRT(1-$C$11^2) -> 12.72025667
C63: 25.6 | D63: =SQRT(2*$D$7*$D$9)*SIN(-C63+C$16)*SQRT(1-$C$11^2) -> 13.05570306
C64: 25.5 | D64: =SQRT(2*$D$7*$D$9)*SIN(-C64+C$16)*SQRT(1-$C$11^2) -> 13.26070118
C65: 25.4 | D65: =SQRT(2*$D$7*$D$9)*SIN(-C65+C$16)*SQRT(1-$C$11^2) -> 13.33320275
C66: 25.3 | D66: =SQRT(2*$D$7*$D$9)*SIN(-C66+C$16)*SQRT(1-$C$11^2) -> 13.27248338
C67: 25.2 | D67: =SQRT(2*$D$7*$D$9)*SIN(-C67+C$16)*SQRT(1-$C$11^2) -> 13.07914973
C68: 25.1 | D68: =SQRT(2*$D$7*$D$9)*SIN(-C68+C$16)*SQRT(1-$C$11^2) -> 12.75513355
C69: =C68-C$14 -> 25 | D69: =SQRT(2*$D$7*$D$9)*SIN(-C69+C$16)*SQRT(1-$C$11^2) -> 12.30367229
C70: =C68-C$14 -> 25 | D70: =SQRT(2*$D$7*$D$8)*SIN(-C70+C$16) -> 9.227754216 | E70: =SQRT(2*$D$7*$D$8)*C$11*SIN(-50+C70+C$16) -> 3.075918072 | F70: =D70+E70 -> 12.30367229 | H70: =SIN(-$C70+H$16)+$C$11*SIN(-50+$C70+H$16) -> 0.1764690001 | I70: =SIN(-$C70+I$16)+$C$11*SIN(-50+$C70+I$16) -> 0.5762300108 | J70: =SIN(-$C70+J$16)+$C$11*SIN(-50+$C70+J$16) -> 0.9195856132 | K70: =SIN(-$C70+K$16)+$C$11*SIN(-50+$C70+K$16) -> 1.172925769 | L70: =SIN(-$C70+L$16)+$C$11*SIN(-50+$C70+L$16) -> 1.311451778 | M70: =SIN(-$C70+M$16)+$C$11*SIN(-50+$C70+M$16) -> 1.321603749 | N70: =SIN(-$C70+N$16)+$C$11*SIN(-50+$C70+N$16) -> 1.202387938 | O70: =SIN(-$C70+O$16)+$C$11*SIN(-50+$C70+O$16) -> 0.9654740171 | P70: =SIN(-$C70+P$16)+$C$11*SIN(-50+$C70+P$16) -> 0.634052773 | Q70: =SIN(-$C70+Q$16)+$C$11*SIN(-50+$C70+Q$16) -> 0.2405660258 | R70: =SIN(-$C70+R$16)+$C$11*SIN(-50+$C70+R$16) -> -0.1764690001 | S70: =SIN(-$C70+S$16)+$C$11*SIN(-50+$C70+S$16) -> -0.5762300108 | T70: =SIN(-$C70+T$16)+$C$11*SIN(-50+$C70+T$16) -> -0.9195856132 | U70: =SIN(-$C70+U$16)+$C$11*SIN(-50+$C70+U$16) -> -1.172925769 | V70: =SIN(-$C70+V$16)+$C$11*SIN(-50+$C70+V$16) -> -1.311451778 | W70: =SIN(-$C70+W$16)+$C$11*SIN(-50+$C70+W$16) -> -1.321603749 | X70: =SIN(-$C70+X$16)+$C$11*SIN(-50+$C70+X$16) -> -1.202387938 | Y70: =SIN(-$C70+Y$16)+$C$11*SIN(-50+$C70+Y$16) -> -0.9654740171 | Z70: =SIN(-$C70+Z$16)+$C$11*SIN(-50+$C70+Z$16) -> -0.634052773 | AA70: =SIN(-$C70+AA$16)+$C$11*SIN(-50+$C70+AA$16) -> -0.2405660258 | AB70: =SIN(-$C70+AB$16)+$C$11*SIN(-50+$C70+AB$16) -> 0.1764690001 | AE70: =MAX(H70:AB70) -> 1.321603749
C71: 24.9 | D71: =SQRT(2*$D$7*$D$8)*SIN(-C71+C$16) -> 8.7969576 | E71: =SQRT(2*$D$7*$D$8)*C$11*SIN(-50+C71+C$16) -> 3.188783388 | F71: =D71+E71 -> 11.98574099 | H71: =SIN(-$C71+H$16)+$C$11*SIN(-50+$C71+H$16) -> 0.241557499 | I71: =SIN(-$C71+I$16)+$C$11*SIN(-50+$C71+I$16) -> 0.6333705089 | J71: =SIN(-$C71+J$16)+$C$11*SIN(-50+$C71+J$16) -> 0.9631848004 | K71: =SIN(-$C71+K$16)+$C$11*SIN(-50+$C71+K$16) -> 1.198715853 | L71: =SIN(-$C71+L$16)+$C$11*SIN(-50+$C71+L$16) -> 1.316908245 | M71: =SIN(-$C71+M$16)+$C$11*SIN(-50+$C71+M$16) -> 1.306192484 | N71: =SIN(-$C71+N$16)+$C$11*SIN(-50+$C71+N$16) -> 1.167617501 | O71: =SIN(-$C71+O$16)+$C$11*SIN(-50+$C71+O$16) -> 0.9147479817 | P71: =SIN(-$C71+P$16)+$C$11*SIN(-50+$C71+P$16) -> 0.5723365567 | Q71: =SIN(-$C71+Q$16)+$C$11*SIN(-50+$C71+Q$16) -> 0.1739008419 | R71: =SIN(-$C71+R$16)+$C$11*SIN(-50+$C71+R$16) -> -0.241557499 | S71: =SIN(-$C71+S$16)+$C$11*SIN(-50+$C71+S$16) -> -0.6333705089 | T71: =SIN(-$C71+T$16)+$C$11*SIN(-50+$C71+T$16) -> -0.9631848004 | U71: =SIN(-$C71+U$16)+$C$11*SIN(-50+$C71+U$16) -> -1.198715853 | V71: =SIN(-$C71+V$16)+$C$11*SIN(-50+$C71+V$16) -> -1.316908245 | W71: =SIN(-$C71+W$16)+$C$11*SIN(-50+$C71+W$16) -> -1.306192484 | X71: =SIN(-$C71+X$16)+$C$11*SIN(-50+$C71+X$16) -> -1.167617501 | Y71: =SIN(-$C71+Y$16)+$C$11*SIN(-50+$C71+Y$16) -> -0.9147479817 | Z71: =SIN(-$C71+Z$16)+$C$11*SIN(-50+$C71+Z$16) -> -0.5723365567 | AA71: =SIN(-$C71+AA$16)+$C$11*SIN(-50+$C71+AA$16) -> -0.1739008419 | AB71: =SIN(-$C71+AB$16)+$C$11*SIN(-50+$C71+AB$16) -> 0.241557499 | AE71: =MAX(H71:AB71) -> 1.316908245
C72: 24.8 | D72: =SQRT(2*$D$7*$D$8)*SIN(-C72+C$16) -> 8.278264691 | E72: =SQRT(2*$D$7*$D$8)*C$11*SIN(-50+C72+C$16) -> 3.269787434 | F72: =D72+E72 -> 11.54805212 | H72: =SIN(-$C72+H$16)+$C$11*SIN(-50+$C72+H$16) -> 0.3042324353 | I72: =SIN(-$C72+I$16)+$C$11*SIN(-50+$C72+I$16) -> 0.6841825782 | J72: =SIN(-$C72+J$16)+$C$11*SIN(-50+$C72+J$16) -> 0.9971601634 | K72: =SIN(-$C72+K$16)+$C$11*SIN(-50+$C72+K$16) -> 1.212528764 | L72: =SIN(-$C72+L$16)+$C$11*SIN(-50+$C72+L$16) -> 1.309206601 | M72: =SIN(-$C72+M$16)+$C$11*SIN(-50+$C72+M$16) -> 1.277730175 | N72: =SIN(-$C72+N$16)+$C$11*SIN(-50+$C72+N$16) -> 1.121180616 | O72: =SIN(-$C72+O$16)+$C$11*SIN(-50+$C72+O$16) -> 0.8548820868 | P72: =SIN(-$C72+P$16)+$C$11*SIN(-50+$C72+P$16) -> 0.5049017427 | Q72: =SIN(-$C72+Q$16)+$C$11*SIN(-50+$C72+Q$16) -> 0.1054980982 | R72: =SIN(-$C72+R$16)+$C$11*SIN(-50+$C72+R$16) -> -0.3042324353 | S72: =SIN(-$C72+S$16)+$C$11*SIN(-50+$C72+S$16) -> -0.6841825782 | T72: =SIN(-$C72+T$16)+$C$11*SIN(-50+$C72+T$16) -> -0.9971601634 | U72: =SIN(-$C72+U$16)+$C$11*SIN(-50+$C72+U$16) -> -1.212528764 | V72: =SIN(-$C72+V$16)+$C$11*SIN(-50+$C72+V$16) -> -1.309206601 | W72: =SIN(-$C72+W$16)+$C$11*SIN(-50+$C72+W$16) -> -1.277730175 | X72: =SIN(-$C72+X$16)+$C$11*SIN(-50+$C72+X$16) -> -1.121180616 | Y72: =SIN(-$C72+Y$16)+$C$11*SIN(-50+$C72+Y$16) -> -0.8548820868 | Z72: =SIN(-$C72+Z$16)+$C$11*SIN(-50+$C72+Z$16) -> -0.5049017427 | AA72: =SIN(-$C72+AA$16)+$C$11*SIN(-50+$C72+AA$16) -> -0.1054980982 | AB72: =SIN(-$C72+AB$16)+$C$11*SIN(-50+$C72+AB$16) -> 0.3042324353 | AE72: =MAX(H72:AB72) -> 1.309206601
C73: 24.7 | D73: =SQRT(2*$D$7*$D$8)*SIN(-C73+C$16) -> 7.676858098 | E73: =SQRT(2*$D$7*$D$8)*C$11*SIN(-50+C73+C$16) -> 3.318120844 | F73: 10.99497894 | H73: =SIN(-$C73+H$16)+$C$11*SIN(-50+$C73+H$16) -> 0.3638675816 | I73: =SIN(-$C73+I$16)+$C$11*SIN(-50+$C73+I$16) -> 0.7281585214 | J73: =SIN(-$C73+J$16)+$C$11*SIN(-50+$C73+J$16) -> 1.021172232 | K73: =SIN(-$C73+K$16)+$C$11*SIN(-50+$C73+K$16) -> 1.214226489 | L73: =SIN(-$C73+L$16)+$C$11*SIN(-50+$C73+L$16) -> 1.288423798 | M73: =SIN(-$C73+M$16)+$C$11*SIN(-50+$C73+M$16) -> 1.236501208 | N73: =SIN(-$C73+N$16)+$C$11*SIN(-50+$C73+N$16) -> 1.063541265 | O73: =SIN(-$C73+O$16)+$C$11*SIN(-50+$C73+O$16) -> 0.7864744926 | P73: =SIN(-$C73+P$16)+$C$11*SIN(-50+$C73+P$16) -> 0.4324221173 | Q73: =SIN(-$C73+Q$16)+$C$11*SIN(-50+$C73+Q$16) -> 0.03604125234 | R73: =SIN(-$C73+R$16)+$C$11*SIN(-50+$C73+R$16) -> -0.3638675816 | S73: =SIN(-$C73+S$16)+$C$11*SIN(-50+$C73+S$16) -> -0.7281585214 | T73: =SIN(-$C73+T$16)+$C$11*SIN(-50+$C73+T$16) -> -1.021172232 | U73: =SIN(-$C73+U$16)+$C$11*SIN(-50+$C73+U$16) -> -1.214226489 | V73: =SIN(-$C73+V$16)+$C$11*SIN(-50+$C73+V$16) -> -1.288423798 | W73: =SIN(-$C73+W$16)+$C$11*SIN(-50+$C73+W$16) -> -1.236501208 | X73: =SIN(-$C73+X$16)+$C$11*SIN(-50+$C73+X$16) -> -1.063541265 | Y73: =SIN(-$C73+Y$16)+$C$11*SIN(-50+$C73+Y$16) -> -0.7864744926 | Z73: =SIN(-$C73+Z$16)+$C$11*SIN(-50+$C73+Z$16) -> -0.4324221173 | AA73: =SIN(-$C73+AA$16)+$C$11*SIN(-50+$C73+AA$16) -> -0.03604125234 | AB73: =SIN(-$C73+AB$16)+$C$11*SIN(-50+$C73+AB$16) -> 0.3638675816 | AE73: 1.288423798
C74: 24.6 | D74: =SQRT(2*$D$7*$D$8)*SIN(-C74+C$16) -> 6.998746876 | E74: =SQRT(2*$D$7*$D$8)*C$11*SIN(-50+C74+C$16) -> 3.333300689 | F74: 10.33204756 | H74: =SIN(-$C74+H$16)+$C$11*SIN(-50+$C74+H$16) -> 0.4198670833 | I74: =SIN(-$C74+I$16)+$C$11*SIN(-50+$C74+I$16) -> 0.7648589453 | J74: =SIN(-$C74+J$16)+$C$11*SIN(-50+$C74+J$16) -> 1.034981085 | K74: =SIN(-$C74+K$16)+$C$11*SIN(-50+$C74+K$16) -> 1.203792064 | L74: =SIN(-$C74+L$16)+$C$11*SIN(-50+$C74+L$16) -> 1.254767489 | M74: =SIN(-$C74+M$16)+$C$11*SIN(-50+$C74+M$16) -> 1.18291753 | N74: =SIN(-$C74+N$16)+$C$11*SIN(-50+$C74+N$16) -> 0.9952753612 | O74: =SIN(-$C74+O$16)+$C$11*SIN(-50+$C74+O$16) -> 0.7102087053 | P74: =SIN(-$C74+P$16)+$C$11*SIN(-50+$C74+P$16) -> 0.3556218731 | Q74: =SIN(-$C74+Q$16)+$C$11*SIN(-50+$C74+Q$16) -> -0.03377570576 | R74: =SIN(-$C74+R$16)+$C$11*SIN(-50+$C74+R$16) -> -0.4198670833 | S74: =SIN(-$C74+S$16)+$C$11*SIN(-50+$C74+S$16) -> -0.7648589453 | T74: =SIN(-$C74+T$16)+$C$11*SIN(-50+$C74+T$16) -> -1.034981085 | U74: =SIN(-$C74+U$16)+$C$11*SIN(-50+$C74+U$16) -> -1.203792064 | V74: =SIN(-$C74+V$16)+$C$11*SIN(-50+$C74+V$16) -> -1.254767489 | W74: =SIN(-$C74+W$16)+$C$11*SIN(-50+$C74+W$16) -> -1.18291753 | X74: =SIN(-$C74+X$16)+$C$11*SIN(-50+$C74+X$16) -> -0.9952753612 | Y74: =SIN(-$C74+Y$16)+$C$11*SIN(-50+$C74+Y$16) -> -0.7102087053 | Z74: =SIN(-$C74+Z$16)+$C$11*SIN(-50+$C74+Z$16) -> -0.3556218731 | AA74: =SIN(-$C74+AA$16)+$C$11*SIN(-50+$C74+AA$16) -> 0.03377570576 | AB74: =SIN(-$C74+AB$16)+$C$11*SIN(-50+$C74+AB$16) -> 0.4198670833 | AE74: 1.254767489
C75: 24.5 | D75: =SQRT(2*$D$7*$D$8)*SIN(-C75+C$16) -> 6.250706489 | E75: =SQRT(2*$D$7*$D$8)*C$11*SIN(-50+C75+C$16) -> 3.315175294 | F75: 9.565881783 | H75: =SIN(-$C75+H$16)+$C$11*SIN(-50+$C75+H$16) -> 0.4716714119 | I75: =SIN(-$C75+I$16)+$C$11*SIN(-50+$C75+I$16) -> 0.7939171514 | J75: =SIN(-$C75+J$16)+$C$11*SIN(-50+$C75+J$16) -> 1.038448749 | K75: =SIN(-$C75+K$16)+$C$11*SIN(-50+$C75+K$16) -> 1.181329747 | L75: =SIN(-$C75+L$16)+$C$11*SIN(-50+$C75+L$16) -> 1.208573959 | M75: =SIN(-$C75+M$16)+$C$11*SIN(-50+$C75+M$16) -> 1.117514531 | N75: =SIN(-$C75+N$16)+$C$11*SIN(-50+$C75+N$16) -> 0.917064995 | O75: =SIN(-$C75+O$16)+$C$11*SIN(-50+$C75+O$16) -> 0.6268467474 | P75: =SIN(-$C75+P$16)+$C$11*SIN(-50+$C75+P$16) -> 0.2752683727 | Q75: =SIN(-$C75+Q$16)+$C$11*SIN(-50+$C75+Q$16) -> -0.1032551882 | R75: =SIN(-$C75+R$16)+$C$11*SIN(-50+$C75+R$16) -> -0.4716714119 | S75: =SIN(-$C75+S$16)+$C$11*SIN(-50+$C75+S$16) -> -0.7939171514 | T75: =SIN(-$C75+T$16)+$C$11*SIN(-50+$C75+T$16) -> -1.038448749 | U75: =SIN(-$C75+U$16)+$C$11*SIN(-50+$C75+U$16) -> -1.181329747 | V75: =SIN(-$C75+V$16)+$C$11*SIN(-50+$C75+V$16) -> -1.208573959 | W75: =SIN(-$C75+W$16)+$C$11*SIN(-50+$C75+W$16) -> -1.117514531 | X75: =SIN(-$C75+X$16)+$C$11*SIN(-50+$C75+X$16) -> -0.917064995 | Y75: =SIN(-$C75+Y$16)+$C$11*SIN(-50+$C75+Y$16) -> -0.6268467474 | Z75: =SIN(-$C75+Z$16)+$C$11*SIN(-50+$C75+Z$16) -> -0.2752683727 | AA75: =SIN(-$C75+AA$16)+$C$11*SIN(-50+$C75+AA$16) -> 0.1032551882 | AB75: =SIN(-$C75+AB$16)+$C$11*SIN(-50+$C75+AB$16) -> 0.4716714119 | AE75: 1.208573959
C76: 24.4 | D76: =SQRT(2*$D$7*$D$8)*SIN(-C76+C$16) -> 5.440211109 | E76: =SQRT(2*$D$7*$D$8)*C$11*SIN(-50+C76+C$16) -> 3.263925764 | F76: 8.704136873 | H76: =SIN(-$C76+H$16)+$C$11*SIN(-50+$C76+H$16) -> 0.5187629556 | I76: =SIN(-$C76+I$16)+$C$11*SIN(-50+$C76+I$16) -> 0.8150427998 | J76: =SIN(-$C76+J$16)+$C$11*SIN(-50+$C76+J$16) -> 1.031540576 | K76: =SIN(-$C76+K$16)+$C$11*SIN(-50+$C76+K$16) -> 1.147063974 | L76: =SIN(-$C76+L$16)+$C$11*SIN(-50+$C76+L$16) -> 1.150304757 | M76: =SIN(-$C76+M$16)+$C$11*SIN(-50+$C76+M$16) -> 1.040945697 | N76: =SIN(-$C76+N$16)+$C$11*SIN(-50+$C76+N$16) -> 0.8296916185 | O76: =SIN(-$C76+O$16)+$C$11*SIN(-50+$C76+O$16) -> 0.537221544 | P76: =SIN(-$C76+P$16)+$C$11*SIN(-50+$C76+P$16) -> 0.1921644818 | Q76: =SIN(-$C76+Q$16)+$C$11*SIN(-50+$C76+Q$16) -> -0.1717029789 | R76: =SIN(-$C76+R$16)+$C$11*SIN(-50+$C76+R$16) -> -0.5187629556 | S76: =SIN(-$C76+S$16)+$C$11*SIN(-50+$C76+S$16) -> -0.8150427998 | T76: =SIN(-$C76+T$16)+$C$11*SIN(-50+$C76+T$16) -> -1.031540576 | U76: =SIN(-$C76+U$16)+$C$11*SIN(-50+$C76+U$16) -> -1.147063974 | V76: =SIN(-$C76+V$16)+$C$11*SIN(-50+$C76+V$16) -> -1.150304757 | W76: =SIN(-$C76+W$16)+$C$11*SIN(-50+$C76+W$16) -> -1.040945697 | X76: =SIN(-$C76+X$16)+$C$11*SIN(-50+$C76+X$16) -> -0.8296916185 | Y76: =SIN(-$C76+Y$16)+$C$11*SIN(-50+$C76+Y$16) -> -0.537221544 | Z76: =SIN(-$C76+Z$16)+$C$11*SIN(-50+$C76+Z$16) -> -0.1921644818 | AA76: =SIN(-$C76+AA$16)+$C$11*SIN(-50+$C76+AA$16) -> 0.1717029789 | AB76: =SIN(-$C76+AB$16)+$C$11*SIN(-50+$C76+AB$16) -> 0.5187629556 | AE76: 1.150304757
C77: =C76-C$14 -> 24.3 | D77: =SQRT(2*$D$7*$D$8)*SIN(-C77+C$16) -> 4.575358938 | E77: =SQRT(2*$D$7*$D$8)*C$11*SIN(-50+C77+C$16) -> 3.180064166 | F77: 7.755423104 | H77: =SIN(-$C77+H$16)+$C$11*SIN(-50+$C77+H$16) -> 0.5606711914 | I77: =SIN(-$C77+I$16)+$C$11*SIN(-50+$C77+I$16) -> 0.82802481 | J77: =SIN(-$C77+J$16)+$C$11*SIN(-50+$C77+J$16) -> 1.014325591 | K77: =SIN(-$C77+K$16)+$C$11*SIN(-50+$C77+K$16) -> 1.101337116 | L77: =SIN(-$C77+L$16)+$C$11*SIN(-50+$C77+L$16) -> 1.08054209 | M77: =SIN(-$C77+M$16)+$C$11*SIN(-50+$C77+M$16) -> 0.9539760767 | N77: =SIN(-$C77+N$16)+$C$11*SIN(-50+$C77+N$16) -> 0.7340282377 | O77: =SIN(-$C77+O$16)+$C$11*SIN(-50+$C77+O$16) -> 0.4422286005 | P77: =SIN(-$C77+P$16)+$C$11*SIN(-50+$C77+P$16) -> 0.1071405468 | Q77: =SIN(-$C77+Q$16)+$C$11*SIN(-50+$C77+Q$16) -> -0.2384351702 | R77: =SIN(-$C77+R$16)+$C$11*SIN(-50+$C77+R$16) -> -0.5606711914 | S77: =SIN(-$C77+S$16)+$C$11*SIN(-50+$C77+S$16) -> -0.82802481 | T77: =SIN(-$C77+T$16)+$C$11*SIN(-50+$C77+T$16) -> -1.014325591 | U77: =SIN(-$C77+U$16)+$C$11*SIN(-50+$C77+U$16) -> -1.101337116 | V77: =SIN(-$C77+V$16)+$C$11*SIN(-50+$C77+V$16) -> -1.08054209 | W77: =SIN(-$C77+W$16)+$C$11*SIN(-50+$C77+W$16) -> -0.9539760767 | X77: =SIN(-$C77+X$16)+$C$11*SIN(-50+$C77+X$16) -> -0.7340282377 | Y77: =SIN(-$C77+Y$16)+$C$11*SIN(-50+$C77+Y$16) -> -0.4422286005 | Z77: =SIN(-$C77+Z$16)+$C$11*SIN(-50+$C77+Z$16) -> -0.1071405468 | AA77: =SIN(-$C77+AA$16)+$C$11*SIN(-50+$C77+AA$16) -> 0.2384351702 | AB77: =SIN(-$C77+AB$16)+$C$11*SIN(-50+$C77+AB$16) -> 0.5606711914 | AE77: 1.101337116
C78: 24.2 | D78: =SQRT(2*$D$7*$D$8)*SIN(-C78+C$16) -> 3.664791293 | E78: =SQRT(2*$D$7*$D$8)*C$11*SIN(-50+C78+C$16) -> 3.064428419 | F78: 6.729219711 | H78: =SIN(-$C78+H$16)+$C$11*SIN(-50+$C78+H$16) -> 0.596977386 | I78: =SIN(-$C78+I$16)+$C$11*SIN(-50+$C78+I$16) -> 0.83273347 | J78: =SIN(-$C78+J$16)+$C$11*SIN(-50+$C78+J$16) -> 0.9869757999 | K78: =SIN(-$C78+K$16)+$C$11*SIN(-50+$C78+K$16) -> 1.044606062 | L78: =SIN(-$C78+L$16)+$C$11*SIN(-50+$C78+L$16) -> 0.9999830044 | M78: =SIN(-$C78+M$16)+$C$11*SIN(-50+$C78+M$16) -> 0.8574746431 | N78: =SIN(-$C78+N$16)+$C$11*SIN(-50+$C78+N$16) -> 0.6310306893 | O78: =SIN(-$C78+O$16)+$C$11*SIN(-50+$C78+O$16) -> 0.3428170551 | P78: =SIN(-$C78+P$16)+$C$11*SIN(-50+$C78+P$16) -> 0.0210460989 | Q78: =SIN(-$C78+Q$16)+$C$11*SIN(-50+$C78+Q$16) -> -0.3027849961 | R78: =SIN(-$C78+R$16)+$C$11*SIN(-50+$C78+R$16) -> -0.596977386 | S78: =SIN(-$C78+S$16)+$C$11*SIN(-50+$C78+S$16) -> -0.83273347 | T78: =SIN(-$C78+T$16)+$C$11*SIN(-50+$C78+T$16) -> -0.9869757999 | U78: =SIN(-$C78+U$16)+$C$11*SIN(-50+$C78+U$16) -> -1.044606062 | V78: =SIN(-$C78+V$16)+$C$11*SIN(-50+$C78+V$16) -> -0.9999830044 | W78: =SIN(-$C78+W$16)+$C$11*SIN(-50+$C78+W$16) -> -0.8574746431 | X78: =SIN(-$C78+X$16)+$C$11*SIN(-50+$C78+X$16) -> -0.6310306893 | Y78: =SIN(-$C78+Y$16)+$C$11*SIN(-50+$C78+Y$16) -> -0.3428170551 | Z78: =SIN(-$C78+Z$16)+$C$11*SIN(-50+$C78+Z$16) -> -0.0210460989 | AA78: =SIN(-$C78+AA$16)+$C$11*SIN(-50+$C78+AA$16) -> 0.3027849961 | AB78: =SIN(-$C78+AB$16)+$C$11*SIN(-50+$C78+AB$16) -> 0.596977386 | AE78: 1.044606062
C79: 24.1 | D79: =SQRT(2*$D$7*$D$8)*SIN(-C79+C$16) -> 2.717606264 | E79: =SQRT(2*$D$7*$D$8)*C$11*SIN(-50+C79+C$16) -> 2.918173916 | F79: 5.63578018 | H79: =SIN(-$C79+H$16)+$C$11*SIN(-50+$C79+H$16) -> 0.6273187799 | I79: =SIN(-$C79+I$16)+$C$11*SIN(-50+$C79+I$16) -> 0.8291217324 | J79: =SIN(-$C79+J$16)+$C$11*SIN(-50+$C79+J$16) -> 0.9497644729 | K79: =SIN(-$C79+K$16)+$C$11*SIN(-50+$C79+K$16) -> 0.9774376495 | L79: =SIN(-$C79+L$16)+$C$11*SIN(-50+$C79+L$16) -> 0.9094324187 | M79: =SIN(-$C79+M$16)+$C$11*SIN(-50+$C79+M$16) -> 0.7524056063 | N79: =SIN(-$C79+N$16)+$C$11*SIN(-50+$C79+N$16) -> 0.5217280909 | O79: =SIN(-$C79+O$16)+$C$11*SIN(-50+$C79+O$16) -> 0.2399801949 | P79: =SIN(-$C79+P$16)+$C$11*SIN(-50+$C79+P$16) -> -0.06525863466 | Q79: =SIN(-$C79+Q$16)+$C$11*SIN(-50+$C79+Q$16) -> -0.3641094944 | R79: =SIN(-$C79+R$16)+$C$11*SIN(-50+$C79+R$16) -> -0.6273187799 | S79: =SIN(-$C79+S$16)+$C$11*SIN(-50+$C79+S$16) -> -0.8291217324 | T79: =SIN(-$C79+T$16)+$C$11*SIN(-50+$C79+T$16) -> -0.9497644729 | U79: =SIN(-$C79+U$16)+$C$11*SIN(-50+$C79+U$16) -> -0.9774376495 | V79: =SIN(-$C79+V$16)+$C$11*SIN(-50+$C79+V$16) -> -0.9094324187 | W79: =SIN(-$C79+W$16)+$C$11*SIN(-50+$C79+W$16) -> -0.7524056063 | X79: =SIN(-$C79+X$16)+$C$11*SIN(-50+$C79+X$16) -> -0.5217280909 | Y79: =SIN(-$C79+Y$16)+$C$11*SIN(-50+$C79+Y$16) -> -0.2399801949 | Z79: =SIN(-$C79+Z$16)+$C$11*SIN(-50+$C79+Z$16) -> 0.06525863466 | AA79: =SIN(-$C79+AA$16)+$C$11*SIN(-50+$C79+AA$16) -> 0.3641094944 | AB79: =SIN(-$C79+AB$16)+$C$11*SIN(-50+$C79+AB$16) -> 0.6273187799 | AE79: 0.9774376495
C80: 24 | D80: =SQRT(2*$D$7*$D$8)*SIN(-C80+C$16) -> 1.743267812 | E80: =SQRT(2*$D$7*$D$8)*C$11*SIN(-50+C80+C$16) -> 2.742761983 | F80: 4.486029795 | H80: =SIN(-$C80+H$16)+$C$11*SIN(-50+$C80+H$16) -> 0.6513922118 | I80: =SIN(-$C80+I$16)+$C$11*SIN(-50+$C80+I$16) -> 0.8172256845 | J80: =SIN(-$C80+J$16)+$C$11*SIN(-50+$C80+J$16) -> 0.9030634133 | K80: =SIN(-$C80+K$16)+$C$11*SIN(-50+$C80+K$16) -> 0.9005030031 | L80: =SIN(-$C80+L$16)+$C$11*SIN(-50+$C80+L$16) -> 0.8097950848 | M80: =SIN(-$C80+M$16)+$C$11*SIN(-50+$C80+M$16) -> 0.6398187814 | N80: =SIN(-$C80+N$16)+$C$11*SIN(-50+$C80+N$16) -> 0.4072125579 | O80: =SIN(-$C80+O$16)+$C$11*SIN(-50+$C80+O$16) -> 0.1347455319 | P80: =SIN(-$C80+P$16)+$C$11*SIN(-50+$C80+P$16) -> -0.1509113255 | Q80: =SIN(-$C80+Q$16)+$C$11*SIN(-50+$C80+Q$16) -> -0.421795931 | R80: =SIN(-$C80+R$16)+$C$11*SIN(-50+$C80+R$16) -> -0.6513922118 | S80: =SIN(-$C80+S$16)+$C$11*SIN(-50+$C80+S$16) -> -0.8172256845 | T80: =SIN(-$C80+T$16)+$C$11*SIN(-50+$C80+T$16) -> -0.9030634133 | U80: =SIN(-$C80+U$16)+$C$11*SIN(-50+$C80+U$16) -> -0.9005030031 | V80: =SIN(-$C80+V$16)+$C$11*SIN(-50+$C80+V$16) -> -0.8097950848 | W80: =SIN(-$C80+W$16)+$C$11*SIN(-50+$C80+W$16) -> -0.6398187814 | X80: =SIN(-$C80+X$16)+$C$11*SIN(-50+$C80+X$16) -> -0.4072125579 | Y80: =SIN(-$C80+Y$16)+$C$11*SIN(-50+$C80+Y$16) -> -0.1347455319 | Z80: =SIN(-$C80+Z$16)+$C$11*SIN(-50+$C80+Z$16) -> 0.1509113255 | AA80: =SIN(-$C80+AA$16)+$C$11*SIN(-50+$C80+AA$16) -> 0.421795931 | AB80: =SIN(-$C80+AB$16)+$C$11*SIN(-50+$C80+AB$16) -> 0.6513922118 | AE80: 0.9030634133
C81: 23.9 | D81: =SQRT(2*$D$7*$D$8)*SIN(-C81+C$16) -> 0.7515112046 | E81: =SQRT(2*$D$7*$D$8)*C$11*SIN(-50+C81+C$16) -> 2.53994528 | F81: 3.291456484 | H81: =SIN(-$C81+H$16)+$C$11*SIN(-50+$C81+H$16) -> 0.6689571482 | I81: =SIN(-$C81+I$16)+$C$11*SIN(-50+$C81+I$16) -> 0.7971641878 | J81: =SIN(-$C81+J$16)+$C$11*SIN(-50+$C81+J$16) -> 0.8473392425 | K81: =SIN(-$C81+K$16)+$C$11*SIN(-50+$C81+K$16) -> 0.8145708284 | L81: =SIN(-$C81+L$16)+$C$11*SIN(-50+$C81+L$16) -> 0.7020665462 | M81: =SIN(-$C81+M$16)+$C$11*SIN(-50+$C81+M$16) -> 0.5208390988 | N81: =SIN(-$C81+N$16)+$C$11*SIN(-50+$C81+N$16) -> 0.2886282916 | O81: =SIN(-$C81+O$16)+$C$11*SIN(-50+$C81+O$16) -> 0.02816453616 | P81: =SIN(-$C81+P$16)+$C$11*SIN(-50+$C81+P$16) -> -0.2350561603 | Q81: =SIN(-$C81+Q$16)+$C$11*SIN(-50+$C81+Q$16) -> -0.475267922 | R81: =SIN(-$C81+R$16)+$C$11*SIN(-50+$C81+R$16) -> -0.6689571482 | S81: =SIN(-$C81+S$16)+$C$11*SIN(-50+$C81+S$16) -> -0.7971641878 | T81: =SIN(-$C81+T$16)+$C$11*SIN(-50+$C81+T$16) -> -0.8473392425 | U81: =SIN(-$C81+U$16)+$C$11*SIN(-50+$C81+U$16) -> -0.8145708284 | V81: =SIN(-$C81+V$16)+$C$11*SIN(-50+$C81+V$16) -> -0.7020665462 | W81: =SIN(-$C81+W$16)+$C$11*SIN(-50+$C81+W$16) -> -0.5208390988 | X81: =SIN(-$C81+X$16)+$C$11*SIN(-50+$C81+X$16) -> -0.2886282916 | Y81: =SIN(-$C81+Y$16)+$C$11*SIN(-50+$C81+Y$16) -> -0.02816453616 | Z81: =SIN(-$C81+Z$16)+$C$11*SIN(-50+$C81+Z$16) -> 0.2350561603 | AA81: =SIN(-$C81+AA$16)+$C$11*SIN(-50+$C81+AA$16) -> 0.475267922 | AB81: =SIN(-$C81+AB$16)+$C$11*SIN(-50+$C81+AB$16) -> 0.6689571482 | AE81: 0.8473392425
C82: 23.8 | D82: =SQRT(2*$D$7*$D$8)*SIN(-C82+C$16) -> -0.2477542545 | E82: =SQRT(2*$D$7*$D$8)*C$11*SIN(-50+C82+C$16) -> 2.311750283 | F82: 2.063996028 | H82: =SIN(-$C82+H$16)+$C$11*SIN(-50+$C82+H$16) -> 0.6798380858 | I82: =SIN(-$C82+I$16)+$C$11*SIN(-50+$C82+I$16) -> 0.7691376899 | J82: =SIN(-$C82+J$16)+$C$11*SIN(-50+$C82+J$16) -> 0.7831487381 | K82: =SIN(-$C82+K$16)+$C$11*SIN(-50+$C82+K$16) -> 0.7204997312 | L82: =SIN(-$C82+L$16)+$C$11*SIN(-50+$C82+L$16) -> 0.5873231906 | M82: =SIN(-$C82+M$16)+$C$11*SIN(-50+$C82+M$16) -> 0.3966553641 | N82: =SIN(-$C82+N$16)+$C$11*SIN(-50+$C82+N$16) -> 0.1671601468 | O82: =SIN(-$C82+O$16)+$C$11*SIN(-50+$C82+O$16) -> -0.07869787035 | P82: =SIN(-$C82+P$16)+$C$11*SIN(-50+$C82+P$16) -> -0.3168523916 | Q82: =SIN(-$C82+Q$16)+$C$11*SIN(-50+$C82+Q$16) -> -0.5239911931 | R82: =SIN(-$C82+R$16)+$C$11*SIN(-50+$C82+R$16) -> -0.6798380858 | S82: =SIN(-$C82+S$16)+$C$11*SIN(-50+$C82+S$16) -> -0.7691376899 | T82: =SIN(-$C82+T$16)+$C$11*SIN(-50+$C82+T$16) -> -0.7831487381 | U82: =SIN(-$C82+U$16)+$C$11*SIN(-50+$C82+U$16) -> -0.7204997312 | V82: =SIN(-$C82+V$16)+$C$11*SIN(-50+$C82+V$16) -> -0.5873231906 | W82: =SIN(-$C82+W$16)+$C$11*SIN(-50+$C82+W$16) -> -0.3966553641 | X82: =SIN(-$C82+X$16)+$C$11*SIN(-50+$C82+X$16) -> -0.1671601468 | Y82: =SIN(-$C82+Y$16)+$C$11*SIN(-50+$C82+Y$16) -> 0.07869787035 | Z82: =SIN(-$C82+Z$16)+$C$11*SIN(-50+$C82+Z$16) -> 0.3168523916 | AA82: =SIN(-$C82+AA$16)+$C$11*SIN(-50+$C82+AA$16) -> 0.5239911931 | AB82: =SIN(-$C82+AB$16)+$C$11*SIN(-50+$C82+AB$16) -> 0.6798380858 | AE82: 0.7831487381
C83: 23.7 | D83: =SQRT(2*$D$7*$D$8)*SIN(-C83+C$16) -> -1.244544235 | E83: =SQRT(2*$D$7*$D$8)*C$11*SIN(-50+C83+C$16) -> 2.060457041 | F83: 0.8159128057 | H83: =SIN(-$C83+H$16)+$C$11*SIN(-50+$C83+H$16) -> 0.683926306 | I83: =SIN(-$C83+I$16)+$C$11*SIN(-50+$C83+I$16) -> 0.7334262226 | J83: =SIN(-$C83+J$16)+$C$11*SIN(-50+$C83+J$16) -> 0.7111332704 | K83: =SIN(-$C83+K$16)+$C$11*SIN(-50+$C83+K$16) -> 0.6192296389 | L83: =SIN(-$C83+L$16)+$C$11*SIN(-50+$C83+L$16) -> 0.466711496 | M83: =SIN(-$C83+M$16)+$C$11*SIN(-50+$C83+M$16) -> 0.26850838 | N83: =SIN(-$C83+N$16)+$C$11*SIN(-50+$C83+N$16) -> 0.04402179305 | O83: =SIN(-$C83+O$16)+$C$11*SIN(-50+$C83+O$16) -> -0.1847739538 | P83: =SIN(-$C83+P$16)+$C$11*SIN(-50+$C83+P$16) -> -0.3954827386 | Q83: =SIN(-$C83+Q$16)+$C$11*SIN(-50+$C83+Q$16) -> -0.5674789174 | R83: =SIN(-$C83+R$16)+$C$11*SIN(-50+$C83+R$16) -> -0.683926306 | S83: =SIN(-$C83+S$16)+$C$11*SIN(-50+$C83+S$16) -> -0.7334262226 | T83: =SIN(-$C83+T$16)+$C$11*SIN(-50+$C83+T$16) -> -0.7111332704 | U83: =SIN(-$C83+U$16)+$C$11*SIN(-50+$C83+U$16) -> -0.6192296389 | V83: =SIN(-$C83+V$16)+$C$11*SIN(-50+$C83+V$16) -> -0.466711496 | W83: =SIN(-$C83+W$16)+$C$11*SIN(-50+$C83+W$16) -> -0.26850838 | X83: =SIN(-$C83+X$16)+$C$11*SIN(-50+$C83+X$16) -> -0.04402179305 | Y83: =SIN(-$C83+Y$16)+$C$11*SIN(-50+$C83+Y$16) -> 0.1847739538 | Z83: =SIN(-$C83+Z$16)+$C$11*SIN(-50+$C83+Z$16) -> 0.3954827386 | AA83: =SIN(-$C83+AA$16)+$C$11*SIN(-50+$C83+AA$16) -> 0.5674789174 | AB83: =SIN(-$C83+AB$16)+$C$11*SIN(-50+$C83+AB$16) -> 0.683926306 | AE83: 0.7334262226
C84: 23.6 | D84: =SQRT(2*$D$7*$D$8)*SIN(-C84+C$16) -> -2.228899141 | E84: =SQRT(2*$D$7*$D$8)*C$11*SIN(-50+C84+C$16) -> 1.788576393 | F84: -0.4403227477 | H84: =SIN(-$C84+H$16)+$C$11*SIN(-50+$C84+H$16) -> 0.6811809606 | I84: =SIN(-$C84+I$16)+$C$11*SIN(-50+$C84+I$16) -> 0.6903866028 | J84: =SIN(-$C84+J$16)+$C$11*SIN(-50+$C84+J$16) -> 0.6320123941 | K84: =SIN(-$C84+K$16)+$C$11*SIN(-50+$C84+K$16) -> 0.5117724087 | L84: =SIN(-$C84+L$16)+$C$11*SIN(-50+$C84+L$16) -> 0.3414365743 | M84: =SIN(-$C84+M$16)+$C$11*SIN(-50+$C84+M$16) -> 0.137678549 | N84: =SIN(-$C84+N$16)+$C$11*SIN(-50+$C84+N$16) -> -0.07955641188 | O84: =SIN(-$C84+O$16)+$C$11*SIN(-50+$C84+O$16) -> -0.2890038369 | P84: =SIN(-$C84+P$16)+$C$11*SIN(-50+$C84+P$16) -> -0.4701615527 | Q84: =SIN(-$C84+Q$16)+$C$11*SIN(-50+$C84+Q$16) -> -0.60529658 | R84: =SIN(-$C84+R$16)+$C$11*SIN(-50+$C84+R$16) -> -0.6811809606 | S84: =SIN(-$C84+S$16)+$C$11*SIN(-50+$C84+S$16) -> -0.6903866028 | T84: =SIN(-$C84+T$16)+$C$11*SIN(-50+$C84+T$16) -> -0.6320123941 | U84: =SIN(-$C84+U$16)+$C$11*SIN(-50+$C84+U$16) -> -0.5117724087 | V84: =SIN(-$C84+V$16)+$C$11*SIN(-50+$C84+V$16) -> -0.3414365743 | W84: =SIN(-$C84+W$16)+$C$11*SIN(-50+$C84+W$16) -> -0.137678549 | X84: =SIN(-$C84+X$16)+$C$11*SIN(-50+$C84+X$16) -> 0.07955641188 | Y84: =SIN(-$C84+Y$16)+$C$11*SIN(-50+$C84+Y$16) -> 0.2890038369 | Z84: =SIN(-$C84+Z$16)+$C$11*SIN(-50+$C84+Z$16) -> 0.4701615527 | AA84: =SIN(-$C84+AA$16)+$C$11*SIN(-50+$C84+AA$16) -> 0.60529658 | AB84: =SIN(-$C84+AB$16)+$C$11*SIN(-50+$C84+AB$16) -> 0.6811809606 | AE84: 0.6903866028
C85: 23.5 | D85: =SQRT(2*$D$7*$D$8)*SIN(-C85+C$16) -> -3.190983623 | E85: =SQRT(2*$D$7*$D$8)*C$11*SIN(-50+C85+C$16) -> 1.498824882 | F85: -1.692158742 | H85: =SIN(-$C85+H$16)+$C$11*SIN(-50+$C85+H$16) -> 0.6716294803 | I85: =SIN(-$C85+I$16)+$C$11*SIN(-50+$C85+I$16) -> 0.6404488683 | J85: =SIN(-$C85+J$16)+$C$11*SIN(-50+$C85+J$16) -> 0.5465766589 | K85: =SIN(-$C85+K$16)+$C$11*SIN(-50+$C85+K$16) -> 0.3992017178 | L85: =SIN(-$C85+L$16)+$C$11*SIN(-50+$C85+L$16) -> 0.2127501312 | M85: =SIN(-$C85+M$16)+$C$11*SIN(-50+$C85+M$16) -> 0.005473079468 | N85: =SIN(-$C85+N$16)+$C$11*SIN(-50+$C85+N$16) -> -0.2023397154 | O85: =SIN(-$C85+O$16)+$C$11*SIN(-50+$C85+O$16) -> -0.3903460892 | P85: =SIN(-$C85+P$16)+$C$11*SIN(-50+$C85+P$16) -> -0.5401426681 | Q85: =SIN(-$C85+Q$16)+$C$11*SIN(-50+$C85+Q$16) -> -0.6370663192 | R85: =SIN(-$C85+R$16)+$C$11*SIN(-50+$C85+R$16) -> -0.6716294803 | S85: =SIN(-$C85+S$16)+$C$11*SIN(-50+$C85+S$16) -> -0.6404488683 | T85: =SIN(-$C85+T$16)+$C$11*SIN(-50+$C85+T$16) -> -0.5465766589 | U85: =SIN(-$C85+U$16)+$C$11*SIN(-50+$C85+U$16) -> -0.3992017178 | V85: =SIN(-$C85+V$16)+$C$11*SIN(-50+$C85+V$16) -> -0.2127501312 | W85: =SIN(-$C85+W$16)+$C$11*SIN(-50+$C85+W$16) -> -0.005473079468 | X85: =SIN(-$C85+X$16)+$C$11*SIN(-50+$C85+X$16) -> 0.2023397154 | Y85: =SIN(-$C85+Y$16)+$C$11*SIN(-50+$C85+Y$16) -> 0.3903460892 | Z85: =SIN(-$C85+Z$16)+$C$11*SIN(-50+$C85+Z$16) -> 0.5401426681 | AA85: =SIN(-$C85+AA$16)+$C$11*SIN(-50+$C85+AA$16) -> 0.6370663192 | AB85: =SIN(-$C85+AB$16)+$C$11*SIN(-50+$C85+AB$16) -> 0.6716294803 | AE85: 0.6716294803
C86: 23.4 | D86: =SQRT(2*$D$7*$D$8)*SIN(-C86+C$16) -> -4.121184852 | E86: =SQRT(2*$D$7*$D$8)*C$11*SIN(-50+C86+C$16) -> 1.194097607 | F86: -2.927087245 | H86: =SIN(-$C86+H$16)+$C$11*SIN(-50+$C86+H$16) -> 0.6553673002 | I86: =SIN(-$C86+I$16)+$C$11*SIN(-50+$C86+I$16) -> 0.5841119805 | J86: =SIN(-$C86+J$16)+$C$11*SIN(-50+$C86+J$16) -> 0.4556797104 | K86: =SIN(-$C86+K$16)+$C$11*SIN(-50+$C86+K$16) -> 0.2826423353 | L86: =SIN(-$C86+L$16)+$C$11*SIN(-50+$C86+L$16) -> 0.08193795917 | M86: =SIN(-$C86+M$16)+$C$11*SIN(-50+$C86+M$16) -> -0.1267870753 | N86: =SIN(-$C86+N$16)+$C$11*SIN(-50+$C86+N$16) -> -0.3231013074 | O86: =SIN(-$C86+O$16)+$C$11*SIN(-50+$C86+O$16) -> -0.4877881324 | P86: =SIN(-$C86+P$16)+$C$11*SIN(-50+$C86+P$16) -> -0.6047268564 | Q86: =SIN(-$C86+Q$16)+$C$11*SIN(-50+$C86+Q$16) -> -0.6624707023 | R86: =SIN(-$C86+R$16)+$C$11*SIN(-50+$C86+R$16) -> -0.6553673002 | S86: =SIN(-$C86+S$16)+$C$11*SIN(-50+$C86+S$16) -> -0.5841119805 | T86: =SIN(-$C86+T$16)+$C$11*SIN(-50+$C86+T$16) -> -0.4556797104 | U86: =SIN(-$C86+U$16)+$C$11*SIN(-50+$C86+U$16) -> -0.2826423353 | V86: =SIN(-$C86+V$16)+$C$11*SIN(-50+$C86+V$16) -> -0.08193795917 | W86: =SIN(-$C86+W$16)+$C$11*SIN(-50+$C86+W$16) -> 0.1267870753 | X86: =SIN(-$C86+X$16)+$C$11*SIN(-50+$C86+X$16) -> 0.3231013074 | Y86: =SIN(-$C86+Y$16)+$C$11*SIN(-50+$C86+Y$16) -> 0.4877881324 | Z86: =SIN(-$C86+Z$16)+$C$11*SIN(-50+$C86+Z$16) -> 0.6047268564 | AA86: =SIN(-$C86+AA$16)+$C$11*SIN(-50+$C86+AA$16) -> 0.6624707023 | AB86: =SIN(-$C86+AB$16)+$C$11*SIN(-50+$C86+AB$16) -> 0.6553673002 | AE86: 0.6624707023
C87: 23.3 | D87: =SQRT(2*$D$7*$D$8)*SIN(-C87+C$16) -> -5.010208565 | E87: =SQRT(2*$D$7*$D$8)*C$11*SIN(-50+C87+C$16) -> 0.8774393046 | F87: -4.13276926 | H87: =SIN(-$C87+H$16)+$C$11*SIN(-50+$C87+H$16) -> 0.6325569066 | I87: =SIN(-$C87+I$16)+$C$11*SIN(-50+$C87+I$16) -> 0.5219388388 | J87: =SIN(-$C87+J$16)+$C$11*SIN(-50+$C87+J$16) -> 0.3602297608 | K87: =SIN(-$C87+K$16)+$C$11*SIN(-50+$C87+K$16) -> 0.163258884 | L87: =SIN(-$C87+L$16)+$C$11*SIN(-50+$C87+L$16) -> -0.04969290988 | M87: =SIN(-$C87+M$16)+$C$11*SIN(-50+$C87+M$16) -> -0.2577804155 | N87: =SIN(-$C87+N$16)+$C$11*SIN(-50+$C87+N$16) -> -0.440634578 | O87: =SIN(-$C87+O$16)+$C$11*SIN(-50+$C87+O$16) -> -0.5803563579 | P87: =SIN(-$C87+P$16)+$C$11*SIN(-50+$C87+P$16) -> -0.6632688139 | Q87: =SIN(-$C87+Q$16)+$C$11*SIN(-50+$C87+Q$16) -> -0.6812558972 | R87: =SIN(-$C87+R$16)+$C$11*SIN(-50+$C87+R$16) -> -0.6325569066 | S87: =SIN(-$C87+S$16)+$C$11*SIN(-50+$C87+S$16) -> -0.5219388388 | T87: =SIN(-$C87+T$16)+$C$11*SIN(-50+$C87+T$16) -> -0.3602297608 | U87: =SIN(-$C87+U$16)+$C$11*SIN(-50+$C87+U$16) -> -0.163258884 | V87: =SIN(-$C87+V$16)+$C$11*SIN(-50+$C87+V$16) -> 0.04969290988 | W87: =SIN(-$C87+W$16)+$C$11*SIN(-50+$C87+W$16) -> 0.2577804155 | X87: =SIN(-$C87+X$16)+$C$11*SIN(-50+$C87+X$16) -> 0.440634578 | Y87: =SIN(-$C87+Y$16)+$C$11*SIN(-50+$C87+Y$16) -> 0.5803563579 | Z87: =SIN(-$C87+Z$16)+$C$11*SIN(-50+$C87+Z$16) -> 0.6632688139 | AA87: =SIN(-$C87+AA$16)+$C$11*SIN(-50+$C87+AA$16) -> 0.6812558972 | AB87: =SIN(-$C87+AB$16)+$C$11*SIN(-50+$C87+AB$16) -> 0.6325569066 | AE87: 0.6812558972
C88: 23.2 | D88: =SQRT(2*$D$7*$D$8)*SIN(-C88+C$16) -> -5.849171929 | E88: =SQRT(2*$D$7*$D$8)*C$11*SIN(-50+C88+C$16) -> 0.5520139182 | F88: -5.297158011 | H88: =SIN(-$C88+H$16)+$C$11*SIN(-50+$C88+H$16) -> 0.6034262136 | I88: =SIN(-$C88+I$16)+$C$11*SIN(-50+$C88+I$16) -> 0.4545506567 | J88: =SIN(-$C88+J$16)+$C$11*SIN(-50+$C88+J$16) -> 0.2611805146 | K88: =SIN(-$C88+K$16)+$C$11*SIN(-50+$C88+K$16) -> 0.04224420388 | L88: =SIN(-$C88+L$16)+$C$11*SIN(-50+$C88+L$16) -> -0.1808272638 | M88: =SIN(-$C88+M$16)+$C$11*SIN(-50+$C88+M$16) -> -0.386198099 | N88: =SIN(-$C88+N$16)+$C$11*SIN(-50+$C88+N$16) -> -0.5537651735 | O88: =SIN(-$C88+O$16)+$C$11*SIN(-50+$C88+O$16) -> -0.6671258545 | P88: =SIN(-$C88+P$16)+$C$11*SIN(-50+$C88+P$16) -> -0.7151836087 | Q88: =SIN(-$C88+Q$16)+$C$11*SIN(-50+$C88+Q$16) -> -0.6932342083 | R88: =SIN(-$C88+R$16)+$C$11*SIN(-50+$C88+R$16) -> -0.6034262136 | S88: =SIN(-$C88+S$16)+$C$11*SIN(-50+$C88+S$16) -> -0.4545506567 | T88: =SIN(-$C88+T$16)+$C$11*SIN(-50+$C88+T$16) -> -0.2611805146 | U88: =SIN(-$C88+U$16)+$C$11*SIN(-50+$C88+U$16) -> -0.04224420388 | V88: =SIN(-$C88+V$16)+$C$11*SIN(-50+$C88+V$16) -> 0.1808272638 | W88: =SIN(-$C88+W$16)+$C$11*SIN(-50+$C88+W$16) -> 0.386198099 | X88: =SIN(-$C88+X$16)+$C$11*SIN(-50+$C88+X$16) -> 0.5537651735 | Y88: =SIN(-$C88+Y$16)+$C$11*SIN(-50+$C88+Y$16) -> 0.6671258545 | Z88: =SIN(-$C88+Z$16)+$C$11*SIN(-50+$C88+Z$16) -> 0.7151836087 | AA88: =SIN(-$C88+AA$16)+$C$11*SIN(-50+$C88+AA$16) -> 0.6932342083 | AB88: =SIN(-$C88+AB$16)+$C$11*SIN(-50+$C88+AB$16) -> 0.6034262136 | AE88: 0.7151836087
C89: 23.1 | D89: =SQRT(2*$D$7*$D$8)*SIN(-C89+C$16) -> -6.629692301 | E89: =SQRT(2*$D$7*$D$8)*C$11*SIN(-50+C89+C$16) -> 0.2210729912 | F89: -6.40861931 | H89: =SIN(-$C89+H$16)+$C$11*SIN(-50+$C89+H$16) -> 0.5682662852 | I89: =SIN(-$C89+I$16)+$C$11*SIN(-50+$C89+I$16) -> 0.3826207548 | J89: =SIN(-$C89+J$16)+$C$11*SIN(-50+$C89+J$16) -> 0.1595216389 | K89: =SIN(-$C89+K$16)+$C$11*SIN(-50+$C89+K$16) -> -0.07919256635 | L89: =SIN(-$C89+L$16)+$C$11*SIN(-50+$C89+L$16) -> -0.3101548515 | M89: =SIN(-$C89+M$16)+$C$11*SIN(-50+$C89+M$16) -> -0.5107570188 | N89: =SIN(-$C89+N$16)+$C$11*SIN(-50+$C89+N$16) -> -0.6613627304 | O89: =SIN(-$C89+O$16)+$C$11*SIN(-50+$C89+O$16) -> -0.74722965 | P89: =SIN(-$C89+P$16)+$C$11*SIN(-50+$C89+P$16) -> -0.7599525252 | Q89: =SIN(-$C89+Q$16)+$C$11*SIN(-50+$C89+Q$16) -> -0.6982859524 | R89: =SIN(-$C89+R$16)+$C$11*SIN(-50+$C89+R$16) -> -0.5682662852 | S89: =SIN(-$C89+S$16)+$C$11*SIN(-50+$C89+S$16) -> -0.3826207548 | T89: =SIN(-$C89+T$16)+$C$11*SIN(-50+$C89+T$16) -> -0.1595216389 | U89: =SIN(-$C89+U$16)+$C$11*SIN(-50+$C89+U$16) -> 0.07919256635 | V89: =SIN(-$C89+V$16)+$C$11*SIN(-50+$C89+V$16) -> 0.3101548515 | W89: =SIN(-$C89+W$16)+$C$11*SIN(-50+$C89+W$16) -> 0.5107570188 | X89: =SIN(-$C89+X$16)+$C$11*SIN(-50+$C89+X$16) -> 0.6613627304 | Y89: =SIN(-$C89+Y$16)+$C$11*SIN(-50+$C89+Y$16) -> 0.74722965 | Z89: =SIN(-$C89+Z$16)+$C$11*SIN(-50+$C89+Z$16) -> 0.7599525252 | AA89: =SIN(-$C89+AA$16)+$C$11*SIN(-50+$C89+AA$16) -> 0.6982859524 | AB89: =SIN(-$C89+AB$16)+$C$11*SIN(-50+$C89+AB$16) -> 0.5682662852 | AE89: 0.7599525252
C90: 23 | D90: =SQRT(2*$D$7*$D$8)*SIN(-C90+C$16) -> -7.343970979 | E90: =SQRT(2*$D$7*$D$8)*C$11*SIN(-50+C90+C$16) -> -0.1120768241 | F90: -7.456047803 | H90: =SIN(-$C90+H$16)+$C$11*SIN(-50+$C90+H$16) -> 0.527428428 | I90: =SIN(-$C90+I$16)+$C$11*SIN(-50+$C90+I$16) -> 0.3068678327 | J90: =SIN(-$C90+J$16)+$C$11*SIN(-50+$C90+J$16) -> 0.05626887585 | K90: =SIN(-$C90+K$16)+$C$11*SIN(-50+$C90+K$16) -> -0.1998380706 | L90: =SIN(-$C90+L$16)+$C$11*SIN(-50+$C90+L$16) -> -0.4363834744 | M90: =SIN(-$C90+M$16)+$C$11*SIN(-50+$C90+M$16) -> -0.6302126232 | N90: =SIN(-$C90+N$16)+$C$11*SIN(-50+$C90+N$16) -> -0.7623521696 | O90: =SIN(-$C90+O$16)+$C$11*SIN(-50+$C90+O$16) -> -0.8198673739 | P90: =SIN(-$C90+P$16)+$C$11*SIN(-50+$C90+P$16) -> -0.7971282474 | Q90: =SIN(-$C90+Q$16)+$C$11*SIN(-50+$C90+Q$16) -> -0.696360654 | R90: =SIN(-$C90+R$16)+$C$11*SIN(-50+$C90+R$16) -> -0.527428428 | S90: =SIN(-$C90+S$16)+$C$11*SIN(-50+$C90+S$16) -> -0.3068678327 | T90: =SIN(-$C90+T$16)+$C$11*SIN(-50+$C90+T$16) -> -0.05626887585 | U90: =SIN(-$C90+U$16)+$C$11*SIN(-50+$C90+U$16) -> 0.1998380706 | V90: =SIN(-$C90+V$16)+$C$11*SIN(-50+$C90+V$16) -> 0.4363834744 | W90: =SIN(-$C90+W$16)+$C$11*SIN(-50+$C90+W$16) -> 0.6302126232 | X90: =SIN(-$C90+X$16)+$C$11*SIN(-50+$C90+X$16) -> 0.7623521696 | Y90: =SIN(-$C90+Y$16)+$C$11*SIN(-50+$C90+Y$16) -> 0.8198673739 | Z90: =SIN(-$C90+Z$16)+$C$11*SIN(-50+$C90+Z$16) -> 0.7971282474 | AA90: =SIN(-$C90+AA$16)+$C$11*SIN(-50+$C90+AA$16) -> 0.696360654 | AB90: =SIN(-$C90+AB$16)+$C$11*SIN(-50+$C90+AB$16) -> 0.527428428 | AE90: 0.8198673739
C91: 22.9 | D91: =SQRT(2*$D$7*$D$8)*SIN(-C91+C$16) -> -7.984871126 | E91: =SQRT(2*$D$7*$D$8)*C$11*SIN(-50+C91+C$16) -> -0.4441068047 | F91: -8.428977931 | H91: =SIN(-$C91+H$16)+$C$11*SIN(-50+$C91+H$16) -> 0.4813206803 | I91: =SIN(-$C91+I$16)+$C$11*SIN(-50+$C91+I$16) -> 0.2280487887 | J91: =SIN(-$C91+J$16)+$C$11*SIN(-50+$C91+J$16) -> -0.04754610725 | K91: =SIN(-$C91+K$16)+$C$11*SIN(-50+$C91+K$16) -> -0.318486859 | L91: =SIN(-$C91+L$16)+$C$11*SIN(-50+$C91+L$16) -> -0.5582518979 | M91: =SIN(-$C91+M$16)+$C$11*SIN(-50+$C91+M$16) -> -0.7433713515 | N91: =SIN(-$C91+N$16)+$C$11*SIN(-50+$C91+N$16) -> -0.8557244378 | O91: =SIN(-$C91+O$16)+$C$11*SIN(-50+$C91+O$16) -> -0.884313254 | P91: =SIN(-$C91+P$16)+$C$11*SIN(-50+$C91+P$16) -> -0.8263393275 | Q91: =SIN(-$C91+Q$16)+$C$11*SIN(-50+$C91+Q$16) -> -0.6874775502 | R91: =SIN(-$C91+R$16)+$C$11*SIN(-50+$C91+R$16) -> -0.4813206803 | S91: =SIN(-$C91+S$16)+$C$11*SIN(-50+$C91+S$16) -> -0.2280487887 | T91: =SIN(-$C91+T$16)+$C$11*SIN(-50+$C91+T$16) -> 0.04754610725 | U91: =SIN(-$C91+U$16)+$C$11*SIN(-50+$C91+U$16) -> 0.318486859 | V91: =SIN(-$C91+V$16)+$C$11*SIN(-50+$C91+V$16) -> 0.5582518979 | W91: =SIN(-$C91+W$16)+$C$11*SIN(-50+$C91+W$16) -> 0.7433713515 | X91: =SIN(-$C91+X$16)+$C$11*SIN(-50+$C91+X$16) -> 0.8557244378 | Y91: =SIN(-$C91+Y$16)+$C$11*SIN(-50+$C91+Y$16) -> 0.884313254 | Z91: =SIN(-$C91+Z$16)+$C$11*SIN(-50+$C91+Z$16) -> 0.8263393275 | AA91: =SIN(-$C91+AA$16)+$C$11*SIN(-50+$C91+AA$16) -> 0.6874775502 | AB91: =SIN(-$C91+AB$16)+$C$11*SIN(-50+$C91+AB$16) -> 0.4813206803 | AE91: 0.884313254
C92: 22.8 | D92: =SQRT(2*$D$7*$D$8)*SIN(-C92+C$16) -> -8.545989081 | E92: =SQRT(2*$D$7*$D$8)*C$11*SIN(-50+C92+C$16) -> -0.771699417 | F92: -9.317688498 | H92: =SIN(-$C92+H$16)+$C$11*SIN(-50+$C92+H$16) -> 0.4304037355 | I92: =SIN(-$C92+I$16)+$C$11*SIN(-50+$C92+I$16) -> 0.1469511566 | J92: =SIN(-$C92+J$16)+$C$11*SIN(-50+$C92+J$16) -> -0.1508860254 | K92: =SIN(-$C92+K$16)+$C$11*SIN(-50+$C92+K$16) -> -0.4339534319 | L92: =SIN(-$C92+L$16)+$C$11*SIN(-50+$C92+L$16) -> -0.674542453 | M92: =SIN(-$C92+M$16)+$C$11*SIN(-50+$C92+M$16) -> -0.8491025589 | N92: =SIN(-$C92+N$16)+$C$11*SIN(-50+$C92+N$16) -> -0.9405465904 | O92: =SIN(-$C92+O$16)+$C$11*SIN(-50+$C92+O$16) -> -0.9399233684 | P92: =SIN(-$C92+P$16)+$C$11*SIN(-50+$C92+P$16) -> -0.8472938983 | Q92: =SIN(-$C92+Q$16)+$C$11*SIN(-50+$C92+Q$16) -> -0.671725398 | R92: =SIN(-$C92+R$16)+$C$11*SIN(-50+$C92+R$16) -> -0.4304037355 | S92: =SIN(-$C92+S$16)+$C$11*SIN(-50+$C92+S$16) -> -0.1469511566 | T92: =SIN(-$C92+T$16)+$C$11*SIN(-50+$C92+T$16) -> 0.1508860254 | U92: =SIN(-$C92+U$16)+$C$11*SIN(-50+$C92+U$16) -> 0.4339534319 | V92: =SIN(-$C92+V$16)+$C$11*SIN(-50+$C92+V$16) -> 0.674542453 | W92: =SIN(-$C92+W$16)+$C$11*SIN(-50+$C92+W$16) -> 0.8491025589 | X92: =SIN(-$C92+X$16)+$C$11*SIN(-50+$C92+X$16) -> 0.9405465904 | Y92: =SIN(-$C92+Y$16)+$C$11*SIN(-50+$C92+Y$16) -> 0.9399233684 | Z92: =SIN(-$C92+Z$16)+$C$11*SIN(-50+$C92+Z$16) -> 0.8472938983 | AA92: =SIN(-$C92+AA$16)+$C$11*SIN(-50+$C92+AA$16) -> 0.671725398 | AB92: =SIN(-$C92+AB$16)+$C$11*SIN(-50+$C92+AB$16) -> 0.4304037355 | AE92: 0.9405465904
C93: 22.7 | D93: =SQRT(2*$D$7*$D$8)*SIN(-C93+C$16) -> -9.021718338 | E93: =SQRT(2*$D$7*$D$8)*C$11*SIN(-50+C93+C$16) -> -1.091581464 | F93: -10.1132998 | H93: =SIN(-$C93+H$16)+$C$11*SIN(-50+$C93+H$16) -> 0.3751863388 | I93: =SIN(-$C93+I$16)+$C$11*SIN(-50+$C93+I$16) -> 0.0643852371 | J93: =SIN(-$C93+J$16)+$C$11*SIN(-50+$C93+J$16) -> -0.2527183402 | K93: =SIN(-$C93+K$16)+$C$11*SIN(-50+$C93+K$16) -> -0.5450840856 | L93: =SIN(-$C93+L$16)+$C$11*SIN(-50+$C93+L$16) -> -0.7840932028 | M93: =SIN(-$C93+M$16)+$C$11*SIN(-50+$C93+M$16) -> -0.9463498143 | N93: =SIN(-$C93+N$16)+$C$11*SIN(-50+$C93+N$16) -> -1.015971112 | O93: =SIN(-$C93+O$16)+$C$11*SIN(-50+$C93+O$16) -> -0.9861420792 | P93: =SIN(-$C93+P$16)+$C$11*SIN(-50+$C93+P$16) -> -0.8597825885 | Q93: =SIN(-$C93+Q$16)+$C$11*SIN(-50+$C93+Q$16) -> -0.6492615876 | R93: =SIN(-$C93+R$16)+$C$11*SIN(-50+$C93+R$16) -> -0.3751863388 | S93: =SIN(-$C93+S$16)+$C$11*SIN(-50+$C93+S$16) -> -0.0643852371 | T93: =SIN(-$C93+T$16)+$C$11*SIN(-50+$C93+T$16) -> 0.2527183402 | U93: =SIN(-$C93+U$16)+$C$11*SIN(-50+$C93+U$16) -> 0.5450840856 | V93: =SIN(-$C93+V$16)+$C$11*SIN(-50+$C93+V$16) -> 0.7840932028 | W93: =SIN(-$C93+W$16)+$C$11*SIN(-50+$C93+W$16) -> 0.9463498143 | X93: =SIN(-$C93+X$16)+$C$11*SIN(-50+$C93+X$16) -> 1.015971112 | Y93: =SIN(-$C93+Y$16)+$C$11*SIN(-50+$C93+Y$16) -> 0.9861420792 | Z93: =SIN(-$C93+Z$16)+$C$11*SIN(-50+$C93+Z$16) -> 0.8597825885 | AA93: =SIN(-$C93+AA$16)+$C$11*SIN(-50+$C93+AA$16) -> 0.6492615876 | AB93: =SIN(-$C93+AB$16)+$C$11*SIN(-50+$C93+AB$16) -> 0.3751863388 | AE93: 1.015971112
C94: 22.6 | D94: =SQRT(2*$D$7*$D$8)*SIN(-C94+C$16) -> -9.407305567 | E94: =SQRT(2*$D$7*$D$8)*C$11*SIN(-50+C94+C$16) -> -1.400556789 | F94: -10.80786236 | H94: =SIN(-$C94+H$16)+$C$11*SIN(-50+$C94+H$16) -> 0.3162202042 | I94: =SIN(-$C94+I$16)+$C$11*SIN(-50+$C94+I$16) -> -0.0188239984 | J94: =SIN(-$C94+J$16)+$C$11*SIN(-50+$C94+J$16) -> -0.3520255769 | K94: =SIN(-$C94+K$16)+$C$11*SIN(-50+$C94+K$16) -> -0.6507684392 | L94: =SIN(-$C94+L$16)+$C$11*SIN(-50+$C94+L$16) -> -0.8858095526 | M94: =SIN(-$C94+M$16)+$C$11*SIN(-50+$C94+M$16) -> -1.034141455 | N94: =SIN(-$C94+N$16)+$C$11*SIN(-50+$C94+N$16) -> -1.081244387 | O94: =SIN(-$C94+O$16)+$C$11*SIN(-50+$C94+O$16) -> -1.022507584 | P94: =SIN(-$C94+P$16)+$C$11*SIN(-50+$C94+P$16) -> -0.8636806153 | Q94: =SIN(-$C94+Q$16)+$C$11*SIN(-50+$C94+Q$16) -> -0.62031057 | R94: =SIN(-$C94+R$16)+$C$11*SIN(-50+$C94+R$16) -> -0.3162202042 | S94: =SIN(-$C94+S$16)+$C$11*SIN(-50+$C94+S$16) -> 0.0188239984 | T94: =SIN(-$C94+T$16)+$C$11*SIN(-50+$C94+T$16) -> 0.3520255769 | U94: =SIN(-$C94+U$16)+$C$11*SIN(-50+$C94+U$16) -> 0.6507684392 | V94: =SIN(-$C94+V$16)+$C$11*SIN(-50+$C94+V$16) -> 0.8858095526 | W94: =SIN(-$C94+W$16)+$C$11*SIN(-50+$C94+W$16) -> 1.034141455 | X94: =SIN(-$C94+X$16)+$C$11*SIN(-50+$C94+X$16) -> 1.081244387 | Y94: =SIN(-$C94+Y$16)+$C$11*SIN(-50+$C94+Y$16) -> 1.022507584 | Z94: =SIN(-$C94+Z$16)+$C$11*SIN(-50+$C94+Z$16) -> 0.8636806153 | AA94: =SIN(-$C94+AA$16)+$C$11*SIN(-50+$C94+AA$16) -> 0.62031057 | AB94: =SIN(-$C94+AB$16)+$C$11*SIN(-50+$C94+AB$16) -> 0.3162202042 | AE94: 1.081244387
C95: 22.5 | D95: =SQRT(2*$D$7*$D$8)*SIN(-C95+C$16) -> -9.698898108 | E95: =SQRT(2*$D$7*$D$8)*C$11*SIN(-50+C95+C$16) -> -1.695538215 | F95: -11.39443632 | H95: =SIN(-$C95+H$16)+$C$11*SIN(-50+$C95+H$16) -> 0.2540945019 | I95: =SIN(-$C95+I$16)+$C$11*SIN(-50+$C95+I$16) -> -0.1018451507 | J95: =SIN(-$C95+J$16)+$C$11*SIN(-50+$C95+J$16) -> -0.4478154904 | K95: =SIN(-$C95+K$16)+$C$11*SIN(-50+$C95+K$16) -> -0.7499505298 | L95: =SIN(-$C95+L$16)+$C$11*SIN(-50+$C95+L$16) -> -0.9786751861 | M95: =SIN(-$C95+M$16)+$C$11*SIN(-50+$C95+M$16) -> -1.111600296 | N95: =SIN(-$C95+N$16)+$C$11*SIN(-50+$C95+N$16) -> -1.135714225 | O95: =SIN(-$C95+O$16)+$C$11*SIN(-50+$C95+O$16) -> -1.048656532 | P95: =SIN(-$C95+P$16)+$C$11*SIN(-50+$C95+P$16) -> -0.8589490309 | Q95: =SIN(-$C95+Q$16)+$C$11*SIN(-50+$C95+Q$16) -> -0.5851616143 | R95: =SIN(-$C95+R$16)+$C$11*SIN(-50+$C95+R$16) -> -0.2540945019 | S95: =SIN(-$C95+S$16)+$C$11*SIN(-50+$C95+S$16) -> 0.1018451507 | T95: =SIN(-$C95+T$16)+$C$11*SIN(-50+$C95+T$16) -> 0.4478154904 | U95: =SIN(-$C95+U$16)+$C$11*SIN(-50+$C95+U$16) -> 0.7499505298 | V95: =SIN(-$C95+V$16)+$C$11*SIN(-50+$C95+V$16) -> 0.9786751861 | W95: =SIN(-$C95+W$16)+$C$11*SIN(-50+$C95+W$16) -> 1.111600296 | X95: =SIN(-$C95+X$16)+$C$11*SIN(-50+$C95+X$16) -> 1.135714225 | Y95: =SIN(-$C95+Y$16)+$C$11*SIN(-50+$C95+Y$16) -> 1.048656532 | Z95: =SIN(-$C95+Z$16)+$C$11*SIN(-50+$C95+Z$16) -> 0.8589490309 | AA95: =SIN(-$C95+AA$16)+$C$11*SIN(-50+$C95+AA$16) -> 0.5851616143 | AB95: =SIN(-$C95+AB$16)+$C$11*SIN(-50+$C95+AB$16) -> 0.2540945019 | AE95: 1.135714225
C96: 22.4 | D96: =SQRT(2*$D$7*$D$8)*SIN(-C96+C$16) -> -9.893582466 | E96: =SQRT(2*$D$7*$D$8)*C$11*SIN(-50+C96+C$16) -> -1.973578382 | F96: -11.86716085 | H96: =SIN(-$C96+H$16)+$C$11*SIN(-50+$C96+H$16) -> 0.1894299713 | I96: =SIN(-$C96+I$16)+$C$11*SIN(-50+$C96+I$16) -> -0.1838487 | J96: =SIN(-$C96+J$16)+$C$11*SIN(-50+$C96+J$16) -> -0.5391309796 | K96: =SIN(-$C96+K$16)+$C$11*SIN(-50+$C96+K$16) -> -0.8416393625 | L96: =SIN(-$C96+L$16)+$C$11*SIN(-50+$C96+L$16) -> -1.061762221 | M96: =SIN(-$C96+M$16)+$C$11*SIN(-50+$C96+M$16) -> -1.177952395 | N96: =SIN(-$C96+N$16)+$C$11*SIN(-50+$C96+N$16) -> -1.178836381 | O96: =SIN(-$C96+O$16)+$C$11*SIN(-50+$C96+O$16) -> -1.06432765 | P96: =SIN(-$C96+P$16)+$C$11*SIN(-50+$C96+P$16) -> -0.8456351117 | Q96: =SIN(-$C96+Q$16)+$C$11*SIN(-50+$C96+Q$16) -> -0.5441659172 | R96: =SIN(-$C96+R$16)+$C$11*SIN(-50+$C96+R$16) -> -0.1894299713 | S96: =SIN(-$C96+S$16)+$C$11*SIN(-50+$C96+S$16) -> 0.1838487 | T96: =SIN(-$C96+T$16)+$C$11*SIN(-50+$C96+T$16) -> 0.5391309796 | U96: =SIN(-$C96+U$16)+$C$11*SIN(-50+$C96+U$16) -> 0.8416393625 | V96: =SIN(-$C96+V$16)+$C$11*SIN(-50+$C96+V$16) -> 1.061762221 | W96: =SIN(-$C96+W$16)+$C$11*SIN(-50+$C96+W$16) -> 1.177952395 | X96: =SIN(-$C96+X$16)+$C$11*SIN(-50+$C96+X$16) -> 1.178836381 | Y96: =SIN(-$C96+Y$16)+$C$11*SIN(-50+$C96+Y$16) -> 1.06432765 | Z96: =SIN(-$C96+Z$16)+$C$11*SIN(-50+$C96+Z$16) -> 0.8456351117 | AA96: =SIN(-$C96+AA$16)+$C$11*SIN(-50+$C96+AA$16) -> 0.5441659172 | AB96: =SIN(-$C96+AB$16)+$C$11*SIN(-50+$C96+AB$16) -> 0.1894299713 | AE96: 1.178836381
C97: 22.3 | D97: =SQRT(2*$D$7*$D$8)*SIN(-C97+C$16) -> -9.989413418 | E97: =SQRT(2*$D$7*$D$8)*C$11*SIN(-50+C97+C$16) -> -2.231899207 | F97: -12.22131263 | H97: =SIN(-$C97+H$16)+$C$11*SIN(-50+$C97+H$16) -> 0.1228727191 | I97: =SIN(-$C97+I$16)+$C$11*SIN(-50+$C97+I$16) -> -0.2640152938 | J97: =SIN(-$C97+J$16)+$C$11*SIN(-50+$C97+J$16) -> -0.6250596502 | K97: =SIN(-$C97+K$16)+$C$11*SIN(-50+$C97+K$16) -> -0.924918813 | L97: =SIN(-$C97+L$16)+$C$11*SIN(-50+$C97+L$16) -> -1.134240478 | M97: =SIN(-$C97+M$16)+$C$11*SIN(-50+$C97+M$16) -> -1.232534782 | N97: =SIN(-$C97+N$16)+$C$11*SIN(-50+$C97+N$16) -> -1.210179995 | O97: =SIN(-$C97+O$16)+$C$11*SIN(-50+$C97+O$16) -> -1.069364357 | P97: =SIN(-$C97+P$16)+$C$11*SIN(-50+$C97+P$16) -> -0.8238718859 | Q97: =SIN(-$C97+Q$16)+$C$11*SIN(-50+$C97+Q$16) -> -0.4977330941 | R97: =SIN(-$C97+R$16)+$C$11*SIN(-50+$C97+R$16) -> -0.1228727191 | S97: =SIN(-$C97+S$16)+$C$11*SIN(-50+$C97+S$16) -> 0.2640152938 | T97: =SIN(-$C97+T$16)+$C$11*SIN(-50+$C97+T$16) -> 0.6250596502 | U97: =SIN(-$C97+U$16)+$C$11*SIN(-50+$C97+U$16) -> 0.924918813 | V97: =SIN(-$C97+V$16)+$C$11*SIN(-50+$C97+V$16) -> 1.134240478 | W97: =SIN(-$C97+W$16)+$C$11*SIN(-50+$C97+W$16) -> 1.232534782 | X97: =SIN(-$C97+X$16)+$C$11*SIN(-50+$C97+X$16) -> 1.210179995 | Y97: =SIN(-$C97+Y$16)+$C$11*SIN(-50+$C97+Y$16) -> 1.069364357 | Z97: =SIN(-$C97+Z$16)+$C$11*SIN(-50+$C97+Z$16) -> 0.8238718859 | AA97: =SIN(-$C97+AA$16)+$C$11*SIN(-50+$C97+AA$16) -> 0.4977330941 | AB97: =SIN(-$C97+AB$16)+$C$11*SIN(-50+$C97+AB$16) -> 0.1228727191 | AE97: 1.232534782
C98: 22.2 | D98: =SQRT(2*$D$7*$D$8)*SIN(-C98+C$16) -> -9.985433454 | E98: =SQRT(2*$D$7*$D$8)*C$11*SIN(-50+C98+C$16) -> -2.467919633 | F98: -12.45335309 | H98: =SIN(-$C98+H$16)+$C$11*SIN(-50+$C98+H$16) -> 0.05508776323 | I98: =SIN(-$C98+I$16)+$C$11*SIN(-50+$C98+I$16) -> -0.3415439341 | J98: =SIN(-$C98+J$16)+$C$11*SIN(-50+$C98+J$16) -> -0.7047429314 | K98: =SIN(-$C98+K$16)+$C$11*SIN(-50+$C98+K$16) -> -0.9989567804 | L98: =SIN(-$C98+L$16)+$C$11*SIN(-50+$C98+L$16) -> -1.19538578 | M98: =SIN(-$C98+M$16)+$C$11*SIN(-50+$C98+M$16) -> -1.27480209 | N98: =SIN(-$C98+N$16)+$C$11*SIN(-50+$C98+N$16) -> -1.22943189 | O98: =SIN(-$C98+O$16)+$C$11*SIN(-50+$C98+O$16) -> -1.06371633 | P98: =SIN(-$C98+P$16)+$C$11*SIN(-50+$C98+P$16) -> -0.7938768047 | Q98: =SIN(-$C98+Q$16)+$C$11*SIN(-50+$C98+Q$16) -> -0.4463270864 | R98: =SIN(-$C98+R$16)+$C$11*SIN(-50+$C98+R$16) -> -0.05508776323 | S98: =SIN(-$C98+S$16)+$C$11*SIN(-50+$C98+S$16) -> 0.3415439341 | T98: =SIN(-$C98+T$16)+$C$11*SIN(-50+$C98+T$16) -> 0.7047429314 | U98: =SIN(-$C98+U$16)+$C$11*SIN(-50+$C98+U$16) -> 0.9989567804 | V98: =SIN(-$C98+V$16)+$C$11*SIN(-50+$C98+V$16) -> 1.19538578 | W98: =SIN(-$C98+W$16)+$C$11*SIN(-50+$C98+W$16) -> 1.27480209 | X98: =SIN(-$C98+X$16)+$C$11*SIN(-50+$C98+X$16) -> 1.22943189 | Y98: =SIN(-$C98+Y$16)+$C$11*SIN(-50+$C98+Y$16) -> 1.06371633 | Z98: =SIN(-$C98+Z$16)+$C$11*SIN(-50+$C98+Z$16) -> 0.7938768047 | AA98: =SIN(-$C98+AA$16)+$C$11*SIN(-50+$C98+AA$16) -> 0.4463270864 | AB98: =SIN(-$C98+AB$16)+$C$11*SIN(-50+$C98+AB$16) -> 0.05508776323 | AE98: 1.27480209
C99: 22.1 | D99: =SQRT(2*$D$7*$D$8)*SIN(-C99+C$16) -> -9.881682339 | E99: =SQRT(2*$D$7*$D$8)*C$11*SIN(-50+C99+C$16) -> -2.679281422 | F99: -12.56096376 | H99: =SIN(-$C99+H$16)+$C$11*SIN(-50+$C99+H$16) -> -0.01324761134 | I99: =SIN(-$C99+I$16)+$C$11*SIN(-50+$C99+I$16) -> -0.4156599802 | J99: =SIN(-$C99+J$16)+$C$11*SIN(-50+$C99+J$16) -> -0.7773846542 | K99: =SIN(-$C99+K$16)+$C$11*SIN(-50+$C99+K$16) -> -1.063013502 | L99: =SIN(-$C99+L$16)+$C$11*SIN(-50+$C99+L$16) -> -1.244587182 | M99: =SIN(-$C99+M$16)+$C$11*SIN(-50+$C99+M$16) -> -1.304331996 | N99: =SIN(-$C99+N$16)+$C$11*SIN(-50+$C99+N$16) -> -1.236399707 | O99: =SIN(-$C99+O$16)+$C$11*SIN(-50+$C99+O$16) -> -1.047440001 | P99: =SIN(-$C99+P$16)+$C$11*SIN(-50+$C99+P$16) -> -0.7559495688 | Q99: =SIN(-$C99+Q$16)+$C$11*SIN(-50+$C99+Q$16) -> -0.3904615261 | R99: =SIN(-$C99+R$16)+$C$11*SIN(-50+$C99+R$16) -> 0.01324761134 | S99: =SIN(-$C99+S$16)+$C$11*SIN(-50+$C99+S$16) -> 0.4156599802 | T99: =SIN(-$C99+T$16)+$C$11*SIN(-50+$C99+T$16) -> 0.7773846542 | U99: =SIN(-$C99+U$16)+$C$11*SIN(-50+$C99+U$16) -> 1.063013502 | V99: =SIN(-$C99+V$16)+$C$11*SIN(-50+$C99+V$16) -> 1.244587182 | W99: =SIN(-$C99+W$16)+$C$11*SIN(-50+$C99+W$16) -> 1.304331996 | X99: =SIN(-$C99+X$16)+$C$11*SIN(-50+$C99+X$16) -> 1.236399707 | Y99: =SIN(-$C99+Y$16)+$C$11*SIN(-50+$C99+Y$16) -> 1.047440001 | Z99: =SIN(-$C99+Z$16)+$C$11*SIN(-50+$C99+Z$16) -> 0.7559495688 | AA99: =SIN(-$C99+AA$16)+$C$11*SIN(-50+$C99+AA$16) -> 0.3904615261 | AB99: =SIN(-$C99+AB$16)+$C$11*SIN(-50+$C99+AB$16) -> -0.01324761134 | AE99: 1.304331996
C100: 22 | D100: =SQRT(2*$D$7*$D$8)*SIN(-C100+C$16) -> -9.67919672 | E100: =SQRT(2*$D$7*$D$8)*C$11*SIN(-50+C100+C$16) -> -2.863872716 | F100: -12.54306944 | H100: =SIN(-$C100+H$16)+$C$11*SIN(-50+$C100+H$16) -> -0.08145062015 | I100: =SIN(-$C100+I$16)+$C$11*SIN(-50+$C100+I$16) -> -0.4856228893 | J100: =SIN(-$C100+J$16)+$C$11*SIN(-50+$C100+J$16) -> -0.8422590065 | K100: =SIN(-$C100+K$16)+$C$11*SIN(-50+$C100+K$16) -> -1.116448944 | L100: =SIN(-$C100+L$16)+$C$11*SIN(-50+$C100+L$16) -> -1.28135308 | M100: =SIN(-$C100+M$16)+$C$11*SIN(-50+$C100+M$16) -> -1.320829448 | N100: =SIN(-$C100+N$16)+$C$11*SIN(-50+$C100+N$16) -> -1.231013828 | O100: =SIN(-$C100+O$16)+$C$11*SIN(-50+$C100+O$16) -> -1.020697997 | P100: =SIN(-$C100+P$16)+$C$11*SIN(-50+$C100+P$16) -> -0.7104691347 | Q100: =SIN(-$C100+Q$16)+$C$11*SIN(-50+$C100+Q$16) -> -0.3306946032 | R100: =SIN(-$C100+R$16)+$C$11*SIN(-50+$C100+R$16) -> 0.08145062015 | S100: =SIN(-$C100+S$16)+$C$11*SIN(-50+$C100+S$16) -> 0.4856228893 | T100: =SIN(-$C100+T$16)+$C$11*SIN(-50+$C100+T$16) -> 0.8422590065 | U100: =SIN(-$C100+U$16)+$C$11*SIN(-50+$C100+U$16) -> 1.116448944 | V100: =SIN(-$C100+V$16)+$C$11*SIN(-50+$C100+V$16) -> 1.28135308 | W100: =SIN(-$C100+W$16)+$C$11*SIN(-50+$C100+W$16) -> 1.320829448 | X100: =SIN(-$C100+X$16)+$C$11*SIN(-50+$C100+X$16) -> 1.231013828 | Y100: =SIN(-$C100+Y$16)+$C$11*SIN(-50+$C100+Y$16) -> 1.020697997 | Z100: =SIN(-$C100+Z$16)+$C$11*SIN(-50+$C100+Z$16) -> 0.7104691347 | AA100: =SIN(-$C100+AA$16)+$C$11*SIN(-50+$C100+AA$16) -> 0.3306946032 | AB100: =SIN(-$C100+AB$16)+$C$11*SIN(-50+$C100+AB$16) -> -0.08145062015 | AE100: 1.320829448
C101: 21.9 | D101: =SQRT(2*$D$7*$D$8)*SIN(-C101+C$16) -> -9.379999768 | E101: =SQRT(2*$D$7*$D$8)*C$11*SIN(-50+C101+C$16) -> -3.019849141 | F101: -12.39984891 | H101: =SIN(-$C101+H$16)+$C$11*SIN(-50+$C101+H$16) -> -0.1488398013 | I101: =SIN(-$C101+I$16)+$C$11*SIN(-50+$C101+I$16) -> -0.550733615 | J101: =SIN(-$C101+J$16)+$C$11*SIN(-50+$C101+J$16) -> -0.8987177852 | K101: =SIN(-$C101+K$16)+$C$11*SIN(-50+$C101+K$16) -> -1.158729197 | L101: =SIN(-$C101+L$16)+$C$11*SIN(-50+$C101+L$16) -> -1.305316122 | M101: =SIN(-$C101+M$16)+$C$11*SIN(-50+$C101+M$16) -> -1.324129609 | N101: =SIN(-$C101+N$16)+$C$11*SIN(-50+$C101+N$16) -> -1.213328065 | O101: =SIN(-$C101+O$16)+$C$11*SIN(-50+$C101+O$16) -> -0.9837575167 | P101: =SIN(-$C101+P$16)+$C$11*SIN(-50+$C101+P$16) -> -0.6578899279 | Q101: =SIN(-$C101+Q$16)+$C$11*SIN(-50+$C101+Q$16) -> -0.2676234892 | R101: =SIN(-$C101+R$16)+$C$11*SIN(-50+$C101+R$16) -> 0.1488398013 | S101: =SIN(-$C101+S$16)+$C$11*SIN(-50+$C101+S$16) -> 0.550733615 | T101: =SIN(-$C101+T$16)+$C$11*SIN(-50+$C101+T$16) -> 0.8987177852 | U101: =SIN(-$C101+U$16)+$C$11*SIN(-50+$C101+U$16) -> 1.158729197 | V101: =SIN(-$C101+V$16)+$C$11*SIN(-50+$C101+V$16) -> 1.305316122 | W101: =SIN(-$C101+W$16)+$C$11*SIN(-50+$C101+W$16) -> 1.324129609 | X101: =SIN(-$C101+X$16)+$C$11*SIN(-50+$C101+X$16) -> 1.213328065 | Y101: =SIN(-$C101+Y$16)+$C$11*SIN(-50+$C101+Y$16) -> 0.9837575167 | Z101: =SIN(-$C101+Z$16)+$C$11*SIN(-50+$C101+Z$16) -> 0.6578899279 | AA101: =SIN(-$C101+AA$16)+$C$11*SIN(-50+$C101+AA$16) -> 0.2676234892 | AB101: =SIN(-$C101+AB$16)+$C$11*SIN(-50+$C101+AB$16) -> -0.1488398013 | AE101: 1.324129609
C102: 21.8 | D102: =SQRT(2*$D$7*$D$8)*SIN(-C102+C$16) -> -8.987080958 | E102: =SQRT(2*$D$7*$D$8)*C$11*SIN(-50+C102+C$16) -> -3.145652231 | F102: -12.13273319 | H102: =SIN(-$C102+H$16)+$C$11*SIN(-50+$C102+H$16) -> -0.2147418243 | I102: =SIN(-$C102+I$16)+$C$11*SIN(-50+$C102+I$16) -> -0.6103415924 | J102: =SIN(-$C102+J$16)+$C$11*SIN(-50+$C102+J$16) -> -0.9461968729 | K102: =SIN(-$C102+K$16)+$C$11*SIN(-50+$C102+K$16) -> -1.189431811 | L102: =SIN(-$C102+L$16)+$C$11*SIN(-50+$C102+L$16) -> -1.316236876 | M102: =SIN(-$C102+M$16)+$C$11*SIN(-50+$C102+M$16) -> -1.314199505 | N102: =SIN(-$C102+N$16)+$C$11*SIN(-50+$C102+N$16) -> -1.18351913 | O102: =SIN(-$C102+O$16)+$C$11*SIN(-50+$C102+O$16) -> -0.9369876562 | P102: =SIN(-$C102+P$16)+$C$11*SIN(-50+$C102+P$16) -> -0.5987373024 | Q102: =SIN(-$C102+Q$16)+$C$11*SIN(-50+$C102+Q$16) -> -0.2018783697 | R102: =SIN(-$C102+R$16)+$C$11*SIN(-50+$C102+R$16) -> 0.2147418243 | S102: =SIN(-$C102+S$16)+$C$11*SIN(-50+$C102+S$16) -> 0.6103415924 | T102: =SIN(-$C102+T$16)+$C$11*SIN(-50+$C102+T$16) -> 0.9461968729 | U102: =SIN(-$C102+U$16)+$C$11*SIN(-50+$C102+U$16) -> 1.189431811 | V102: =SIN(-$C102+V$16)+$C$11*SIN(-50+$C102+V$16) -> 1.316236876 | W102: =SIN(-$C102+W$16)+$C$11*SIN(-50+$C102+W$16) -> 1.314199505 | X102: =SIN(-$C102+X$16)+$C$11*SIN(-50+$C102+X$16) -> 1.18351913 | Y102: =SIN(-$C102+Y$16)+$C$11*SIN(-50+$C102+Y$16) -> 0.9369876562 | Z102: =SIN(-$C102+Z$16)+$C$11*SIN(-50+$C102+Z$16) -> 0.5987373024 | AA102: =SIN(-$C102+AA$16)+$C$11*SIN(-50+$C102+AA$16) -> 0.2018783697 | AB102: =SIN(-$C102+AB$16)+$C$11*SIN(-50+$C102+AB$16) -> -0.2147418243 | AE102: 1.316236876
C103: 21.7 | D103: =SQRT(2*$D$7*$D$8)*SIN(-C103+C$16) -> -8.504366206 | E103: =SQRT(2*$D$7*$D$8)*C$11*SIN(-50+C103+C$16) -> -3.240025005 | F103: -11.74439121 | H103: =SIN(-$C103+H$16)+$C$11*SIN(-50+$C103+H$16) -> -0.278498218 | I103: =SIN(-$C103+I$16)+$C$11*SIN(-50+$C103+I$16) -> -0.6638512384 | J103: =SIN(-$C103+J$16)+$C$11*SIN(-50+$C103+J$16) -> -0.9842218743 | K103: =SIN(-$C103+K$16)+$C$11*SIN(-50+$C103+K$16) -> -1.208250016 | L103: =SIN(-$C103+L$16)+$C$11*SIN(-50+$C103+L$16) -> -1.314006227 | M103: =SIN(-$C103+M$16)+$C$11*SIN(-50+$C103+M$16) -> -1.291138354 | N103: =SIN(-$C103+N$16)+$C$11*SIN(-50+$C103+N$16) -> -1.141884862 | O103: =SIN(-$C103+O$16)+$C$11*SIN(-50+$C103+O$16) -> -0.8808557248 | P103: =SIN(-$C103+P$16)+$C$11*SIN(-50+$C103+P$16) -> -0.5336022917 | Q103: =SIN(-$C103+Q$16)+$C$11*SIN(-50+$C103+Q$16) -> -0.1341161483 | R103: =SIN(-$C103+R$16)+$C$11*SIN(-50+$C103+R$16) -> 0.278498218 | S103: =SIN(-$C103+S$16)+$C$11*SIN(-50+$C103+S$16) -> 0.6638512384 | T103: =SIN(-$C103+T$16)+$C$11*SIN(-50+$C103+T$16) -> 0.9842218743 | U103: =SIN(-$C103+U$16)+$C$11*SIN(-50+$C103+U$16) -> 1.208250016 | V103: =SIN(-$C103+V$16)+$C$11*SIN(-50+$C103+V$16) -> 1.314006227 | W103: =SIN(-$C103+W$16)+$C$11*SIN(-50+$C103+W$16) -> 1.291138354 | X103: =SIN(-$C103+X$16)+$C$11*SIN(-50+$C103+X$16) -> 1.141884862 | Y103: =SIN(-$C103+Y$16)+$C$11*SIN(-50+$C103+Y$16) -> 0.8808557248 | Z103: =SIN(-$C103+Z$16)+$C$11*SIN(-50+$C103+Z$16) -> 0.5336022917 | AA103: =SIN(-$C103+AA$16)+$C$11*SIN(-50+$C103+AA$16) -> 0.1341161483 | AB103: =SIN(-$C103+AB$16)+$C$11*SIN(-50+$C103+AB$16) -> -0.278498218 | AE103: 1.314006227
C104: 21.6 | D104: =SQRT(2*$D$7*$D$8)*SIN(-C104+C$16) -> -7.936678638 | E104: =SQRT(2*$D$7*$D$8)*C$11*SIN(-50+C104+C$16) -> -3.302024519 | F104: -11.23870316 | H104: =SIN(-$C104+H$16)+$C$11*SIN(-50+$C104+H$16) -> -0.3394719496 | I104: =SIN(-$C104+I$16)+$C$11*SIN(-50+$C104+I$16) -> -0.7107279023 | J104: =SIN(-$C104+J$16)+$C$11*SIN(-50+$C104+J$16) -> -1.012412856 | K104: =SIN(-$C104+K$16)+$C$11*SIN(-50+$C104+K$16) -> -1.214995785 | L104: =SIN(-$C104+L$16)+$C$11*SIN(-50+$C104+L$16) -> -1.298646462 | M104: =SIN(-$C104+M$16)+$C$11*SIN(-50+$C104+M$16) -> -1.255176575 | N104: =SIN(-$C104+N$16)+$C$11*SIN(-50+$C104+N$16) -> -1.088841259 | O104: =SIN(-$C104+O$16)+$C$11*SIN(-50+$C104+O$16) -> -0.8159225742 | P104: =SIN(-$C104+P$16)+$C$11*SIN(-50+$C104+P$16) -> -0.4631357032 | Q104: =SIN(-$C104+Q$16)+$C$11*SIN(-50+$C104+Q$16) -> -0.06501388271 | R104: =SIN(-$C104+R$16)+$C$11*SIN(-50+$C104+R$16) -> 0.3394719496 | S104: =SIN(-$C104+S$16)+$C$11*SIN(-50+$C104+S$16) -> 0.7107279023 | T104: =SIN(-$C104+T$16)+$C$11*SIN(-50+$C104+T$16) -> 1.012412856 | U104: =SIN(-$C104+U$16)+$C$11*SIN(-50+$C104+U$16) -> 1.214995785 | V104: =SIN(-$C104+V$16)+$C$11*SIN(-50+$C104+V$16) -> 1.298646462 | W104: =SIN(-$C104+W$16)+$C$11*SIN(-50+$C104+W$16) -> 1.255176575 | X104: =SIN(-$C104+X$16)+$C$11*SIN(-50+$C104+X$16) -> 1.088841259 | Y104: =SIN(-$C104+Y$16)+$C$11*SIN(-50+$C104+Y$16) -> 0.8159225742 | Z104: =SIN(-$C104+Z$16)+$C$11*SIN(-50+$C104+Z$16) -> 0.4631357032 | AA104: =SIN(-$C104+AA$16)+$C$11*SIN(-50+$C104+AA$16) -> 0.06501388271 | AB104: =SIN(-$C104+AB$16)+$C$11*SIN(-50+$C104+AB$16) -> -0.3394719496 | AE104: 1.298646462
C105: 21.5 | D105: =SQRT(2*$D$7*$D$8)*SIN(-C105+C$16) -> -7.289690401 | E105: =SQRT(2*$D$7*$D$8)*C$11*SIN(-50+C105+C$16) -> -3.331031296 | F105: -10.6207217 | H105: =SIN(-$C105+H$16)+$C$11*SIN(-50+$C105+H$16) -> -0.3970537897 | I105: =SIN(-$C105+I$16)+$C$11*SIN(-50+$C105+I$16) -> -0.7505032079 | J105: =SIN(-$C105+J$16)+$C$11*SIN(-50+$C105+J$16) -> -1.030488143 | K105: =SIN(-$C105+K$16)+$C$11*SIN(-50+$C105+K$16) -> -1.209601719 | L105: =SIN(-$C105+L$16)+$C$11*SIN(-50+$C105+L$16) -> -1.270311051 | M105: =SIN(-$C105+M$16)+$C$11*SIN(-50+$C105+M$16) -> -1.206673486 | N105: =SIN(-$C105+N$16)+$C$11*SIN(-50+$C105+N$16) -> -1.024918313 | O105: =SIN(-$C105+O$16)+$C$11*SIN(-50+$C105+O$16) -> -0.742836995 | P105: =SIN(-$C105+P$16)+$C$11*SIN(-50+$C105+P$16) -> -0.3880416159 | Q105: =SIN(-$C105+Q$16)+$C$11*SIN(-50+$C105+Q$16) -> 0.004737980141 | R105: =SIN(-$C105+R$16)+$C$11*SIN(-50+$C105+R$16) -> 0.3970537897 | S105: =SIN(-$C105+S$16)+$C$11*SIN(-50+$C105+S$16) -> 0.7505032079 | T105: =SIN(-$C105+T$16)+$C$11*SIN(-50+$C105+T$16) -> 1.030488143 | U105: =SIN(-$C105+U$16)+$C$11*SIN(-50+$C105+U$16) -> 1.209601719 | V105: =SIN(-$C105+V$16)+$C$11*SIN(-50+$C105+V$16) -> 1.270311051 | W105: =SIN(-$C105+W$16)+$C$11*SIN(-50+$C105+W$16) -> 1.206673486 | X105: =SIN(-$C105+X$16)+$C$11*SIN(-50+$C105+X$16) -> 1.024918313 | Y105: =SIN(-$C105+Y$16)+$C$11*SIN(-50+$C105+Y$16) -> 0.742836995 | Z105: =SIN(-$C105+Z$16)+$C$11*SIN(-50+$C105+Z$16) -> 0.3880416159 | AA105: =SIN(-$C105+AA$16)+$C$11*SIN(-50+$C105+AA$16) -> -0.004737980141 | AB105: =SIN(-$C105+AB$16)+$C$11*SIN(-50+$C105+AB$16) -> -0.3970537897 | AE105: 1.270311051
C106: 21.4 | D106: =SQRT(2*$D$7*$D$8)*SIN(-C106+C$16) -> -6.569865987 | E106: =SQRT(2*$D$7*$D$8)*C$11*SIN(-50+C106+C$16) -> -3.326755509 | F106: -9.896621496 | H106: =SIN(-$C106+H$16)+$C$11*SIN(-50+$C106+H$16) -> -0.4506683996 | I106: =SIN(-$C106+I$16)+$C$11*SIN(-50+$C106+I$16) -> -0.7827797335 | J106: =SIN(-$C106+J$16)+$C$11*SIN(-50+$C106+J$16) -> -1.038267133 | K106: =SIN(-$C106+K$16)+$C$11*SIN(-50+$C106+K$16) -> -1.192121712 | L106: =SIN(-$C106+L$16)+$C$11*SIN(-50+$C106+L$16) -> -1.229283111 | M106: =SIN(-$C106+M$16)+$C$11*SIN(-50+$C106+M$16) -> -1.146113715 | N106: =SIN(-$C106+N$16)+$C$11*SIN(-50+$C106+N$16) -> -0.9507547228 | O106: =SIN(-$C106+O$16)+$C$11*SIN(-50+$C106+O$16) -> -0.662329234 | P106: =SIN(-$C106+P$16)+$C$11*SIN(-50+$C106+P$16) -> -0.3090703451 | Q106: =SIN(-$C106+Q$16)+$C$11*SIN(-50+$C106+Q$16) -> 0.07444250266 | R106: =SIN(-$C106+R$16)+$C$11*SIN(-50+$C106+R$16) -> 0.4506683996 | S106: =SIN(-$C106+S$16)+$C$11*SIN(-50+$C106+S$16) -> 0.7827797335 | T106: =SIN(-$C106+T$16)+$C$11*SIN(-50+$C106+T$16) -> 1.038267133 | U106: =SIN(-$C106+U$16)+$C$11*SIN(-50+$C106+U$16) -> 1.192121712 | V106: =SIN(-$C106+V$16)+$C$11*SIN(-50+$C106+V$16) -> 1.229283111 | W106: =SIN(-$C106+W$16)+$C$11*SIN(-50+$C106+W$16) -> 1.146113715 | X106: =SIN(-$C106+X$16)+$C$11*SIN(-50+$C106+X$16) -> 0.9507547228 | Y106: =SIN(-$C106+Y$16)+$C$11*SIN(-50+$C106+Y$16) -> 0.662329234 | Z106: =SIN(-$C106+Z$16)+$C$11*SIN(-50+$C106+Z$16) -> 0.3090703451 | AA106: =SIN(-$C106+AA$16)+$C$11*SIN(-50+$C106+AA$16) -> -0.07444250266 | AB106: =SIN(-$C106+AB$16)+$C$11*SIN(-50+$C106+AB$16) -> -0.4506683996 | AE106: 1.229283111
C107: 21.3 | D107: =SQRT(2*$D$7*$D$8)*SIN(-C107+C$16) -> -5.784397644 | E107: =SQRT(2*$D$7*$D$8)*C$11*SIN(-50+C107+C$16) -> -3.289239881 | F107: -9.073637525 | H107: =SIN(-$C107+H$16)+$C$11*SIN(-50+$C107+H$16) -> -0.4997800797 | I107: =SIN(-$C107+I$16)+$C$11*SIN(-50+$C107+I$16) -> -0.8072349828 | J107: =SIN(-$C107+J$16)+$C$11*SIN(-50+$C107+J$16) -> -1.035672101 | K107: =SIN(-$C107+K$16)+$C$11*SIN(-50+$C107+K$16) -> -1.162730419 | L107: =SIN(-$C107+L$16)+$C$11*SIN(-50+$C107+L$16) -> -1.175972582 | M107: =SIN(-$C107+M$16)+$C$11*SIN(-50+$C107+M$16) -> -1.074102355 | N107: =SIN(-$C107+N$16)+$C$11*SIN(-50+$C107+N$16) -> -0.8670915054 | O107: =SIN(-$C107+O$16)+$C$11*SIN(-50+$C107+O$16) -> -0.5752036983 | P107: =SIN(-$C107+P$16)+$C$11*SIN(-50+$C107+P$16) -> -0.2270109455 | Q107: =SIN(-$C107+Q$16)+$C$11*SIN(-50+$C107+Q$16) -> 0.1434032203 | R107: =SIN(-$C107+R$16)+$C$11*SIN(-50+$C107+R$16) -> 0.4997800797 | S107: =SIN(-$C107+S$16)+$C$11*SIN(-50+$C107+S$16) -> 0.8072349828 | T107: =SIN(-$C107+T$16)+$C$11*SIN(-50+$C107+T$16) -> 1.035672101 | U107: =SIN(-$C107+U$16)+$C$11*SIN(-50+$C107+U$16) -> 1.162730419 | V107: =SIN(-$C107+V$16)+$C$11*SIN(-50+$C107+V$16) -> 1.175972582 | W107: =SIN(-$C107+W$16)+$C$11*SIN(-50+$C107+W$16) -> 1.074102355 | X107: =SIN(-$C107+X$16)+$C$11*SIN(-50+$C107+X$16) -> 0.8670915054 | Y107: =SIN(-$C107+Y$16)+$C$11*SIN(-50+$C107+Y$16) -> 0.5752036983 | Z107: =SIN(-$C107+Z$16)+$C$11*SIN(-50+$C107+Z$16) -> 0.2270109455 | AA107: =SIN(-$C107+AA$16)+$C$11*SIN(-50+$C107+AA$16) -> -0.1434032203 | AB107: =SIN(-$C107+AB$16)+$C$11*SIN(-50+$C107+AB$16) -> -0.4997800797 | AE107: 1.175972582
C108: 21.2 | D108: =SQRT(2*$D$7*$D$8)*SIN(-C108+C$16) -> -4.941133511 | E108: =SQRT(2*$D$7*$D$8)*C$11*SIN(-50+C108+C$16) -> -3.218859255 | F108: -8.159992767 | H108: =SIN(-$C108+H$16)+$C$11*SIN(-50+$C108+H$16) -> -0.5438981226 | I108: =SIN(-$C108+I$16)+$C$11*SIN(-50+$C108+I$16) -> -0.823624607 | J108: =SIN(-$C108+J$16)+$C$11*SIN(-50+$C108+J$16) -> -1.022728976 | K108: =SIN(-$C108+K$16)+$C$11*SIN(-50+$C108+K$16) -> -1.121721508 | L108: =SIN(-$C108+L$16)+$C$11*SIN(-50+$C108+L$16) -> -1.110912122 | M108: =SIN(-$C108+M$16)+$C$11*SIN(-50+$C108+M$16) -> -0.9913589184 | N108: =SIN(-$C108+N$16)+$C$11*SIN(-50+$C108+N$16) -> -0.7747645963 | O108: =SIN(-$C108+O$16)+$C$11*SIN(-50+$C108+O$16) -> -0.4823309173 | P108: =SIN(-$C108+P$16)+$C$11*SIN(-50+$C108+P$16) -> -0.1426833276 | Q108: =SIN(-$C108+Q$16)+$C$11*SIN(-50+$C108+Q$16) -> 0.2109311004 | R108: =SIN(-$C108+R$16)+$C$11*SIN(-50+$C108+R$16) -> 0.5438981226 | S108: =SIN(-$C108+S$16)+$C$11*SIN(-50+$C108+S$16) -> 0.823624607 | T108: =SIN(-$C108+T$16)+$C$11*SIN(-50+$C108+T$16) -> 1.022728976 | U108: =SIN(-$C108+U$16)+$C$11*SIN(-50+$C108+U$16) -> 1.121721508 | V108: =SIN(-$C108+V$16)+$C$11*SIN(-50+$C108+V$16) -> 1.110912122 | W108: =SIN(-$C108+W$16)+$C$11*SIN(-50+$C108+W$16) -> 0.9913589184 | X108: =SIN(-$C108+X$16)+$C$11*SIN(-50+$C108+X$16) -> 0.7747645963 | Y108: =SIN(-$C108+Y$16)+$C$11*SIN(-50+$C108+Y$16) -> 0.4823309173 | Z108: =SIN(-$C108+Z$16)+$C$11*SIN(-50+$C108+Z$16) -> 0.1426833276 | AA108: =SIN(-$C108+AA$16)+$C$11*SIN(-50+$C108+AA$16) -> -0.2109311004 | AB108: =SIN(-$C108+AB$16)+$C$11*SIN(-50+$C108+AB$16) -> -0.5438981226 | AE108: 1.121721508
C109: 21.1 | D109: =SQRT(2*$D$7*$D$8)*SIN(-C109+C$16) -> -4.048499206 | E109: =SQRT(2*$D$7*$D$8)*C$11*SIN(-50+C109+C$16) -> -3.116316852 | F109: -7.164816058 | H109: =SIN(-$C109+H$16)+$C$11*SIN(-50+$C109+H$16) -> -0.5825817151 | I109: =SIN(-$C109+I$16)+$C$11*SIN(-50+$C109+I$16) -> -0.8317848463 | J109: =SIN(-$C109+J$16)+$C$11*SIN(-50+$C109+J$16) -> -0.9995670814 | K109: =SIN(-$C109+K$16)+$C$11*SIN(-50+$C109+K$16) -> -1.069504726 | L109: =SIN(-$C109+L$16)+$C$11*SIN(-50+$C109+L$16) -> -1.034751797 | M109: =SIN(-$C109+M$16)+$C$11*SIN(-50+$C109+M$16) -> -0.8987101516 | N109: =SIN(-$C109+N$16)+$C$11*SIN(-50+$C109+N$16) -> -0.6746964954 | O109: =SIN(-$C109+O$16)+$C$11*SIN(-50+$C109+O$16) -> -0.3846388453 | P109: =SIN(-$C109+P$16)+$C$11*SIN(-50+$C109+P$16) -> -0.05693006506 | Q109: =SIN(-$C109+Q$16)+$C$11*SIN(-50+$C109+Q$16) -> 0.2763514266 | R109: =SIN(-$C109+R$16)+$C$11*SIN(-50+$C109+R$16) -> 0.5825817151 | S109: =SIN(-$C109+S$16)+$C$11*SIN(-50+$C109+S$16) -> 0.8317848463 | T109: =SIN(-$C109+T$16)+$C$11*SIN(-50+$C109+T$16) -> 0.9995670814 | U109: =SIN(-$C109+U$16)+$C$11*SIN(-50+$C109+U$16) -> 1.069504726 | V109: =SIN(-$C109+V$16)+$C$11*SIN(-50+$C109+V$16) -> 1.034751797 | W109: =SIN(-$C109+W$16)+$C$11*SIN(-50+$C109+W$16) -> 0.8987101516 | X109: =SIN(-$C109+X$16)+$C$11*SIN(-50+$C109+X$16) -> 0.6746964954 | Y109: =SIN(-$C109+Y$16)+$C$11*SIN(-50+$C109+Y$16) -> 0.3846388453 | Z109: =SIN(-$C109+Z$16)+$C$11*SIN(-50+$C109+Z$16) -> 0.05693006506 | AA109: =SIN(-$C109+AA$16)+$C$11*SIN(-50+$C109+AA$16) -> -0.2763514266 | AB109: =SIN(-$C109+AB$16)+$C$11*SIN(-50+$C109+AB$16) -> -0.5825817151 | AE109: 1.069504726
C110: 21 | D110: =SQRT(2*$D$7*$D$8)*SIN(-C110+C$16) -> -3.115413635 | E110: =SQRT(2*$D$7*$D$8)*C$11*SIN(-50+C110+C$16) -> -2.98263724 | F110: -6.098050876 | H110: =SIN(-$C110+H$16)+$C$11*SIN(-50+$C110+H$16) -> -0.6154443438 | I110: =SIN(-$C110+I$16)+$C$11*SIN(-50+$C110+I$16) -> -0.8316341665 | J110: =SIN(-$C110+J$16)+$C$11*SIN(-50+$C110+J$16) -> -0.9664178426 | K110: =SIN(-$C110+K$16)+$C$11*SIN(-50+$C110+K$16) -> -1.006601807 | L110: =SIN(-$C110+L$16)+$C$11*SIN(-50+$C110+L$16) -> -0.9482525728 | M110: =SIN(-$C110+M$16)+$C$11*SIN(-50+$C110+M$16) -> -0.7970817701 | N110: =SIN(-$C110+N$16)+$C$11*SIN(-50+$C110+N$16) -> -0.5678870502 | O110: =SIN(-$C110+O$16)+$C$11*SIN(-50+$C110+O$16) -> -0.283103589 | P110: =SIN(-$C110+P$16)+$C$11*SIN(-50+$C110+P$16) -> 0.02939202388 | Q110: =SIN(-$C110+Q$16)+$C$11*SIN(-50+$C110+Q$16) -> 0.3390105407 | R110: =SIN(-$C110+R$16)+$C$11*SIN(-50+$C110+R$16) -> 0.6154443438 | S110: =SIN(-$C110+S$16)+$C$11*SIN(-50+$C110+S$16) -> 0.8316341665 | T110: =SIN(-$C110+T$16)+$C$11*SIN(-50+$C110+T$16) -> 0.9664178426 | U110: =SIN(-$C110+U$16)+$C$11*SIN(-50+$C110+U$16) -> 1.006601807 | V110: =SIN(-$C110+V$16)+$C$11*SIN(-50+$C110+V$16) -> 0.9482525728 | W110: =SIN(-$C110+W$16)+$C$11*SIN(-50+$C110+W$16) -> 0.7970817701 | X110: =SIN(-$C110+X$16)+$C$11*SIN(-50+$C110+X$16) -> 0.5678870502 | Y110: =SIN(-$C110+Y$16)+$C$11*SIN(-50+$C110+Y$16) -> 0.283103589 | Z110: =SIN(-$C110+Z$16)+$C$11*SIN(-50+$C110+Z$16) -> -0.02939202388 | AA110: =SIN(-$C110+AA$16)+$C$11*SIN(-50+$C110+AA$16) -> -0.3390105407 | AB110: =SIN(-$C110+AB$16)+$C$11*SIN(-50+$C110+AB$16) -> -0.6154443438 | AE110: 1.006601807
C111: 20.9 | D111: =SQRT(2*$D$7*$D$8)*SIN(-C111+C$16) -> -2.151199881 | E111: =SQRT(2*$D$7*$D$8)*C$11*SIN(-50+C111+C$16) -> -2.819156104 | F111: -4.970355985 | H111: =SIN(-$C111+H$16)+$C$11*SIN(-50+$C111+H$16) -> -0.642157656 | I111: =SIN(-$C111+I$16)+$C$11*SIN(-50+$C111+I$16) -> -0.8231740729 | J111: =SIN(-$C111+J$16)+$C$11*SIN(-50+$C111+J$16) -> -0.9236124761 | K111: =SIN(-$C111+K$16)+$C$11*SIN(-50+$C111+K$16) -> -0.933641255 | L111: =SIN(-$C111+L$16)+$C$11*SIN(-50+$C111+L$16) -> -0.8522787228 | M111: =SIN(-$C111+M$16)+$C$11*SIN(-50+$C111+M$16) -> -0.687489211 | N111: =SIN(-$C111+N$16)+$C$11*SIN(-50+$C111+N$16) -> -0.4554034653 | O111: =SIN(-$C111+O$16)+$C$11*SIN(-50+$C111+O$16) -> -0.1787396553 | P111: =SIN(-$C111+P$16)+$C$11*SIN(-50+$C111+P$16) -> 0.1154204374 | Q111: =SIN(-$C111+Q$16)+$C$11*SIN(-50+$C111+Q$16) -> 0.3982823736 | R111: =SIN(-$C111+R$16)+$C$11*SIN(-50+$C111+R$16) -> 0.642157656 | S111: =SIN(-$C111+S$16)+$C$11*SIN(-50+$C111+S$16) -> 0.8231740729 | T111: =SIN(-$C111+T$16)+$C$11*SIN(-50+$C111+T$16) -> 0.9236124761 | U111: =SIN(-$C111+U$16)+$C$11*SIN(-50+$C111+U$16) -> 0.933641255 | V111: =SIN(-$C111+V$16)+$C$11*SIN(-50+$C111+V$16) -> 0.8522787228 | W111: =SIN(-$C111+W$16)+$C$11*SIN(-50+$C111+W$16) -> 0.687489211 | X111: =SIN(-$C111+X$16)+$C$11*SIN(-50+$C111+X$16) -> 0.4554034653 | Y111: =SIN(-$C111+Y$16)+$C$11*SIN(-50+$C111+Y$16) -> 0.1787396553 | Z111: =SIN(-$C111+Z$16)+$C$11*SIN(-50+$C111+Z$16) -> -0.1154204374 | AA111: =SIN(-$C111+AA$16)+$C$11*SIN(-50+$C111+AA$16) -> -0.3982823736 | AB111: =SIN(-$C111+AB$16)+$C$11*SIN(-50+$C111+AB$16) -> -0.642157656 | AE111: 0.933641255
C112: 20.8 | D112: =SQRT(2*$D$7*$D$8)*SIN(-C112+C$16) -> -1.165492049 | E112: =SQRT(2*$D$7*$D$8)*C$11*SIN(-50+C112+C$16) -> -2.627506891 | F112: -3.79299894 | H112: =SIN(-$C112+H$16)+$C$11*SIN(-50+$C112+H$16) -> -0.6624547412 | I112: =SIN(-$C112+I$16)+$C$11*SIN(-50+$C112+I$16) -> -0.8064890961 | J112: =SIN(-$C112+J$16)+$C$11*SIN(-50+$C112+J$16) -> -0.8715786791 | K112: =SIN(-$C112+K$16)+$C$11*SIN(-50+$C112+K$16) -> -0.8513520684 | L112: =SIN(-$C112+L$16)+$C$11*SIN(-50+$C112+L$16) -> -0.7477891855 | M112: =SIN(-$C112+M$16)+$C$11*SIN(-50+$C112+M$16) -> -0.571027487 | N112: =SIN(-$C112+N$16)+$C$11*SIN(-50+$C112+N$16) -> -0.3383696395 | O112: =SIN(-$C112+O$16)+$C$11*SIN(-50+$C112+O$16) -> -0.07258981405 | P112: =SIN(-$C112+P$16)+$C$11*SIN(-50+$C112+P$16) -> 0.2002956081 | Q112: =SIN(-$C112+Q$16)+$C$11*SIN(-50+$C112+Q$16) -> 0.4535747006 | R112: =SIN(-$C112+R$16)+$C$11*SIN(-50+$C112+R$16) -> 0.6624547412 | S112: =SIN(-$C112+S$16)+$C$11*SIN(-50+$C112+S$16) -> 0.8064890961 | T112: =SIN(-$C112+T$16)+$C$11*SIN(-50+$C112+T$16) -> 0.8715786791 | U112: =SIN(-$C112+U$16)+$C$11*SIN(-50+$C112+U$16) -> 0.8513520684 | V112: =SIN(-$C112+V$16)+$C$11*SIN(-50+$C112+V$16) -> 0.7477891855 | W112: =SIN(-$C112+W$16)+$C$11*SIN(-50+$C112+W$16) -> 0.571027487 | X112: =SIN(-$C112+X$16)+$C$11*SIN(-50+$C112+X$16) -> 0.3383696395 | Y112: =SIN(-$C112+Y$16)+$C$11*SIN(-50+$C112+Y$16) -> 0.07258981405 | Z112: =SIN(-$C112+Z$16)+$C$11*SIN(-50+$C112+Z$16) -> -0.2002956081 | AA112: =SIN(-$C112+AA$16)+$C$11*SIN(-50+$C112+AA$16) -> -0.4535747006 | AB112: =SIN(-$C112+AB$16)+$C$11*SIN(-50+$C112+AB$16) -> -0.6624547412 | AE112: 0.8715786791
C113: 20.7 | D113: =SQRT(2*$D$7*$D$8)*SIN(-C113+C$16) -> -0.1681390048 | E113: =SQRT(2*$D$7*$D$8)*C$11*SIN(-50+C113+C$16) -> -2.409604498 | F113: =D113+E113 -> -2.577743503 | H113: =SIN(-$C113+H$16)+$C$11*SIN(-50+$C113+H$16) -> -0.6761327976 | I113: =SIN(-$C113+I$16)+$C$11*SIN(-50+$C113+I$16) -> -0.7817459468 | J113: =SIN(-$C113+J$16)+$C$11*SIN(-50+$C113+J$16) -> -0.8108363561 | K113: =SIN(-$C113+K$16)+$C$11*SIN(-50+$C113+K$16) -> -0.7605564534 | L113: =SIN(-$C113+L$16)+$C$11*SIN(-50+$C113+L$16) -> -0.6358279859 | M113: =SIN(-$C113+M$16)+$C$11*SIN(-50+$C113+M$16) -> -0.4488602451 | N113: =SIN(-$C113+N$16)+$C$11*SIN(-50+$C113+N$16) -> -0.2179549361 | O113: =SIN(-$C113+O$16)+$C$11*SIN(-50+$C113+O$16) -> 0.03428532064 | P113: =SIN(-$C113+P$16)+$C$11*SIN(-50+$C113+P$16) -> 0.2831694913 | Q113: =SIN(-$C113+Q$16)+$C$11*SIN(-50+$C113+Q$16) -> 0.5043350592 | R113: =SIN(-$C113+R$16)+$C$11*SIN(-50+$C113+R$16) -> 0.6761327976 | S113: =SIN(-$C113+S$16)+$C$11*SIN(-50+$C113+S$16) -> 0.7817459468 | T113: =SIN(-$C113+T$16)+$C$11*SIN(-50+$C113+T$16) -> 0.8108363561 | U113: =SIN(-$C113+U$16)+$C$11*SIN(-50+$C113+U$16) -> 0.7605564534 | V113: =SIN(-$C113+V$16)+$C$11*SIN(-50+$C113+V$16) -> 0.6358279859 | W113: =SIN(-$C113+W$16)+$C$11*SIN(-50+$C113+W$16) -> 0.4488602451 | X113: =SIN(-$C113+X$16)+$C$11*SIN(-50+$C113+X$16) -> 0.2179549361 | Y113: =SIN(-$C113+Y$16)+$C$11*SIN(-50+$C113+Y$16) -> -0.03428532064 | Z113: =SIN(-$C113+Z$16)+$C$11*SIN(-50+$C113+Z$16) -> -0.2831694913 | AA113: =SIN(-$C113+AA$16)+$C$11*SIN(-50+$C113+AA$16) -> -0.5043350592 | AB113: =SIN(-$C113+AB$16)+$C$11*SIN(-50+$C113+AB$16) -> -0.6761327976 | AE113: 0.8108363561
C114: 20.6 | D114: =SQRT(2*$D$7*$D$8)*SIN(-C114+C$16) -> 0.8308940282 | E114: =SQRT(2*$D$7*$D$8)*C$11*SIN(-50+C114+C$16) -> -2.167626134 | F114: -1.336732106 | H114: =SIN(-$C114+H$16)+$C$11*SIN(-50+$C114+H$16) -> -0.6830551585 | I114: =SIN(-$C114+I$16)+$C$11*SIN(-50+$C114+I$16) -> -0.7491918505 | J114: =SIN(-$C114+J$16)+$C$11*SIN(-50+$C114+J$16) -> -0.7419924242 | K114: =SIN(-$C114+K$16)+$C$11*SIN(-50+$C114+K$16) -> -0.6621616096 | L114: =SIN(-$C114+L$16)+$C$11*SIN(-50+$C114+L$16) -> -0.5175138032 | M114: =SIN(-$C114+M$16)+$C$11*SIN(-50+$C114+M$16) -> -0.32220814 | N114: =SIN(-$C114+N$16)+$C$11*SIN(-50+$C114+N$16) -> -0.09536249902 | O114: =SIN(-$C114+O$16)+$C$11*SIN(-50+$C114+O$16) -> 0.1408178878 | P114: =SIN(-$C114+P$16)+$C$11*SIN(-50+$C114+P$16) -> 0.3632140385 | Q114: =SIN(-$C114+Q$16)+$C$11*SIN(-50+$C114+Q$16) -> 0.5500562686 | R114: =SIN(-$C114+R$16)+$C$11*SIN(-50+$C114+R$16) -> 0.6830551585 | S114: =SIN(-$C114+S$16)+$C$11*SIN(-50+$C114+S$16) -> 0.7491918505 | T114: =SIN(-$C114+T$16)+$C$11*SIN(-50+$C114+T$16) -> 0.7419924242 | U114: =SIN(-$C114+U$16)+$C$11*SIN(-50+$C114+U$16) -> 0.6621616096 | V114: =SIN(-$C114+V$16)+$C$11*SIN(-50+$C114+V$16) -> 0.5175138032 | W114: =SIN(-$C114+W$16)+$C$11*SIN(-50+$C114+W$16) -> 0.32220814 | X114: =SIN(-$C114+X$16)+$C$11*SIN(-50+$C114+X$16) -> 0.09536249902 | Y114: =SIN(-$C114+Y$16)+$C$11*SIN(-50+$C114+Y$16) -> -0.1408178878 | Z114: =SIN(-$C114+Z$16)+$C$11*SIN(-50+$C114+Z$16) -> -0.3632140385 | AA114: =SIN(-$C114+AA$16)+$C$11*SIN(-50+$C114+AA$16) -> -0.5500562686 | AB114: =SIN(-$C114+AB$16)+$C$11*SIN(-50+$C114+AB$16) -> -0.6830551585 | AE114: 0.7491918505
C115: 20.5 | D115: =SQRT(2*$D$7*$D$8)*SIN(-C115+C$16) -> 1.821625043 | E115: =SQRT(2*$D$7*$D$8)*C$11*SIN(-50+C115+C$16) -> -1.903989566 | F115: -0.08236452281 | H115: =SIN(-$C115+H$16)+$C$11*SIN(-50+$C115+H$16) -> -0.6831526582 | I115: =SIN(-$C115+I$16)+$C$11*SIN(-50+$C115+I$16) -> -0.7091520768 | J115: =SIN(-$C115+J$16)+$C$11*SIN(-50+$C115+J$16) -> -0.6657347493 | K115: =SIN(-$C115+K$16)+$C$11*SIN(-50+$C115+K$16) -> -0.557150666 | L115: =SIN(-$C115+L$16)+$C$11*SIN(-50+$C115+L$16) -> -0.3940287936 | M115: =SIN(-$C115+M$16)+$C$11*SIN(-50+$C115+M$16) -> -0.1923366376 | N115: =SIN(-$C115+N$16)+$C$11*SIN(-50+$C115+N$16) -> 0.02818276861 | O115: =SIN(-$C115+O$16)+$C$11*SIN(-50+$C115+O$16) -> 0.2459434491 | P115: =SIN(-$C115+P$16)+$C$11*SIN(-50+$C115+P$16) -> 0.4396294711 | Q115: =SIN(-$C115+Q$16)+$C$11*SIN(-50+$C115+Q$16) -> 0.5902814975 | R115: =SIN(-$C115+R$16)+$C$11*SIN(-50+$C115+R$16) -> 0.6831526582 | S115: =SIN(-$C115+S$16)+$C$11*SIN(-50+$C115+S$16) -> 0.7091520768 | T115: =SIN(-$C115+T$16)+$C$11*SIN(-50+$C115+T$16) -> 0.6657347493 | U115: =SIN(-$C115+U$16)+$C$11*SIN(-50+$C115+U$16) -> 0.557150666 | V115: =SIN(-$C115+V$16)+$C$11*SIN(-50+$C115+V$16) -> 0.3940287936 | W115: =SIN(-$C115+W$16)+$C$11*SIN(-50+$C115+W$16) -> 0.1923366376 | X115: =SIN(-$C115+X$16)+$C$11*SIN(-50+$C115+X$16) -> -0.02818276861 | Y115: =SIN(-$C115+Y$16)+$C$11*SIN(-50+$C115+Y$16) -> -0.2459434491 | Z115: =SIN(-$C115+Z$16)+$C$11*SIN(-50+$C115+Z$16) -> -0.4396294711 | AA115: =SIN(-$C115+AA$16)+$C$11*SIN(-50+$C115+AA$16) -> -0.5902814975 | AB115: =SIN(-$C115+AB$16)+$C$11*SIN(-50+$C115+AB$16) -> -0.6831526582 | AE115: 0.7091520768
C116: 20.4 | D116: =SQRT(2*$D$7*$D$8)*SIN(-C116+C$16) -> 2.794154982 | E116: =SQRT(2*$D$7*$D$8)*C$11*SIN(-50+C116+C$16) -> -1.621328963 | F116: 1.172826019 | H116: =SIN(-$C116+H$16)+$C$11*SIN(-50+$C116+H$16) -> -0.6764243222 | I116: =SIN(-$C116+I$16)+$C$11*SIN(-50+$C116+I$16) -> -0.66202669 | J116: =SIN(-$C116+J$16)+$C$11*SIN(-50+$C116+J$16) -> -0.5828252728 | K116: =SIN(-$C116+K$16)+$C$11*SIN(-50+$C116+K$16) -> -0.4465728571 | L116: =SIN(-$C116+L$16)+$C$11*SIN(-50+$C116+L$16) -> -0.2666067786 | M116: =SIN(-$C116+M$16)+$C$11*SIN(-50+$C116+M$16) -> -0.06054337115 | N116: =SIN(-$C116+N$16)+$C$11*SIN(-50+$C116+N$16) -> 0.1514464433 | O116: =SIN(-$C116+O$16)+$C$11*SIN(-50+$C116+O$16) -> 0.3486116247 | P116: =SIN(-$C116+P$16)+$C$11*SIN(-50+$C116+P$16) -> 0.5116522714 | Q116: =SIN(-$C116+Q$16)+$C$11*SIN(-50+$C116+Q$16) -> 0.6246088289 | R116: =SIN(-$C116+R$16)+$C$11*SIN(-50+$C116+R$16) -> 0.6764243222 | S116: =SIN(-$C116+S$16)+$C$11*SIN(-50+$C116+S$16) -> 0.66202669 | T116: =SIN(-$C116+T$16)+$C$11*SIN(-50+$C116+T$16) -> 0.5828252728 | U116: =SIN(-$C116+U$16)+$C$11*SIN(-50+$C116+U$16) -> 0.4465728571 | V116: =SIN(-$C116+V$16)+$C$11*SIN(-50+$C116+V$16) -> 0.2666067786 | W116: =SIN(-$C116+W$16)+$C$11*SIN(-50+$C116+W$16) -> 0.06054337115 | X116: =SIN(-$C116+X$16)+$C$11*SIN(-50+$C116+X$16) -> -0.1514464433 | Y116: =SIN(-$C116+Y$16)+$C$11*SIN(-50+$C116+Y$16) -> -0.3486116247 | Z116: =SIN(-$C116+Z$16)+$C$11*SIN(-50+$C116+Z$16) -> -0.5116522714 | AA116: =SIN(-$C116+AA$16)+$C$11*SIN(-50+$C116+AA$16) -> -0.6246088289 | AB116: =SIN(-$C116+AB$16)+$C$11*SIN(-50+$C116+AB$16) -> -0.6764243222 | AE116: 0.6764243222
C117: 20.3 | D117: =SQRT(2*$D$7*$D$8)*SIN(-C117+C$16) -> 3.738766648 | E117: =SQRT(2*$D$7*$D$8)*C$11*SIN(-50+C117+C$16) -> -1.322468577 | F117: 2.416298071 | H117: =SIN(-$C117+H$16)+$C$11*SIN(-50+$C117+H$16) -> -0.6629373781 | I117: =SIN(-$C117+I$16)+$C$11*SIN(-50+$C117+I$16) -> -0.6082865514 | J117: =SIN(-$C117+J$16)+$C$11*SIN(-50+$C117+J$16) -> -0.4940923988 | K117: =SIN(-$C117+K$16)+$C$11*SIN(-50+$C117+K$16) -> -0.3315330398 | L117: =SIN(-$C117+L$16)+$C$11*SIN(-50+$C117+L$16) -> -0.1365209168 | M117: =SIN(-$C117+M$16)+$C$11*SIN(-50+$C117+M$16) -> 0.07185482466 | N117: =SIN(-$C117+N$16)+$C$11*SIN(-50+$C117+N$16) -> 0.2731969153 | O117: =SIN(-$C117+O$16)+$C$11*SIN(-50+$C117+O$16) -> 0.4477965883 | P117: =SIN(-$C117+P$16)+$C$11*SIN(-50+$C117+P$16) -> 0.5785628113 | Q117: =SIN(-$C117+Q$16)+$C$11*SIN(-50+$C117+Q$16) -> 0.6526952753 | R117: =SIN(-$C117+R$16)+$C$11*SIN(-50+$C117+R$16) -> 0.6629373781 | S117: =SIN(-$C117+S$16)+$C$11*SIN(-50+$C117+S$16) -> 0.6082865514 | T117: =SIN(-$C117+T$16)+$C$11*SIN(-50+$C117+T$16) -> 0.4940923988 | U117: =SIN(-$C117+U$16)+$C$11*SIN(-50+$C117+U$16) -> 0.3315330398 | V117: =SIN(-$C117+V$16)+$C$11*SIN(-50+$C117+V$16) -> 0.1365209168 | W117: =SIN(-$C117+W$16)+$C$11*SIN(-50+$C117+W$16) -> -0.07185482466 | X117: =SIN(-$C117+X$16)+$C$11*SIN(-50+$C117+X$16) -> -0.2731969153 | Y117: =SIN(-$C117+Y$16)+$C$11*SIN(-50+$C117+Y$16) -> -0.4477965883 | Z117: =SIN(-$C117+Z$16)+$C$11*SIN(-50+$C117+Z$16) -> -0.5785628113 | AA117: =SIN(-$C117+AA$16)+$C$11*SIN(-50+$C117+AA$16) -> -0.6526952753 | AB117: =SIN(-$C117+AB$16)+$C$11*SIN(-50+$C117+AB$16) -> -0.6629373781 | AE117: 0.6629373781
C118: 20.2 | D118: =SQRT(2*$D$7*$D$8)*SIN(-C118+C$16) -> 4.646021794 | E118: =SQRT(2*$D$7*$D$8)*C$11*SIN(-50+C118+C$16) -> -1.010394522 | F118: 3.635627272 | H118: =SIN(-$C118+H$16)+$C$11*SIN(-50+$C118+H$16) -> -0.6428265828 | I118: =SIN(-$C118+I$16)+$C$11*SIN(-50+$C118+I$16) -> -0.5484686146 | J118: =SIN(-$C118+J$16)+$C$11*SIN(-50+$C118+J$16) -> -0.400422717 | K118: =SIN(-$C118+K$16)+$C$11*SIN(-50+$C118+K$16) -> -0.2131806539 | L118: =SIN(-$C118+L$16)+$C$11*SIN(-50+$C118+L$16) -> -0.005070983134 | M118: =SIN(-$C118+M$16)+$C$11*SIN(-50+$C118+M$16) -> 0.2035350708 | N118: =SIN(-$C118+N$16)+$C$11*SIN(-50+$C118+N$16) -> 0.3922176939 | O118: =SIN(-$C118+O$16)+$C$11*SIN(-50+$C118+O$16) -> 0.5425073164 | P118: =SIN(-$C118+P$16)+$C$11*SIN(-50+$C118+P$16) -> 0.6396925429 | Q118: =SIN(-$C118+Q$16)+$C$11*SIN(-50+$C118+Q$16) -> 0.6742602062 | R118: =SIN(-$C118+R$16)+$C$11*SIN(-50+$C118+R$16) -> 0.6428265828 | S118: =SIN(-$C118+S$16)+$C$11*SIN(-50+$C118+S$16) -> 0.5484686146 | T118: =SIN(-$C118+T$16)+$C$11*SIN(-50+$C118+T$16) -> 0.400422717 | U118: =SIN(-$C118+U$16)+$C$11*SIN(-50+$C118+U$16) -> 0.2131806539 | V118: =SIN(-$C118+V$16)+$C$11*SIN(-50+$C118+V$16) -> 0.005070983134 | W118: =SIN(-$C118+W$16)+$C$11*SIN(-50+$C118+W$16) -> -0.2035350708 | X118: =SIN(-$C118+X$16)+$C$11*SIN(-50+$C118+X$16) -> -0.3922176939 | Y118: =SIN(-$C118+Y$16)+$C$11*SIN(-50+$C118+Y$16) -> -0.5425073164 | Z118: =SIN(-$C118+Z$16)+$C$11*SIN(-50+$C118+Z$16) -> -0.6396925429 | AA118: =SIN(-$C118+AA$16)+$C$11*SIN(-50+$C118+AA$16) -> -0.6742602062 | AB118: =SIN(-$C118+AB$16)+$C$11*SIN(-50+$C118+AB$16) -> -0.6428265828 | AE118: 0.6742602062
C119: 20.1 | D119: =SQRT(2*$D$7*$D$8)*SIN(-C119+C$16) -> 5.506855426 | E119: =SQRT(2*$D$7*$D$8)*C$11*SIN(-50+C119+C$16) -> -0.6882249398 | F119: 4.818630486 | H119: =SIN(-$C119+H$16)+$C$11*SIN(-50+$C119+H$16) -> -0.6162928768 | I119: =SIN(-$C119+I$16)+$C$11*SIN(-50+$C119+I$16) -> -0.4831705607 | J119: =SIN(-$C119+J$16)+$C$11*SIN(-50+$C119+J$16) -> -0.3027521437 | K119: =SIN(-$C119+K$16)+$C$11*SIN(-50+$C119+K$16) -> -0.09269823744 | L119: =SIN(-$C119+L$16)+$C$11*SIN(-50+$C119+L$16) -> 0.1264296181 | M119: =SIN(-$C119+M$16)+$C$11*SIN(-50+$C119+M$16) -> 0.3331816618 | N119: =SIN(-$C119+N$16)+$C$11*SIN(-50+$C119+N$16) -> 0.507319563 | O119: =SIN(-$C119+O$16)+$C$11*SIN(-50+$C119+O$16) -> 0.6317974907 | P119: =SIN(-$C119+P$16)+$C$11*SIN(-50+$C119+P$16) -> 0.694430678 | Q119: =SIN(-$C119+Q$16)+$C$11*SIN(-50+$C119+Q$16) -> 0.6890881521 | R119: =SIN(-$C119+R$16)+$C$11*SIN(-50+$C119+R$16) -> 0.6162928768 | S119: =SIN(-$C119+S$16)+$C$11*SIN(-50+$C119+S$16) -> 0.4831705607 | T119: =SIN(-$C119+T$16)+$C$11*SIN(-50+$C119+T$16) -> 0.3027521437 | U119: =SIN(-$C119+U$16)+$C$11*SIN(-50+$C119+U$16) -> 0.09269823744 | V119: =SIN(-$C119+V$16)+$C$11*SIN(-50+$C119+V$16) -> -0.1264296181 | W119: =SIN(-$C119+W$16)+$C$11*SIN(-50+$C119+W$16) -> -0.3331816618 | X119: =SIN(-$C119+X$16)+$C$11*SIN(-50+$C119+X$16) -> -0.507319563 | Y119: =SIN(-$C119+Y$16)+$C$11*SIN(-50+$C119+Y$16) -> -0.6317974907 | Z119: =SIN(-$C119+Z$16)+$C$11*SIN(-50+$C119+Z$16) -> -0.694430678 | AA119: =SIN(-$C119+AA$16)+$C$11*SIN(-50+$C119+AA$16) -> -0.6890881521 | AB119: =SIN(-$C119+AB$16)+$C$11*SIN(-50+$C119+AB$16) -> -0.6162928768 | AE119: 0.694430678
C120: 20 | D120: =SQRT(2*$D$7*$D$8)*SIN(-C120+C$16) -> 6.312666379 | E120: =SQRT(2*$D$7*$D$8)*C$11*SIN(-50+C120+C$16) -> -0.359178841 | F120: 5.953487538 | H120: =SIN(-$C120+H$16)+$C$11*SIN(-50+$C120+H$16) -> -0.583601376 | I120: =SIN(-$C120+I$16)+$C$11*SIN(-50+$C120+I$16) -> -0.4130448263 | J120: =SIN(-$C120+J$16)+$C$11*SIN(-50+$C120+J$16) -> -0.202056571 | K120: =SIN(-$C120+K$16)+$C$11*SIN(-50+$C120+K$16) -> 0.02871038918 | L120: =SIN(-$C120+L$16)+$C$11*SIN(-50+$C120+L$16) -> 0.2566669765 | M120: =SIN(-$C120+M$16)+$C$11*SIN(-50+$C120+M$16) -> 0.4594992118 | N120: =SIN(-$C120+N$16)+$C$11*SIN(-50+$C120+N$16) -> 0.6173524627 | O120: =SIN(-$C120+O$16)+$C$11*SIN(-50+$C120+O$16) -> 0.7147749533 | P120: =SIN(-$C120+P$16)+$C$11*SIN(-50+$C120+P$16) -> 0.7422302913 | Q120: =SIN(-$C120+Q$16)+$C$11*SIN(-50+$C120+Q$16) -> 0.6970309569 | R120: =SIN(-$C120+R$16)+$C$11*SIN(-50+$C120+R$16) -> 0.583601376 | S120: =SIN(-$C120+S$16)+$C$11*SIN(-50+$C120+S$16) -> 0.4130448263 | T120: =SIN(-$C120+T$16)+$C$11*SIN(-50+$C120+T$16) -> 0.202056571 | U120: =SIN(-$C120+U$16)+$C$11*SIN(-50+$C120+U$16) -> -0.02871038918 | V120: =SIN(-$C120+V$16)+$C$11*SIN(-50+$C120+V$16) -> -0.2566669765 | W120: =SIN(-$C120+W$16)+$C$11*SIN(-50+$C120+W$16) -> -0.4594992118 | X120: =SIN(-$C120+X$16)+$C$11*SIN(-50+$C120+X$16) -> -0.6173524627 | Y120: =SIN(-$C120+Y$16)+$C$11*SIN(-50+$C120+Y$16) -> -0.7147749533 | Z120: =SIN(-$C120+Z$16)+$C$11*SIN(-50+$C120+Z$16) -> -0.7422302913 | AA120: =SIN(-$C120+AA$16)+$C$11*SIN(-50+$C120+AA$16) -> -0.6970309569 | AB120: =SIN(-$C120+AB$16)+$C$11*SIN(-50+$C120+AB$16) -> -0.583601376 | AE120: 0.7422302913
C121: 19.9 | D121: =SQRT(2*$D$7*$D$8)*SIN(-C121+C$16) -> 7.055403256 | E121: =SQRT(2*$D$7*$D$8)*C$11*SIN(-50+C121+C$16) -> -0.02654394595 | F121: 7.02885931 | H121: =SIN(-$C121+H$16)+$C$11*SIN(-50+$C121+H$16) -> -0.5450787233 | I121: =SIN(-$C121+I$16)+$C$11*SIN(-50+$C121+I$16) -> -0.3387920845 | J121: =SIN(-$C121+J$16)+$C$11*SIN(-50+$C121+J$16) -> -0.09934211592 | K121: =SIN(-$C121+K$16)+$C$11*SIN(-50+$C121+K$16) -> 0.1498321511 | L121: =SIN(-$C121+L$16)+$C$11*SIN(-50+$C121+L$16) -> 0.3843398032 | M121: =SIN(-$C121+M$16)+$C$11*SIN(-50+$C121+M$16) -> 0.5812255975 | N121: =SIN(-$C121+N$16)+$C$11*SIN(-50+$C121+N$16) -> 0.7212169807 | O121: =SIN(-$C121+O$16)+$C$11*SIN(-50+$C121+O$16) -> 0.7906106208 | P121: =SIN(-$C121+P$16)+$C$11*SIN(-50+$C121+P$16) -> 0.7826137849 | Q121: =SIN(-$C121+Q$16)+$C$11*SIN(-50+$C121+Q$16) -> 0.6980092589 | R121: =SIN(-$C121+R$16)+$C$11*SIN(-50+$C121+R$16) -> 0.5450787233 | S121: =SIN(-$C121+S$16)+$C$11*SIN(-50+$C121+S$16) -> 0.3387920845 | T121: =SIN(-$C121+T$16)+$C$11*SIN(-50+$C121+T$16) -> 0.09934211592 | U121: =SIN(-$C121+U$16)+$C$11*SIN(-50+$C121+U$16) -> -0.1498321511 | V121: =SIN(-$C121+V$16)+$C$11*SIN(-50+$C121+V$16) -> -0.3843398032 | W121: =SIN(-$C121+W$16)+$C$11*SIN(-50+$C121+W$16) -> -0.5812255975 | X121: =SIN(-$C121+X$16)+$C$11*SIN(-50+$C121+X$16) -> -0.7212169807 | Y121: =SIN(-$C121+Y$16)+$C$11*SIN(-50+$C121+Y$16) -> -0.7906106208 | Z121: =SIN(-$C121+Z$16)+$C$11*SIN(-50+$C121+Z$16) -> -0.7826137849 | AA121: =SIN(-$C121+AA$16)+$C$11*SIN(-50+$C121+AA$16) -> -0.6980092589 | AB121: =SIN(-$C121+AB$16)+$C$11*SIN(-50+$C121+AB$16) -> -0.5450787233 | AE121: 0.7906106208
C122: 19.8 | D122: =SQRT(2*$D$7*$D$8)*SIN(-C122+C$16) -> 7.727644876 | E122: =SQRT(2*$D$7*$D$8)*C$11*SIN(-50+C122+C$16) -> 0.3063561674 | F122: 8.034001043 | H122: =SIN(-$C122+H$16)+$C$11*SIN(-50+$C122+H$16) -> -0.5011098241 | I122: =SIN(-$C122+I$16)+$C$11*SIN(-50+$C122+I$16) -> -0.2611542441 | J122: =SIN(-$C122+J$16)+$C$11*SIN(-50+$C122+J$16) -> 0.004364932773 | K122: =SIN(-$C122+K$16)+$C$11*SIN(-50+$C122+K$16) -> 0.2694568397 | L122: =SIN(-$C122+L$16)+$C$11*SIN(-50+$C122+L$16) -> 0.5081724337 | M122: =SIN(-$C122+M$16)+$C$11*SIN(-50+$C122+M$16) -> 0.6971445692 | N122: =SIN(-$C122+N$16)+$C$11*SIN(-50+$C122+N$16) -> 0.817875337 | O122: =SIN(-$C122+O$16)+$C$11*SIN(-50+$C122+O$16) -> 0.8585467684 | P122: =SIN(-$C122+P$16)+$C$11*SIN(-50+$C122+P$16) -> 0.8151776602 | Q122: =SIN(-$C122+Q$16)+$C$11*SIN(-50+$C122+Q$16) -> 0.692013283 | R122: =SIN(-$C122+R$16)+$C$11*SIN(-50+$C122+R$16) -> 0.5011098241 | S122: =SIN(-$C122+S$16)+$C$11*SIN(-50+$C122+S$16) -> 0.2611542441 | T122: =SIN(-$C122+T$16)+$C$11*SIN(-50+$C122+T$16) -> -0.004364932773 | U122: =SIN(-$C122+U$16)+$C$11*SIN(-50+$C122+U$16) -> -0.2694568397 | V122: =SIN(-$C122+V$16)+$C$11*SIN(-50+$C122+V$16) -> -0.5081724337 | W122: =SIN(-$C122+W$16)+$C$11*SIN(-50+$C122+W$16) -> -0.6971445692 | X122: =SIN(-$C122+X$16)+$C$11*SIN(-50+$C122+X$16) -> -0.817875337 | Y122: =SIN(-$C122+Y$16)+$C$11*SIN(-50+$C122+Y$16) -> -0.8585467684 | Z122: =SIN(-$C122+Z$16)+$C$11*SIN(-50+$C122+Z$16) -> -0.8151776602 | AA122: =SIN(-$C122+AA$16)+$C$11*SIN(-50+$C122+AA$16) -> -0.692013283 | AB122: =SIN(-$C122+AB$16)+$C$11*SIN(-50+$C122+AB$16) -> -0.5011098241 | AE122: 0.8585467684
C123: 19.7 | D123: =SQRT(2*$D$7*$D$8)*SIN(-C123+C$16) -> 8.322674422 | E123: =SQRT(2*$D$7*$D$8)*C$11*SIN(-50+C123+C$16) -> 0.6361952712 | F123: 8.958869693 | H123: =SIN(-$C123+H$16)+$C$11*SIN(-50+$C123+H$16) -> -0.4521340012 | I123: =SIN(-$C123+I$16)+$C$11*SIN(-50+$C123+I$16) -> -0.1809070369 | J123: =SIN(-$C123+J$16)+$C$11*SIN(-50+$C123+J$16) -> 0.1080283685 | K123: =SIN(-$C123+K$16)+$C$11*SIN(-50+$C123+K$16) -> 0.3863892046 | L123: =SIN(-$C123+L$16)+$C$11*SIN(-50+$C123+L$16) -> 0.6269275731 | M123: =SIN(-$C123+M$16)+$C$11*SIN(-50+$C123+M$16) -> 0.8060979028 | N123: =SIN(-$C123+N$16)+$C$11*SIN(-50+$C123+N$16) -> 0.9063617533 | O123: =SIN(-$C123+O$16)+$C$11*SIN(-50+$C123+O$16) -> 0.9179046005 | P123: =SIN(-$C123+P$16)+$C$11*SIN(-50+$C123+P$16) -> 0.8395965499 | Q123: =SIN(-$C123+Q$16)+$C$11*SIN(-50+$C123+Q$16) -> 0.6791029391 | R123: =SIN(-$C123+R$16)+$C$11*SIN(-50+$C123+R$16) -> 0.4521340012 | S123: =SIN(-$C123+S$16)+$C$11*SIN(-50+$C123+S$16) -> 0.1809070369 | T123: =SIN(-$C123+T$16)+$C$11*SIN(-50+$C123+T$16) -> -0.1080283685 | U123: =SIN(-$C123+U$16)+$C$11*SIN(-50+$C123+U$16) -> -0.3863892046 | V123: =SIN(-$C123+V$16)+$C$11*SIN(-50+$C123+V$16) -> -0.6269275731 | W123: =SIN(-$C123+W$16)+$C$11*SIN(-50+$C123+W$16) -> -0.8060979028 | X123: =SIN(-$C123+X$16)+$C$11*SIN(-50+$C123+X$16) -> -0.9063617533 | Y123: =SIN(-$C123+Y$16)+$C$11*SIN(-50+$C123+Y$16) -> -0.9179046005 | Z123: =SIN(-$C123+Z$16)+$C$11*SIN(-50+$C123+Z$16) -> -0.8395965499 | AA123: =SIN(-$C123+AA$16)+$C$11*SIN(-50+$C123+AA$16) -> -0.6791029391 | AB123: =SIN(-$C123+AB$16)+$C$11*SIN(-50+$C123+AB$16) -> -0.4521340012 | AE123: 0.9179046005
C124: 19.6 | D124: =SQRT(2*$D$7*$D$8)*SIN(-C124+C$16) -> 8.834546557 | E124: =SQRT(2*$D$7*$D$8)*C$11*SIN(-50+C124+C$16) -> 0.9596777222 | F124: 9.794224279 | H124: =SIN(-$C124+H$16)+$C$11*SIN(-50+$C124+H$16) -> -0.3986406048 | I124: =SIN(-$C124+I$16)+$C$11*SIN(-50+$C124+I$16) -> -0.09885226644 | J124: =SIN(-$C124+J$16)+$C$11*SIN(-50+$C124+J$16) -> 0.2106124205 | K124: =SIN(-$C124+K$16)+$C$11*SIN(-50+$C124+K$16) -> 0.4994608963 | L124: =SIN(-$C124+L$16)+$C$11*SIN(-50+$C124+L$16) -> 0.7394186596 | M124: =SIN(-$C124+M$16)+$C$11*SIN(-50+$C124+M$16) -> 0.9069969726 | N124: =SIN(-$C124+N$16)+$C$11*SIN(-50+$C124+N$16) -> 0.9857921026 | O124: =SIN(-$C124+O$16)+$C$11*SIN(-50+$C124+O$16) -> 0.9680910332 | P124: =SIN(-$C124+P$16)+$C$11*SIN(-50+$C124+P$16) -> 0.8556264683 | Q124: =SIN(-$C124+Q$16)+$C$11*SIN(-50+$C124+Q$16) -> 0.6594072232 | R124: =SIN(-$C124+R$16)+$C$11*SIN(-50+$C124+R$16) -> 0.3986406048 | S124: =SIN(-$C124+S$16)+$C$11*SIN(-50+$C124+S$16) -> 0.09885226644 | T124: =SIN(-$C124+T$16)+$C$11*SIN(-50+$C124+T$16) -> -0.2106124205 | U124: =SIN(-$C124+U$16)+$C$11*SIN(-50+$C124+U$16) -> -0.4994608963 | V124: =SIN(-$C124+V$16)+$C$11*SIN(-50+$C124+V$16) -> -0.7394186596 | W124: =SIN(-$C124+W$16)+$C$11*SIN(-50+$C124+W$16) -> -0.9069969726 | X124: =SIN(-$C124+X$16)+$C$11*SIN(-50+$C124+X$16) -> -0.9857921026 | Y124: =SIN(-$C124+Y$16)+$C$11*SIN(-50+$C124+Y$16) -> -0.9680910332 | Z124: =SIN(-$C124+Z$16)+$C$11*SIN(-50+$C124+Z$16) -> -0.8556264683 | AA124: =SIN(-$C124+AA$16)+$C$11*SIN(-50+$C124+AA$16) -> -0.6594072232 | AB124: =SIN(-$C124+AB$16)+$C$11*SIN(-50+$C124+AB$16) -> -0.3986406048 | AE124: 0.9857921026
C125: 19.5 | D125: =SQRT(2*$D$7*$D$8)*SIN(-C125+C$16) -> 9.258146823 | E125: =SQRT(2*$D$7*$D$8)*C$11*SIN(-50+C125+C$16) -> 1.273571391 | F125: 10.53171821 | H125: =SIN(-$C125+H$16)+$C$11*SIN(-50+$C125+H$16) -> -0.3411641232 | I125: =SIN(-$C125+I$16)+$C$11*SIN(-50+$C125+I$16) -> -0.01580979676 | J125: =SIN(-$C125+J$16)+$C$11*SIN(-50+$C125+J$16) -> 0.3110921028 | K125: =SIN(-$C125+K$16)+$C$11*SIN(-50+$C125+K$16) -> 0.6075421398 | L125: =SIN(-$C125+L$16)+$C$11*SIN(-50+$C125+L$16) -> 0.8445217191 | M125: =SIN(-$C125+M$16)+$C$11*SIN(-50+$C125+M$16) -> 0.9988336285 | N125: =SIN(-$C125+N$16)+$C$11*SIN(-50+$C125+N$16) -> 1.055372743 | O125: =SIN(-$C125+O$16)+$C$11*SIN(-50+$C125+O$16) -> 1.00860462 | P125: =SIN(-$C125+P$16)+$C$11*SIN(-50+$C125+P$16) -> 0.8631072499 | Q125: =SIN(-$C125+Q$16)+$C$11*SIN(-50+$C125+Q$16) -> 0.6331229283 | R125: =SIN(-$C125+R$16)+$C$11*SIN(-50+$C125+R$16) -> 0.3411641232 | S125: =SIN(-$C125+S$16)+$C$11*SIN(-50+$C125+S$16) -> 0.01580979676 | T125: =SIN(-$C125+T$16)+$C$11*SIN(-50+$C125+T$16) -> -0.3110921028 | U125: =SIN(-$C125+U$16)+$C$11*SIN(-50+$C125+U$16) -> -0.6075421398 | V125: =SIN(-$C125+V$16)+$C$11*SIN(-50+$C125+V$16) -> -0.8445217191 | W125: =SIN(-$C125+W$16)+$C$11*SIN(-50+$C125+W$16) -> -0.9988336285 | X125: =SIN(-$C125+X$16)+$C$11*SIN(-50+$C125+X$16) -> -1.055372743 | Y125: =SIN(-$C125+Y$16)+$C$11*SIN(-50+$C125+Y$16) -> -1.00860462 | Z125: =SIN(-$C125+Z$16)+$C$11*SIN(-50+$C125+Z$16) -> -0.8631072499 | AA125: =SIN(-$C125+AA$16)+$C$11*SIN(-50+$C125+AA$16) -> -0.6331229283 | AB125: =SIN(-$C125+AB$16)+$C$11*SIN(-50+$C125+AB$16) -> -0.3411641232 | AE125: 1.055372743
C126: 19.4 | D126: =SQRT(2*$D$7*$D$8)*SIN(-C126+C$16) -> 9.589242747 | E126: =SQRT(2*$D$7*$D$8)*C$11*SIN(-50+C126+C$16) -> 1.574739955 | F126: 11.1639827 | H126: =SIN(-$C126+H$16)+$C$11*SIN(-50+$C126+H$16) -> -0.2802788425 | I126: =SIN(-$C126+I$16)+$C$11*SIN(-50+$C126+I$16) -> 0.06739063918 | J126: =SIN(-$C126+J$16)+$C$11*SIN(-50+$C126+J$16) -> 0.4084634556 | K126: =SIN(-$C126+K$16)+$C$11*SIN(-50+$C126+K$16) -> 0.7095530231 | L126: =SIN(-$C126+L$16)+$C$11*SIN(-50+$C126+L$16) -> 0.9411865969 | M126: =SIN(-$C126+M$16)+$C$11*SIN(-50+$C126+M$16) -> 1.080690269 | N126: =SIN(-$C126+N$16)+$C$11*SIN(-50+$C126+N$16) -> 1.114408448 | O126: =SIN(-$C126+O$16)+$C$11*SIN(-50+$C126+O$16) -> 1.039040563 | P126: =SIN(-$C126+P$16)+$C$11*SIN(-50+$C126+P$16) -> 0.8619641492 | Q126: =SIN(-$C126+Q$16)+$C$11*SIN(-50+$C126+Q$16) -> 0.6005126783 | R126: =SIN(-$C126+R$16)+$C$11*SIN(-50+$C126+R$16) -> 0.2802788425 | S126: =SIN(-$C126+S$16)+$C$11*SIN(-50+$C126+S$16) -> -0.06739063918 | T126: =SIN(-$C126+T$16)+$C$11*SIN(-50+$C126+T$16) -> -0.4084634556 | U126: =SIN(-$C126+U$16)+$C$11*SIN(-50+$C126+U$16) -> -0.7095530231 | V126: =SIN(-$C126+V$16)+$C$11*SIN(-50+$C126+V$16) -> -0.9411865969 | W126: =SIN(-$C126+W$16)+$C$11*SIN(-50+$C126+W$16) -> -1.080690269 | X126: =SIN(-$C126+X$16)+$C$11*SIN(-50+$C126+X$16) -> -1.114408448 | Y126: =SIN(-$C126+Y$16)+$C$11*SIN(-50+$C126+Y$16) -> -1.039040563 | Z126: =SIN(-$C126+Z$16)+$C$11*SIN(-50+$C126+Z$16) -> -0.8619641492 | AA126: =SIN(-$C126+AA$16)+$C$11*SIN(-50+$C126+AA$16) -> -0.6005126783 | AB126: =SIN(-$C126+AB$16)+$C$11*SIN(-50+$C126+AB$16) -> -0.2802788425 | AE126: 1.114408448
C127: 19.3 | D127: =SQRT(2*$D$7*$D$8)*SIN(-C127+C$16) -> 9.824526126 | E127: =SQRT(2*$D$7*$D$8)*C$11*SIN(-50+C127+C$16) -> 1.860174238 | F127: 11.68470036 | H127: =SIN(-$C127+H$16)+$C$11*SIN(-50+$C127+H$16) -> -0.2165931083 | I127: =SIN(-$C127+I$16)+$C$11*SIN(-50+$C127+I$16) -> 0.1499177301 | J127: =SIN(-$C127+J$16)+$C$11*SIN(-50+$C127+J$16) -> 0.5017535766 | K127: =SIN(-$C127+K$16)+$C$11*SIN(-50+$C127+K$16) -> 0.8044742871 | L127: =SIN(-$C127+L$16)+$C$11*SIN(-50+$C127+L$16) -> 1.028447449 | M127: =SIN(-$C127+M$16)+$C$11*SIN(-50+$C127+M$16) -> 1.151749009 | N127: =SIN(-$C127+N$16)+$C$11*SIN(-50+$C127+N$16) -> 1.162309352 | O127: =SIN(-$C127+O$16)+$C$11*SIN(-50+$C127+O$16) -> 1.059094757 | P127: =SIN(-$C127+P$16)+$C$11*SIN(-50+$C127+P$16) -> 0.8522085876 | Q127: =SIN(-$C127+Q$16)+$C$11*SIN(-50+$C127+Q$16) -> 0.5619023042 | R127: =SIN(-$C127+R$16)+$C$11*SIN(-50+$C127+R$16) -> 0.2165931083 | S127: =SIN(-$C127+S$16)+$C$11*SIN(-50+$C127+S$16) -> -0.1499177301 | T127: =SIN(-$C127+T$16)+$C$11*SIN(-50+$C127+T$16) -> -0.5017535766 | U127: =SIN(-$C127+U$16)+$C$11*SIN(-50+$C127+U$16) -> -0.8044742871 | V127: =SIN(-$C127+V$16)+$C$11*SIN(-50+$C127+V$16) -> -1.028447449 | W127: =SIN(-$C127+W$16)+$C$11*SIN(-50+$C127+W$16) -> -1.151749009 | X127: =SIN(-$C127+X$16)+$C$11*SIN(-50+$C127+X$16) -> -1.162309352 | Y127: =SIN(-$C127+Y$16)+$C$11*SIN(-50+$C127+Y$16) -> -1.059094757 | Z127: =SIN(-$C127+Z$16)+$C$11*SIN(-50+$C127+Z$16) -> -0.8522085876 | AA127: =SIN(-$C127+AA$16)+$C$11*SIN(-50+$C127+AA$16) -> -0.5619023042 | AB127: =SIN(-$C127+AB$16)+$C$11*SIN(-50+$C127+AB$16) -> -0.2165931083 | AE127: 1.162309352
C128: 19.2 | D128: =SQRT(2*$D$7*$D$8)*SIN(-C128+C$16) -> 9.961646088 | E128: =SQRT(2*$D$7*$D$8)*C$11*SIN(-50+C128+C$16) -> 2.127022274 | F128: 12.08866836 | H128: =SIN(-$C128+H$16)+$C$11*SIN(-50+$C128+H$16) -> -0.1507432473 | I128: =SIN(-$C128+I$16)+$C$11*SIN(-50+$C128+I$16) -> 0.2309468927 | J128: =SIN(-$C128+J$16)+$C$11*SIN(-50+$C128+J$16) -> 0.5900303417 | K128: =SIN(-$C128+K$16)+$C$11*SIN(-50+$C128+K$16) -> 0.89135751 | L128: =SIN(-$C128+L$16)+$C$11*SIN(-50+$C128+L$16) -> 1.105432395 | M128: =SIN(-$C128+M$16)+$C$11*SIN(-50+$C128+M$16) -> 1.211299855 | N128: =SIN(-$C128+N$16)+$C$11*SIN(-50+$C128+N$16) -> 1.198596845 | O128: =SIN(-$C128+O$16)+$C$11*SIN(-50+$C128+O$16) -> 1.068566825 | P128: =SIN(-$C128+P$16)+$C$11*SIN(-50+$C128+P$16) -> 0.8339380395 | Q128: =SIN(-$C128+Q$16)+$C$11*SIN(-50+$C128+Q$16) -> 0.517677588 | R128: =SIN(-$C128+R$16)+$C$11*SIN(-50+$C128+R$16) -> 0.1507432473 | S128: =SIN(-$C128+S$16)+$C$11*SIN(-50+$C128+S$16) -> -0.2309468927 | T128: =SIN(-$C128+T$16)+$C$11*SIN(-50+$C128+T$16) -> -0.5900303417 | U128: =SIN(-$C128+U$16)+$C$11*SIN(-50+$C128+U$16) -> -0.89135751 | V128: =SIN(-$C128+V$16)+$C$11*SIN(-50+$C128+V$16) -> -1.105432395 | W128: =SIN(-$C128+W$16)+$C$11*SIN(-50+$C128+W$16) -> -1.211299855 | X128: =SIN(-$C128+X$16)+$C$11*SIN(-50+$C128+X$16) -> -1.198596845 | Y128: =SIN(-$C128+Y$16)+$C$11*SIN(-50+$C128+Y$16) -> -1.068566825 | Z128: =SIN(-$C128+Z$16)+$C$11*SIN(-50+$C128+Z$16) -> -0.8339380395 | AA128: =SIN(-$C128+AA$16)+$C$11*SIN(-50+$C128+AA$16) -> -0.517677588 | AB128: =SIN(-$C128+AB$16)+$C$11*SIN(-50+$C128+AB$16) -> -0.1507432473 | AE128: 1.211299855
C129: 19.1 | D129: =SQRT(2*$D$7*$D$8)*SIN(-C129+C$16) -> 9.999232576 | E129: =SQRT(2*$D$7*$D$8)*C$11*SIN(-50+C129+C$16) -> 2.372617808 | F129: 12.37185038 | H129: =SIN(-$C129+H$16)+$C$11*SIN(-50+$C129+H$16) -> -0.08338720966 | I129: =SIN(-$C129+I$16)+$C$11*SIN(-50+$C129+I$16) -> 0.3096685102 | J129: =SIN(-$C129+J$16)+$C$11*SIN(-50+$C129+J$16) -> 0.6724117187 | K129: =SIN(-$C129+K$16)+$C$11*SIN(-50+$C129+K$16) -> 0.9693345832 | L129: =SIN(-$C129+L$16)+$C$11*SIN(-50+$C129+L$16) -> 1.171372225 | M129: =SIN(-$C129+M$16)+$C$11*SIN(-50+$C129+M$16) -> 1.258747792 | N129: =SIN(-$C129+N$16)+$C$11*SIN(-50+$C129+N$16) -> 1.222908355 | O129: =SIN(-$C129+O$16)+$C$11*SIN(-50+$C129+O$16) -> 1.067362127 | P129: =SIN(-$C129+P$16)+$C$11*SIN(-50+$C129+P$16) -> 0.8073350582 | Q129: =SIN(-$C129+Q$16)+$C$11*SIN(-50+$C129+Q$16) -> 0.4682804085 | R129: =SIN(-$C129+R$16)+$C$11*SIN(-50+$C129+R$16) -> 0.08338720966 | S129: =SIN(-$C129+S$16)+$C$11*SIN(-50+$C129+S$16) -> -0.3096685102 | T129: =SIN(-$C129+T$16)+$C$11*SIN(-50+$C129+T$16) -> -0.6724117187 | U129: =SIN(-$C129+U$16)+$C$11*SIN(-50+$C129+U$16) -> -0.9693345832 | V129: =SIN(-$C129+V$16)+$C$11*SIN(-50+$C129+V$16) -> -1.171372225 | W129: =SIN(-$C129+W$16)+$C$11*SIN(-50+$C129+W$16) -> -1.258747792 | X129: =SIN(-$C129+X$16)+$C$11*SIN(-50+$C129+X$16) -> -1.222908355 | Y129: =SIN(-$C129+Y$16)+$C$11*SIN(-50+$C129+Y$16) -> -1.067362127 | Z129: =SIN(-$C129+Z$16)+$C$11*SIN(-50+$C129+Z$16) -> -0.8073350582 | AA129: =SIN(-$C129+AA$16)+$C$11*SIN(-50+$C129+AA$16) -> -0.4682804085 | AB129: =SIN(-$C129+AB$16)+$C$11*SIN(-50+$C129+AB$16) -> -0.08338720966 | AE129: 1.258747792
C130: 19 | D130: =SQRT(2*$D$7*$D$8)*SIN(-C130+C$16) -> 9.936910036 | E130: =SQRT(2*$D$7*$D$8)*C$11*SIN(-50+C130+C$16) -> 2.594506928 | F130: 12.53141696 | H130: =SIN(-$C130+H$16)+$C$11*SIN(-50+$C130+H$16) -> -0.01519799456 | I130: =SIN(-$C130+I$16)+$C$11*SIN(-50+$C130+I$16) -> 0.3852960224 | J130: =SIN(-$C130+J$16)+$C$11*SIN(-50+$C130+J$16) -> 0.7480745801 | K130: =SIN(-$C130+K$16)+$C$11*SIN(-50+$C130+K$16) -> 1.037626386 | L130: =SIN(-$C130+L$16)+$C$11*SIN(-50+$C130+L$16) -> 1.225608091 | M130: =SIN(-$C130+M$16)+$C$11*SIN(-50+$C130+M$16) -> 1.293618737 | N130: =SIN(-$C130+N$16)+$C$11*SIN(-50+$C130+N$16) -> 1.235000968 | O130: =SIN(-$C130+O$16)+$C$11*SIN(-50+$C130+O$16) -> 1.0554927 | P130: =SIN(-$C130+P$16)+$C$11*SIN(-50+$C130+P$16) -> 0.7726654518 | Q130: =SIN(-$C130+Q$16)+$C$11*SIN(-50+$C130+Q$16) -> 0.4142043259 | R130: =SIN(-$C130+R$16)+$C$11*SIN(-50+$C130+R$16) -> 0.01519799456 | S130: =SIN(-$C130+S$16)+$C$11*SIN(-50+$C130+S$16) -> -0.3852960224 | T130: =SIN(-$C130+T$16)+$C$11*SIN(-50+$C130+T$16) -> -0.7480745801 | U130: =SIN(-$C130+U$16)+$C$11*SIN(-50+$C130+U$16) -> -1.037626386 | V130: =SIN(-$C130+V$16)+$C$11*SIN(-50+$C130+V$16) -> -1.225608091 | W130: =SIN(-$C130+W$16)+$C$11*SIN(-50+$C130+W$16) -> -1.293618737 | X130: =SIN(-$C130+X$16)+$C$11*SIN(-50+$C130+X$16) -> -1.235000968 | Y130: =SIN(-$C130+Y$16)+$C$11*SIN(-50+$C130+Y$16) -> -1.0554927 | Z130: =SIN(-$C130+Z$16)+$C$11*SIN(-50+$C130+Z$16) -> -0.7726654518 | AA130: =SIN(-$C130+AA$16)+$C$11*SIN(-50+$C130+AA$16) -> -0.4142043259 | AB130: =SIN(-$C130+AB$16)+$C$11*SIN(-50+$C130+AB$16) -> -0.01519799456 | AE130: 1.293618737
C131: 18.9 | D131: =SQRT(2*$D$7*$D$8)*SIN(-C131+C$16) -> 9.775301177 | E131: =SQRT(2*$D$7*$D$8)*C$11*SIN(-50+C131+C$16) -> 2.790472593 | F131: 12.56577377 | H131: =SIN(-$C131+H$16)+$C$11*SIN(-50+$C131+H$16) -> 0.05314307389 | I131: =SIN(-$C131+I$16)+$C$11*SIN(-50+$C131+I$16) -> 0.457073784 | J131: =SIN(-$C131+J$16)+$C$11*SIN(-50+$C131+J$16) -> 0.8162629275 | K131: =SIN(-$C131+K$16)+$C$11*SIN(-50+$C131+K$16) -> 1.095550568 | L131: =SIN(-$C131+L$16)+$C$11*SIN(-50+$C131+L$16) -> 1.267598087 | M131: =SIN(-$C131+M$16)+$C$11*SIN(-50+$C131+M$16) -> 1.315564272 | N131: =SIN(-$C131+N$16)+$C$11*SIN(-50+$C131+N$16) -> 1.234753861 | O131: =SIN(-$C131+O$16)+$C$11*SIN(-50+$C131+O$16) -> 1.033077138 | P131: =SIN(-$C131+P$16)+$C$11*SIN(-50+$C131+P$16) -> 0.7302756277 | Q131: =SIN(-$C131+Q$16)+$C$11*SIN(-50+$C131+Q$16) -> 0.3559896506 | R131: =SIN(-$C131+R$16)+$C$11*SIN(-50+$C131+R$16) -> -0.05314307389 | S131: =SIN(-$C131+S$16)+$C$11*SIN(-50+$C131+S$16) -> -0.457073784 | T131: =SIN(-$C131+T$16)+$C$11*SIN(-50+$C131+T$16) -> -0.8162629275 | U131: =SIN(-$C131+U$16)+$C$11*SIN(-50+$C131+U$16) -> -1.095550568 | V131: =SIN(-$C131+V$16)+$C$11*SIN(-50+$C131+V$16) -> -1.267598087 | W131: =SIN(-$C131+W$16)+$C$11*SIN(-50+$C131+W$16) -> -1.315564272 | X131: =SIN(-$C131+X$16)+$C$11*SIN(-50+$C131+X$16) -> -1.234753861 | Y131: =SIN(-$C131+Y$16)+$C$11*SIN(-50+$C131+Y$16) -> -1.033077138 | Z131: =SIN(-$C131+Z$16)+$C$11*SIN(-50+$C131+Z$16) -> -0.7302756277 | AA131: =SIN(-$C131+AA$16)+$C$11*SIN(-50+$C131+AA$16) -> -0.3559896506 | AB131: =SIN(-$C131+AB$16)+$C$11*SIN(-50+$C131+AB$16) -> 0.05314307389 | AE131: 1.315564272
C132: 18.8 | D132: =SQRT(2*$D$7*$D$8)*SIN(-C132+C$16) -> 9.516020739 | E132: =SQRT(2*$D$7*$D$8)*C$11*SIN(-50+C132+C$16) -> 2.958556779 | F132: 12.47457752 | H132: =SIN(-$C132+H$16)+$C$11*SIN(-50+$C132+H$16) -> 0.1209531543 | I132: =SIN(-$C132+I$16)+$C$11*SIN(-50+$C132+I$16) -> 0.5242846155 | J132: =SIN(-$C132+J$16)+$C$11*SIN(-50+$C132+J$16) -> 0.8762954456 | K132: =SIN(-$C132+K$16)+$C$11*SIN(-50+$C132+K$16) -> 1.142528372 | L132: =SIN(-$C132+L$16)+$C$11*SIN(-50+$C132+L$16) -> 1.296922661 | M132: =SIN(-$C132+M$16)+$C$11*SIN(-50+$C132+M$16) -> 1.324365124 | N132: =SIN(-$C132+N$16)+$C$11*SIN(-50+$C132+N$16) -> 1.2221695 | O132: =SIN(-$C132+O$16)+$C$11*SIN(-50+$C132+O$16) -> 1.000339411 | P132: =SIN(-$C132+P$16)+$C$11*SIN(-50+$C132+P$16) -> 0.6805891309 | Q132: =SIN(-$C132+Q$16)+$C$11*SIN(-50+$C132+Q$16) -> 0.2942180444 | R132: =SIN(-$C132+R$16)+$C$11*SIN(-50+$C132+R$16) -> -0.1209531543 | S132: =SIN(-$C132+S$16)+$C$11*SIN(-50+$C132+S$16) -> -0.5242846155 | T132: =SIN(-$C132+T$16)+$C$11*SIN(-50+$C132+T$16) -> -0.8762954456 | U132: =SIN(-$C132+U$16)+$C$11*SIN(-50+$C132+U$16) -> -1.142528372 | V132: =SIN(-$C132+V$16)+$C$11*SIN(-50+$C132+V$16) -> -1.296922661 | W132: =SIN(-$C132+W$16)+$C$11*SIN(-50+$C132+W$16) -> -1.324365124 | X132: =SIN(-$C132+X$16)+$C$11*SIN(-50+$C132+X$16) -> -1.2221695 | Y132: =SIN(-$C132+Y$16)+$C$11*SIN(-50+$C132+Y$16) -> -1.000339411 | Z132: =SIN(-$C132+Z$16)+$C$11*SIN(-50+$C132+Z$16) -> -0.6805891309 | AA132: =SIN(-$C132+AA$16)+$C$11*SIN(-50+$C132+AA$16) -> -0.2942180444 | AB132: =SIN(-$C132+AB$16)+$C$11*SIN(-50+$C132+AB$16) -> 0.1209531543 | AE132: 1.324365124
C133: 18.7 | D133: =SQRT(2*$D$7*$D$8)*SIN(-C133+C$16) -> 9.161659367 | E133: =SQRT(2*$D$7*$D$8)*C$11*SIN(-50+C133+C$16) -> 3.097080042 | F133: 12.25873941 | H133: =SIN(-$C133+H$16)+$C$11*SIN(-50+$C133+H$16) -> 0.1875547108 | I133: =SIN(-$C133+I$16)+$C$11*SIN(-50+$C133+I$16) -> 0.5862569684 | J133: =SIN(-$C133+J$16)+$C$11*SIN(-50+$C133+J$16) -> 0.9275723093 | K133: =SIN(-$C133+K$16)+$C$11*SIN(-50+$C133+K$16) -> 1.17809041 | L133: =SIN(-$C133+L$16)+$C$11*SIN(-50+$C133+L$16) -> 1.313288813 | M133: =SIN(-$C133+M$16)+$C$11*SIN(-50+$C133+M$16) -> 1.319933356 | N133: =SIN(-$C133+N$16)+$C$11*SIN(-50+$C133+N$16) -> 1.197373627 | O133: =SIN(-$C133+O$16)+$C$11*SIN(-50+$C133+O$16) -> 0.9576066237 | P133: =SIN(-$C133+P$16)+$C$11*SIN(-50+$C133+P$16) -> 0.6241024125 | Q133: =SIN(-$C133+Q$16)+$C$11*SIN(-50+$C133+Q$16) -> 0.2295067087 | R133: =SIN(-$C133+R$16)+$C$11*SIN(-50+$C133+R$16) -> -0.1875547108 | S133: =SIN(-$C133+S$16)+$C$11*SIN(-50+$C133+S$16) -> -0.5862569684 | T133: =SIN(-$C133+T$16)+$C$11*SIN(-50+$C133+T$16) -> -0.9275723093 | U133: =SIN(-$C133+U$16)+$C$11*SIN(-50+$C133+U$16) -> -1.17809041 | V133: =SIN(-$C133+V$16)+$C$11*SIN(-50+$C133+V$16) -> -1.313288813 | W133: =SIN(-$C133+W$16)+$C$11*SIN(-50+$C133+W$16) -> -1.319933356 | X133: =SIN(-$C133+X$16)+$C$11*SIN(-50+$C133+X$16) -> -1.197373627 | Y133: =SIN(-$C133+Y$16)+$C$11*SIN(-50+$C133+Y$16) -> -0.9576066237 | Z133: =SIN(-$C133+Z$16)+$C$11*SIN(-50+$C133+Z$16) -> -0.6241024125 | AA133: =SIN(-$C133+AA$16)+$C$11*SIN(-50+$C133+AA$16) -> -0.2295067087 | AB133: =SIN(-$C133+AB$16)+$C$11*SIN(-50+$C133+AB$16) -> 0.1875547108 | AE133: 1.319933356
C134: 18.6 | D134: =SQRT(2*$D$7*$D$8)*SIN(-C134+C$16) -> 8.715757724 | E134: =SQRT(2*$D$7*$D$8)*C$11*SIN(-50+C134+C$16) -> 3.204658306 | F134: 11.92041603 | H134: =SIN(-$C134+H$16)+$C$11*SIN(-50+$C134+H$16) -> 0.2522822826 | I134: =SIN(-$C134+I$16)+$C$11*SIN(-50+$C134+I$16) -> 0.6423716355 | J134: =SIN(-$C134+J$16)+$C$11*SIN(-50+$C134+J$16) -> 0.969581177 | K134: =SIN(-$C134+K$16)+$C$11*SIN(-50+$C134+K$16) -> 1.201881358 | L134: =SIN(-$C134+L$16)+$C$11*SIN(-50+$C134+L$16) -> 1.316533017 | M134: =SIN(-$C134+M$16)+$C$11*SIN(-50+$C134+M$16) -> 1.302313251 | N134: =SIN(-$C134+N$16)+$C$11*SIN(-50+$C134+N$16) -> 1.160613991 | O134: =SIN(-$C134+O$16)+$C$11*SIN(-50+$C134+O$16) -> 0.9053057473 | P134: =SIN(-$C134+P$16)+$C$11*SIN(-50+$C134+P$16) -> 0.561379869 | Q134: =SIN(-$C134+Q$16)+$C$11*SIN(-50+$C134+Q$16) -> 0.1625022179 | R134: =SIN(-$C134+R$16)+$C$11*SIN(-50+$C134+R$16) -> -0.2522822826 | S134: =SIN(-$C134+S$16)+$C$11*SIN(-50+$C134+S$16) -> -0.6423716355 | T134: =SIN(-$C134+T$16)+$C$11*SIN(-50+$C134+T$16) -> -0.969581177 | U134: =SIN(-$C134+U$16)+$C$11*SIN(-50+$C134+U$16) -> -1.201881358 | V134: =SIN(-$C134+V$16)+$C$11*SIN(-50+$C134+V$16) -> -1.316533017 | W134: =SIN(-$C134+W$16)+$C$11*SIN(-50+$C134+W$16) -> -1.302313251 | X134: =SIN(-$C134+X$16)+$C$11*SIN(-50+$C134+X$16) -> -1.160613991 | Y134: =SIN(-$C134+Y$16)+$C$11*SIN(-50+$C134+Y$16) -> -0.9053057473 | Z134: =SIN(-$C134+Z$16)+$C$11*SIN(-50+$C134+Z$16) -> -0.561379869 | AA134: =SIN(-$C134+AA$16)+$C$11*SIN(-50+$C134+AA$16) -> -0.1625022179 | AB134: =SIN(-$C134+AB$16)+$C$11*SIN(-50+$C134+AB$16) -> 0.2522822826 | AE134: 1.316533017
C135: 18.5 | D135: =SQRT(2*$D$7*$D$8)*SIN(-C135+C$16) -> 8.182771111 | E135: =SQRT(2*$D$7*$D$8)*C$11*SIN(-50+C135+C$16) -> 3.280216684 | F135: 11.46298779 | H135: =SIN(-$C135+H$16)+$C$11*SIN(-50+$C135+H$16) -> 0.3144891332 | I135: =SIN(-$C135+I$16)+$C$11*SIN(-50+$C135+I$16) -> 0.6920679375 | J135: =SIN(-$C135+J$16)+$C$11*SIN(-50+$C135+J$16) -> 1.00190231 | K135: =SIN(-$C135+K$16)+$C$11*SIN(-50+$C135+K$16) -> 1.213663504 | L135: =SIN(-$C135+L$16)+$C$11*SIN(-50+$C135+L$16) -> 1.306622858 | M135: =SIN(-$C135+M$16)+$C$11*SIN(-50+$C135+M$16) -> 1.271680863 | N135: =SIN(-$C135+N$16)+$C$11*SIN(-50+$C135+N$16) -> 1.112257885 | O135: =SIN(-$C135+O$16)+$C$11*SIN(-50+$C135+O$16) -> 0.843959355 | P135: =SIN(-$C135+P$16)+$C$11*SIN(-50+$C135+P$16) -> 0.4930482035 | Q135: =SIN(-$C135+Q$16)+$C$11*SIN(-50+$C135+Q$16) -> 0.0938740586 | R135: =SIN(-$C135+R$16)+$C$11*SIN(-50+$C135+R$16) -> -0.3144891332 | S135: =SIN(-$C135+S$16)+$C$11*SIN(-50+$C135+S$16) -> -0.6920679375 | T135: =SIN(-$C135+T$16)+$C$11*SIN(-50+$C135+T$16) -> -1.00190231 | U135: =SIN(-$C135+U$16)+$C$11*SIN(-50+$C135+U$16) -> -1.213663504 | V135: =SIN(-$C135+V$16)+$C$11*SIN(-50+$C135+V$16) -> -1.306622858 | W135: =SIN(-$C135+W$16)+$C$11*SIN(-50+$C135+W$16) -> -1.271680863 | X135: =SIN(-$C135+X$16)+$C$11*SIN(-50+$C135+X$16) -> -1.112257885 | Y135: =SIN(-$C135+Y$16)+$C$11*SIN(-50+$C135+Y$16) -> -0.843959355 | Z135: =SIN(-$C135+Z$16)+$C$11*SIN(-50+$C135+Z$16) -> -0.4930482035 | AA135: =SIN(-$C135+AA$16)+$C$11*SIN(-50+$C135+AA$16) -> -0.0938740586 | AB135: =SIN(-$C135+AB$16)+$C$11*SIN(-50+$C135+AB$16) -> 0.3144891332 | AE135: 1.306622858
C136: 18.4 | D136: =SQRT(2*$D$7*$D$8)*SIN(-C136+C$16) -> 7.568024953 | E136: =SQRT(2*$D$7*$D$8)*C$11*SIN(-50+C136+C$16) -> 3.32300022 | F136: 10.89102517 | H136: =SIN(-$C136+H$16)+$C$11*SIN(-50+$C136+H$16) -> 0.3735537124 | I136: =SIN(-$C136+I$16)+$C$11*SIN(-50+$C136+I$16) -> 0.7348493255 | J136: =SIN(-$C136+J$16)+$C$11*SIN(-50+$C136+J$16) -> 1.024212767 | K136: =SIN(-$C136+K$16)+$C$11*SIN(-50+$C136+K$16) -> 1.213319126 | L136: =SIN(-$C136+L$16)+$C$11*SIN(-50+$C136+L$16) -> 1.283657356 | M136: =SIN(-$C136+M$16)+$C$11*SIN(-50+$C136+M$16) -> 1.22834226 | N136: =SIN(-$C136+N$16)+$C$11*SIN(-50+$C136+N$16) -> 1.052788465 | O136: =SIN(-$C136+O$16)+$C$11*SIN(-50+$C136+O$16) -> 0.7741803999 | P136: =SIN(-$C136+P$16)+$C$11*SIN(-50+$C136+P$16) -> 0.4197901633 | Q136: =SIN(-$C136+Q$16)+$C$11*SIN(-50+$C136+Q$16) -> 0.02430794076 | R136: =SIN(-$C136+R$16)+$C$11*SIN(-50+$C136+R$16) -> -0.3735537124 | S136: =SIN(-$C136+S$16)+$C$11*SIN(-50+$C136+S$16) -> -0.7348493255 | T136: =SIN(-$C136+T$16)+$C$11*SIN(-50+$C136+T$16) -> -1.024212767 | U136: =SIN(-$C136+U$16)+$C$11*SIN(-50+$C136+U$16) -> -1.213319126 | V136: =SIN(-$C136+V$16)+$C$11*SIN(-50+$C136+V$16) -> -1.283657356 | W136: =SIN(-$C136+W$16)+$C$11*SIN(-50+$C136+W$16) -> -1.22834226 | X136: =SIN(-$C136+X$16)+$C$11*SIN(-50+$C136+X$16) -> -1.052788465 | Y136: =SIN(-$C136+Y$16)+$C$11*SIN(-50+$C136+Y$16) -> -0.7741803999 | Z136: =SIN(-$C136+Z$16)+$C$11*SIN(-50+$C136+Z$16) -> -0.4197901633 | AA136: =SIN(-$C136+AA$16)+$C$11*SIN(-50+$C136+AA$16) -> -0.02430794076 | AB136: =SIN(-$C136+AB$16)+$C$11*SIN(-50+$C136+AB$16) -> 0.3735537124 | AE136: =MAX(H136:AB136) -> 1.283657356
C137: =C136-C$14 -> 18.3 | D137: =SQRT(2*$D$7*$D$8)*SIN(-C137+C$16) -> 6.877661592 | E137: =SQRT(2*$D$7*$D$8)*C$11*SIN(-50+C137+C$16) -> 3.332581437 | F137: 10.21024303 | H137: =SIN(-$C137+H$16)+$C$11*SIN(-50+$C137+H$16) -> 0.4288858664 | I137: =SIN(-$C137+I$16)+$C$11*SIN(-50+$C137+I$16) -> 0.7702883419 | J137: =SIN(-$C137+J$16)+$C$11*SIN(-50+$C137+J$16) -> 1.036289628 | K137: =SIN(-$C137+K$16)+$C$11*SIN(-50+$C137+K$16) -> 1.200851664 | L137: =SIN(-$C137+L$16)+$C$11*SIN(-50+$C137+L$16) -> 1.247865973 | M137: =SIN(-$C137+M$16)+$C$11*SIN(-50+$C137+M$16) -> 1.172730467 | N137: =SIN(-$C137+N$16)+$C$11*SIN(-50+$C137+N$16) -> 0.9827999307 | O137: =SIN(-$C137+O$16)+$C$11*SIN(-50+$C137+O$16) -> 0.6966660901 | P137: =SIN(-$C137+P$16)+$C$11*SIN(-50+$C137+P$16) -> 0.3423377186 | Q137: =SIN(-$C137+Q$16)+$C$11*SIN(-50+$C137+Q$16) -> -0.04550105398 | R137: =SIN(-$C137+R$16)+$C$11*SIN(-50+$C137+R$16) -> -0.4288858664 | S137: =SIN(-$C137+S$16)+$C$11*SIN(-50+$C137+S$16) -> -0.7702883419 | T137: =SIN(-$C137+T$16)+$C$11*SIN(-50+$C137+T$16) -> -1.036289628 | U137: =SIN(-$C137+U$16)+$C$11*SIN(-50+$C137+U$16) -> -1.200851664 | V137: =SIN(-$C137+V$16)+$C$11*SIN(-50+$C137+V$16) -> -1.247865973 | W137: =SIN(-$C137+W$16)+$C$11*SIN(-50+$C137+W$16) -> -1.172730467 | X137: =SIN(-$C137+X$16)+$C$11*SIN(-50+$C137+X$16) -> -0.9827999307 | Y137: =SIN(-$C137+Y$16)+$C$11*SIN(-50+$C137+Y$16) -> -0.6966660901 | Z137: =SIN(-$C137+Z$16)+$C$11*SIN(-50+$C137+Z$16) -> -0.3423377186 | AA137: =SIN(-$C137+AA$16)+$C$11*SIN(-50+$C137+AA$16) -> 0.04550105398 | AB137: =SIN(-$C137+AB$16)+$C$11*SIN(-50+$C137+AB$16) -> 0.4288858664 | AE137: 1.247865973
C138: 18.2 | D138: =SQRT(2*$D$7*$D$8)*SIN(-C138+C$16) -> 6.118578909 | E138: =SQRT(2*$D$7*$D$8)*C$11*SIN(-50+C138+C$16) -> 3.308864602 | F138: 9.427443511 | H138: =SIN(-$C138+H$16)+$C$11*SIN(-50+$C138+H$16) -> 0.4799327345 | I138: =SIN(-$C138+I$16)+$C$11*SIN(-50+$C138+I$16) -> 0.7980308919 | J138: =SIN(-$C138+J$16)+$C$11*SIN(-50+$C138+J$16) -> 1.038012225 | K138: =SIN(-$C138+K$16)+$C$11*SIN(-50+$C138+K$16) -> 1.17638569 | L138: =SIN(-$C138+L$16)+$C$11*SIN(-50+$C138+L$16) -> 1.199606327 | M138: =SIN(-$C138+M$16)+$C$11*SIN(-50+$C138+M$16) -> 1.105401138 | N138: =SIN(-$C138+N$16)+$C$11*SIN(-50+$C138+N$16) -> 0.9029915845 | O138: =SIN(-$C138+O$16)+$C$11*SIN(-50+$C138+O$16) -> 0.612190923 | P138: =SIN(-$C138+P$16)+$C$11*SIN(-50+$C138+P$16) -> 0.2614647485 | Q138: =SIN(-$C138+Q$16)+$C$11*SIN(-50+$C138+Q$16) -> -0.1148554172 | R138: =SIN(-$C138+R$16)+$C$11*SIN(-50+$C138+R$16) -> -0.4799327345 | S138: =SIN(-$C138+S$16)+$C$11*SIN(-50+$C138+S$16) -> -0.7980308919 | T138: =SIN(-$C138+T$16)+$C$11*SIN(-50+$C138+T$16) -> -1.038012225 | U138: =SIN(-$C138+U$16)+$C$11*SIN(-50+$C138+U$16) -> -1.17638569 | V138: =SIN(-$C138+V$16)+$C$11*SIN(-50+$C138+V$16) -> -1.199606327 | W138: =SIN(-$C138+W$16)+$C$11*SIN(-50+$C138+W$16) -> -1.105401138 | X138: =SIN(-$C138+X$16)+$C$11*SIN(-50+$C138+X$16) -> -0.9029915845 | Y138: =SIN(-$C138+Y$16)+$C$11*SIN(-50+$C138+Y$16) -> -0.612190923 | Z138: =SIN(-$C138+Z$16)+$C$11*SIN(-50+$C138+Z$16) -> -0.2614647485 | AA138: =SIN(-$C138+AA$16)+$C$11*SIN(-50+$C138+AA$16) -> 0.1148554172 | AB138: =SIN(-$C138+AB$16)+$C$11*SIN(-50+$C138+AB$16) -> 0.4799327345 | AE138: 1.199606327
C139: 18.1 | D139: =SQRT(2*$D$7*$D$8)*SIN(-C139+C$16) -> 5.298361409 | E139: =SQRT(2*$D$7*$D$8)*C$11*SIN(-50+C139+C$16) -> 3.252086685 | F139: 8.550448094 | H139: =SIN(-$C139+H$16)+$C$11*SIN(-50+$C139+H$16) -> 0.5261842734 | I139: =SIN(-$C139+I$16)+$C$11*SIN(-50+$C139+I$16) -> 0.8177997809 | J139: =SIN(-$C139+J$16)+$C$11*SIN(-50+$C139+J$16) -> 1.029363348 | K139: =SIN(-$C139+K$16)+$C$11*SIN(-50+$C139+K$16) -> 1.140165658 | L139: =SIN(-$C139+L$16)+$C$11*SIN(-50+$C139+L$16) -> 1.13936061 | M139: =SIN(-$C139+M$16)+$C$11*SIN(-50+$C139+M$16) -> 1.027027007 | N139: =SIN(-$C139+N$16)+$C$11*SIN(-50+$C139+N$16) -> 0.8141608449 | O139: =SIN(-$C139+O$16)+$C$11*SIN(-50+$C139+O$16) -> 0.5215989466 | P139: =SIN(-$C139+P$16)+$C$11*SIN(-50+$C139+P$16) -> 0.1779793091 | Q139: =SIN(-$C139+Q$16)+$C$11*SIN(-50+$C139+Q$16) -> -0.1830621831 | R139: =SIN(-$C139+R$16)+$C$11*SIN(-50+$C139+R$16) -> -0.5261842734 | S139: =SIN(-$C139+S$16)+$C$11*SIN(-50+$C139+S$16) -> -0.8177997809 | T139: =SIN(-$C139+T$16)+$C$11*SIN(-50+$C139+T$16) -> -1.029363348 | U139: =SIN(-$C139+U$16)+$C$11*SIN(-50+$C139+U$16) -> -1.140165658 | V139: =SIN(-$C139+V$16)+$C$11*SIN(-50+$C139+V$16) -> -1.13936061 | W139: =SIN(-$C139+W$16)+$C$11*SIN(-50+$C139+W$16) -> -1.027027007 | X139: =SIN(-$C139+X$16)+$C$11*SIN(-50+$C139+X$16) -> -0.8141608449 | Y139: =SIN(-$C139+Y$16)+$C$11*SIN(-50+$C139+Y$16) -> -0.5215989466 | Z139: =SIN(-$C139+Z$16)+$C$11*SIN(-50+$C139+Z$16) -> -0.1779793091 | AA139: =SIN(-$C139+AA$16)+$C$11*SIN(-50+$C139+AA$16) -> 0.1830621831 | AB139: =SIN(-$C139+AB$16)+$C$11*SIN(-50+$C139+AB$16) -> 0.5261842734 | AE139: 1.140165658
C140: 18 | D140: =SQRT(2*$D$7*$D$8)*SIN(-C140+C$16) -> 4.425204433 | E140: =SQRT(2*$D$7*$D$8)*C$11*SIN(-50+C140+C$16) -> 3.162814993 | F140: 7.588019426 | H140: =SIN(-$C140+H$16)+$C$11*SIN(-50+$C140+H$16) -> 0.567178353 | I140: =SIN(-$C140+I$16)+$C$11*SIN(-50+$C140+I$16) -> 0.8293974849 | J140: =SIN(-$C140+J$16)+$C$11*SIN(-50+$C140+J$16) -> 1.010429412 | K140: =SIN(-$C140+K$16)+$C$11*SIN(-50+$C140+K$16) -> 1.092553469 | L140: =SIN(-$C140+L$16)+$C$11*SIN(-50+$C140+L$16) -> 1.067730779 | M140: =SIN(-$C140+M$16)+$C$11*SIN(-50+$C140+M$16) -> 0.9383911617 | N140: =SIN(-$C140+N$16)+$C$11*SIN(-50+$C140+N$16) -> 0.7171952793 | O140: =SIN(-$C140+O$16)+$C$11*SIN(-50+$C140+O$16) -> 0.4257953259 | P140: =SIN(-$C140+P$16)+$C$11*SIN(-50+$C140+P$16) -> 0.09271555932 | Q140: =SIN(-$C140+Q$16)+$C$11*SIN(-50+$C140+Q$16) -> -0.2494398522 | R140: =SIN(-$C140+R$16)+$C$11*SIN(-50+$C140+R$16) -> -0.567178353 | S140: =SIN(-$C140+S$16)+$C$11*SIN(-50+$C140+S$16) -> -0.8293974849 | T140: =SIN(-$C140+T$16)+$C$11*SIN(-50+$C140+T$16) -> -1.010429412 | U140: =SIN(-$C140+U$16)+$C$11*SIN(-50+$C140+U$16) -> -1.092553469 | V140: =SIN(-$C140+V$16)+$C$11*SIN(-50+$C140+V$16) -> -1.067730779 | W140: =SIN(-$C140+W$16)+$C$11*SIN(-50+$C140+W$16) -> -0.9383911617 | X140: =SIN(-$C140+X$16)+$C$11*SIN(-50+$C140+X$16) -> -0.7171952793 | Y140: =SIN(-$C140+Y$16)+$C$11*SIN(-50+$C140+Y$16) -> -0.4257953259 | Z140: =SIN(-$C140+Z$16)+$C$11*SIN(-50+$C140+Z$16) -> -0.09271555932 | AA140: =SIN(-$C140+AA$16)+$C$11*SIN(-50+$C140+AA$16) -> 0.2494398522 | AB140: =SIN(-$C140+AB$16)+$C$11*SIN(-50+$C140+AB$16) -> 0.567178353 | AE140: 1.092553469
C141: 17.9 | D141: =SQRT(2*$D$7*$D$8)*SIN(-C141+C$16) -> 3.507832277 | E141: =SQRT(2*$D$7*$D$8)*C$11*SIN(-50+C141+C$16) -> 3.041941499 | F141: 6.549773776 | H141: =SIN(-$C141+H$16)+$C$11*SIN(-50+$C141+H$16) -> 0.602505374 | I141: =SIN(-$C141+I$16)+$C$11*SIN(-50+$C141+I$16) -> 0.8327081234 | J141: =SIN(-$C141+J$16)+$C$11*SIN(-50+$C141+J$16) -> 0.9813995998 | K141: =SIN(-$C141+K$16)+$C$11*SIN(-50+$C141+K$16) -> 1.034024846 | L141: =SIN(-$C141+L$16)+$C$11*SIN(-50+$C141+L$16) -> 0.985432535 | M141: =SIN(-$C141+M$16)+$C$11*SIN(-50+$C141+M$16) -> 0.840379222 | N141: =SIN(-$C141+N$16)+$C$11*SIN(-50+$C141+N$16) -> 0.6130637355 | O141: =SIN(-$C141+O$16)+$C$11*SIN(-50+$C141+O$16) -> 0.3257372991 | P141: =SIN(-$C141+P$16)+$C$11*SIN(-50+$C141+P$16) -> 0.006525426275 | Q141: =SIN(-$C141+Q$16)+$C$11*SIN(-50+$C141+Q$16) -> -0.3133252007 | R141: =SIN(-$C141+R$16)+$C$11*SIN(-50+$C141+R$16) -> -0.602505374 | S141: =SIN(-$C141+S$16)+$C$11*SIN(-50+$C141+S$16) -> -0.8327081234 | T141: =SIN(-$C141+T$16)+$C$11*SIN(-50+$C141+T$16) -> -0.9813995998 | U141: =SIN(-$C141+U$16)+$C$11*SIN(-50+$C141+U$16) -> -1.034024846 | V141: =SIN(-$C141+V$16)+$C$11*SIN(-50+$C141+V$16) -> -0.985432535 | W141: =SIN(-$C141+W$16)+$C$11*SIN(-50+$C141+W$16) -> -0.840379222 | X141: =SIN(-$C141+X$16)+$C$11*SIN(-50+$C141+X$16) -> -0.6130637355 | Y141: =SIN(-$C141+Y$16)+$C$11*SIN(-50+$C141+Y$16) -> -0.3257372991 | Z141: =SIN(-$C141+Z$16)+$C$11*SIN(-50+$C141+Z$16) -> -0.006525426275 | AA141: =SIN(-$C141+AA$16)+$C$11*SIN(-50+$C141+AA$16) -> 0.3133252007 | AB141: =SIN(-$C141+AB$16)+$C$11*SIN(-50+$C141+AB$16) -> 0.602505374 | AE141: 1.034024846
C142: 17.8 | D142: =SQRT(2*$D$7*$D$8)*SIN(-C142+C$16) -> 2.55541102 | E142: =SQRT(2*$D$7*$D$8)*C$11*SIN(-50+C142+C$16) -> 2.890673932 | F142: 5.446084952 | H142: =SIN(-$C142+H$16)+$C$11*SIN(-50+$C142+H$16) -> 0.6318123604 | I142: =SIN(-$C142+I$16)+$C$11*SIN(-50+$C142+I$16) -> 0.8276986175 | J142: =SIN(-$C142+J$16)+$C$11*SIN(-50+$C142+J$16) -> 0.942563967 | K142: =SIN(-$C142+K$16)+$C$11*SIN(-50+$C142+K$16) -> 0.9651645882 | L142: =SIN(-$C142+L$16)+$C$11*SIN(-50+$C142+L$16) -> 0.8932881748 | M142: =SIN(-$C142+M$16)+$C$11*SIN(-50+$C142+M$16) -> 0.7339704909 | N142: =SIN(-$C142+N$16)+$C$11*SIN(-50+$C142+N$16) -> 0.5028066615 | O142: =SIN(-$C142+O$16)+$C$11*SIN(-50+$C142+O$16) -> 0.2224246128 | P142: =SIN(-$C142+P$16)+$C$11*SIN(-50+$C142+P$16) -> -0.07972990667 | Q142: =SIN(-$C142+Q$16)+$C$11*SIN(-50+$C142+Q$16) -> -0.3740799074 | R142: =SIN(-$C142+R$16)+$C$11*SIN(-50+$C142+R$16) -> -0.6318123604 | S142: =SIN(-$C142+S$16)+$C$11*SIN(-50+$C142+S$16) -> -0.8276986175 | T142: =SIN(-$C142+T$16)+$C$11*SIN(-50+$C142+T$16) -> -0.942563967 | U142: =SIN(-$C142+U$16)+$C$11*SIN(-50+$C142+U$16) -> -0.9651645882 | V142: =SIN(-$C142+V$16)+$C$11*SIN(-50+$C142+V$16) -> -0.8932881748 | W142: =SIN(-$C142+W$16)+$C$11*SIN(-50+$C142+W$16) -> -0.7339704909 | X142: =SIN(-$C142+X$16)+$C$11*SIN(-50+$C142+X$16) -> -0.5028066615 | Y142: =SIN(-$C142+Y$16)+$C$11*SIN(-50+$C142+Y$16) -> -0.2224246128 | Z142: =SIN(-$C142+Z$16)+$C$11*SIN(-50+$C142+Z$16) -> 0.07972990667 | AA142: =SIN(-$C142+AA$16)+$C$11*SIN(-50+$C142+AA$16) -> 0.3740799074 | AB142: =SIN(-$C142+AB$16)+$C$11*SIN(-50+$C142+AB$16) -> 0.6318123604 | AE142: 0.9651645882
C143: 17.7 | D143: =SQRT(2*$D$7*$D$8)*SIN(-C143+C$16) -> 1.577456941 | E143: =SQRT(2*$D$7*$D$8)*C$11*SIN(-50+C143+C$16) -> 2.710523706 | F143: 4.287980647 | H143: =SIN(-$C143+H$16)+$C$11*SIN(-50+$C143+H$16) -> 0.6548064866 | I143: =SIN(-$C143+I$16)+$C$11*SIN(-50+$C143+I$16) -> 0.8144190207 | J143: =SIN(-$C143+J$16)+$C$11*SIN(-50+$C143+J$16) -> 0.8943105466 | K143: =SIN(-$C143+K$16)+$C$11*SIN(-50+$C143+K$16) -> 0.8866607252 | L143: =SIN(-$C143+L$16)+$C$11*SIN(-50+$C143+L$16) -> 0.7922183743 | M143: =SIN(-$C143+M$16)+$C$11*SIN(-50+$C143+M$16) -> 0.6202281693 | N143: =SIN(-$C143+N$16)+$C$11*SIN(-50+$C143+N$16) -> 0.3875257096 | O143: =SIN(-$C143+O$16)+$C$11*SIN(-50+$C143+O$16) -> 0.1168895334 | P143: =SIN(-$C143+P$16)+$C$11*SIN(-50+$C143+P$16) -> -0.1651886047 | Q143: =SIN(-$C143+Q$16)+$C$11*SIN(-50+$C143+Q$16) -> -0.4310969313 | R143: =SIN(-$C143+R$16)+$C$11*SIN(-50+$C143+R$16) -> -0.6548064866 | S143: =SIN(-$C143+S$16)+$C$11*SIN(-50+$C143+S$16) -> -0.8144190207 | T143: =SIN(-$C143+T$16)+$C$11*SIN(-50+$C143+T$16) -> -0.8943105466 | U143: =SIN(-$C143+U$16)+$C$11*SIN(-50+$C143+U$16) -> -0.8866607252 | V143: =SIN(-$C143+V$16)+$C$11*SIN(-50+$C143+V$16) -> -0.7922183743 | W143: =SIN(-$C143+W$16)+$C$11*SIN(-50+$C143+W$16) -> -0.6202281693 | X143: =SIN(-$C143+X$16)+$C$11*SIN(-50+$C143+X$16) -> -0.3875257096 | Y143: =SIN(-$C143+Y$16)+$C$11*SIN(-50+$C143+Y$16) -> -0.1168895334 | Z143: =SIN(-$C143+Z$16)+$C$11*SIN(-50+$C143+Z$16) -> 0.1651886047 | AA143: =SIN(-$C143+AA$16)+$C$11*SIN(-50+$C143+AA$16) -> 0.4310969313 | AB143: =SIN(-$C143+AB$16)+$C$11*SIN(-50+$C143+AB$16) -> 0.6548064866 | AE143: 0.8943105466
C144: 17.6 | D144: =SQRT(2*$D$7*$D$8)*SIN(-C144+C$16) -> 0.5837414343 | E144: =SQRT(2*$D$7*$D$8)*C$11*SIN(-50+C144+C$16) -> 2.503290823 | F144: 3.087032257 | H144: =SIN(-$C144+H$16)+$C$11*SIN(-50+$C144+H$16) -> 0.6712580028 | I144: =SIN(-$C144+I$16)+$C$11*SIN(-50+$C144+I$16) -> 0.7930020182 | J144: =SIN(-$C144+J$16)+$C$11*SIN(-50+$C144+J$16) -> 0.8371214709 | K144: =SIN(-$C144+K$16)+$C$11*SIN(-50+$C144+K$16) -> 0.7992976414 | L144: =SIN(-$C144+L$16)+$C$11*SIN(-50+$C144+L$16) -> 0.6832329898 | M144: =SIN(-$C144+M$16)+$C$11*SIN(-50+$C144+M$16) -> 0.5002887328 | N144: =SIN(-$C144+N$16)+$C$11*SIN(-50+$C144+N$16) -> 0.2683727288 | O144: =SIN(-$C144+O$16)+$C$11*SIN(-50+$C144+O$16) -> 0.01018653236 | P144: =SIN(-$C144+P$16)+$C$11*SIN(-50+$C144+P$16) -> -0.2489967929 | Q144: =SIN(-$C144+Q$16)+$C$11*SIN(-50+$C144+Q$16) -> -0.4838065772 | R144: =SIN(-$C144+R$16)+$C$11*SIN(-50+$C144+R$16) -> -0.6712580028 | S144: =SIN(-$C144+S$16)+$C$11*SIN(-50+$C144+S$16) -> -0.7930020182 | T144: =SIN(-$C144+T$16)+$C$11*SIN(-50+$C144+T$16) -> -0.8371214709 | U144: =SIN(-$C144+U$16)+$C$11*SIN(-50+$C144+U$16) -> -0.7992976414 | V144: =SIN(-$C144+V$16)+$C$11*SIN(-50+$C144+V$16) -> -0.6832329898 | W144: =SIN(-$C144+W$16)+$C$11*SIN(-50+$C144+W$16) -> -0.5002887328 | X144: =SIN(-$C144+X$16)+$C$11*SIN(-50+$C144+X$16) -> -0.2683727288 | Y144: =SIN(-$C144+Y$16)+$C$11*SIN(-50+$C144+Y$16) -> -0.01018653236 | Z144: =SIN(-$C144+Z$16)+$C$11*SIN(-50+$C144+Z$16) -> 0.2489967929 | AA144: =SIN(-$C144+AA$16)+$C$11*SIN(-50+$C144+AA$16) -> 0.4838065772 | AB144: =SIN(-$C144+AB$16)+$C$11*SIN(-50+$C144+AB$16) -> 0.6712580028 | AE144: 0.8371214709
C145: 17.5 | D145: =SQRT(2*$D$7*$D$8)*SIN(-C145+C$16) -> -0.4158066243 | E145: =SQRT(2*$D$7*$D$8)*C$11*SIN(-50+C145+C$16) -> 2.271045885 | F145: 1.855239261 | H145: =SIN(-$C145+H$16)+$C$11*SIN(-50+$C145+H$16) -> 0.681002531 | I145: =SIN(-$C145+I$16)+$C$11*SIN(-50+$C145+I$16) -> 0.7636616017 | J145: =SIN(-$C145+J$16)+$C$11*SIN(-50+$C145+J$16) -> 0.7715681541 | K145: =SIN(-$C145+K$16)+$C$11*SIN(-50+$C145+K$16) -> 0.7039482398 | L145: =SIN(-$C145+L$16)+$C$11*SIN(-50+$C145+L$16) -> 0.5674209671 | M145: =SIN(-$C145+M$16)+$C$11*SIN(-50+$C145+M$16) -> 0.3753505766 | N145: =SIN(-$C145+N$16)+$C$11*SIN(-50+$C145+N$16) -> 0.1465382565 | O145: =SIN(-$C145+O$16)+$C$11*SIN(-50+$C145+O$16) -> -0.09661824913 | P145: =SIN(-$C145+P$16)+$C$11*SIN(-50+$C145+P$16) -> -0.3303170874 | Q145: =SIN(-$C145+Q$16)+$C$11*SIN(-50+$C145+Q$16) -> -0.5316821877 | R145: =SIN(-$C145+R$16)+$C$11*SIN(-50+$C145+R$16) -> -0.681002531 | S145: =SIN(-$C145+S$16)+$C$11*SIN(-50+$C145+S$16) -> -0.7636616017 | T145: =SIN(-$C145+T$16)+$C$11*SIN(-50+$C145+T$16) -> -0.7715681541 | U145: =SIN(-$C145+U$16)+$C$11*SIN(-50+$C145+U$16) -> -0.7039482398 | V145: =SIN(-$C145+V$16)+$C$11*SIN(-50+$C145+V$16) -> -0.5674209671 | W145: =SIN(-$C145+W$16)+$C$11*SIN(-50+$C145+W$16) -> -0.3753505766 | X145: =SIN(-$C145+X$16)+$C$11*SIN(-50+$C145+X$16) -> -0.1465382565 | Y145: =SIN(-$C145+Y$16)+$C$11*SIN(-50+$C145+Y$16) -> 0.09661824913 | Z145: =SIN(-$C145+Z$16)+$C$11*SIN(-50+$C145+Z$16) -> 0.3303170874 | AA145: =SIN(-$C145+AA$16)+$C$11*SIN(-50+$C145+AA$16) -> 0.5316821877 | AB145: =SIN(-$C145+AB$16)+$C$11*SIN(-50+$C145+AB$16) -> 0.681002531 | AE145: 0.7715681541
C146: 17.4 | D146: =SQRT(2*$D$7*$D$8)*SIN(-C146+C$16) -> -1.411200081 | E146: =SQRT(2*$D$7*$D$8)*C$11*SIN(-50+C146+C$16) -> 2.016109408 | F146: 0.6049093274 | H146: =SIN(-$C146+H$16)+$C$11*SIN(-50+$C146+H$16) -> 0.6839427069 | I146: =SIN(-$C146+I$16)+$C$11*SIN(-50+$C146+I$16) -> 0.7266909309 | J146: =SIN(-$C146+J$16)+$C$11*SIN(-50+$C146+J$16) -> 0.6983055834 | K146: =SIN(-$C146+K$16)+$C$11*SIN(-50+$C146+K$16) -> 0.6015652201 | L146: =SIN(-$C146+L$16)+$C$11*SIN(-50+$C146+L$16) -> 0.4459394616 | M146: =SIN(-$C146+M$16)+$C$11*SIN(-50+$C146+M$16) -> 0.2466620416 | N146: =SIN(-$C146+N$16)+$C$11*SIN(-50+$C146+N$16) -> 0.02323962237 | O146: =SIN(-$C146+O$16)+$C$11*SIN(-50+$C146+O$16) -> -0.202457653 | P146: =SIN(-$C146+P$16)+$C$11*SIN(-50+$C146+P$16) -> -0.4083369627 | Q146: =SIN(-$C146+Q$16)+$C$11*SIN(-50+$C146+Q$16) -> -0.5742454055 | R146: =SIN(-$C146+R$16)+$C$11*SIN(-50+$C146+R$16) -> -0.6839427069 | S146: =SIN(-$C146+S$16)+$C$11*SIN(-50+$C146+S$16) -> -0.7266909309 | T146: =SIN(-$C146+T$16)+$C$11*SIN(-50+$C146+T$16) -> -0.6983055834 | U146: =SIN(-$C146+U$16)+$C$11*SIN(-50+$C146+U$16) -> -0.6015652201 | V146: =SIN(-$C146+V$16)+$C$11*SIN(-50+$C146+V$16) -> -0.4459394616 | W146: =SIN(-$C146+W$16)+$C$11*SIN(-50+$C146+W$16) -> -0.2466620416 | X146: =SIN(-$C146+X$16)+$C$11*SIN(-50+$C146+X$16) -> -0.02323962237 | Y146: =SIN(-$C146+Y$16)+$C$11*SIN(-50+$C146+Y$16) -> 0.202457653 | Z146: =SIN(-$C146+Z$16)+$C$11*SIN(-50+$C146+Z$16) -> 0.4083369627 | AA146: =SIN(-$C146+AA$16)+$C$11*SIN(-50+$C146+AA$16) -> 0.5742454055 | AB146: =SIN(-$C146+AB$16)+$C$11*SIN(-50+$C146+AB$16) -> 0.6839427069 | AE146: 0.7266909309
C147: 17.3 | D147: =SQRT(2*$D$7*$D$8)*SIN(-C147+C$16) -> -2.392493292 | E147: =SQRT(2*$D$7*$D$8)*C$11*SIN(-50+C147+C$16) -> 1.741028632 | F147: -0.6514646601 | H147: =SIN(-$C147+H$16)+$C$11*SIN(-50+$C147+H$16) -> 0.6800491534 | I147: =SIN(-$C147+I$16)+$C$11*SIN(-50+$C147+I$16) -> 0.6824594045 | J147: =SIN(-$C147+J$16)+$C$11*SIN(-50+$C147+J$16) -> 0.6180657742 | K147: =SIN(-$C147+K$16)+$C$11*SIN(-50+$C147+K$16) -> 0.4931715595 | L147: =SIN(-$C147+L$16)+$C$11*SIN(-50+$C147+L$16) -> 0.3200022764 | M147: =SIN(-$C147+M$16)+$C$11*SIN(-50+$C147+M$16) -> 0.115508941 | N147: =SIN(-$C147+N$16)+$C$11*SIN(-50+$C147+N$16) -> -0.1002912144 | O147: =SIN(-$C147+O$16)+$C$11*SIN(-50+$C147+O$16) -> -0.3062741669 | P147: =SIN(-$C147+P$16)+$C$11*SIN(-50+$C147+P$16) -> -0.4822768701 | Q147: =SIN(-$C147+Q$16)+$C$11*SIN(-50+$C147+Q$16) -> -0.611070953 | R147: =SIN(-$C147+R$16)+$C$11*SIN(-50+$C147+R$16) -> -0.6800491534 | S147: =SIN(-$C147+S$16)+$C$11*SIN(-50+$C147+S$16) -> -0.6824594045 | T147: =SIN(-$C147+T$16)+$C$11*SIN(-50+$C147+T$16) -> -0.6180657742 | U147: =SIN(-$C147+U$16)+$C$11*SIN(-50+$C147+U$16) -> -0.4931715595 | V147: =SIN(-$C147+V$16)+$C$11*SIN(-50+$C147+V$16) -> -0.3200022764 | W147: =SIN(-$C147+W$16)+$C$11*SIN(-50+$C147+W$16) -> -0.115508941 | X147: =SIN(-$C147+X$16)+$C$11*SIN(-50+$C147+X$16) -> 0.1002912144 | Y147: =SIN(-$C147+Y$16)+$C$11*SIN(-50+$C147+Y$16) -> 0.3062741669 | Z147: =SIN(-$C147+Z$16)+$C$11*SIN(-50+$C147+Z$16) -> 0.4822768701 | AA147: =SIN(-$C147+AA$16)+$C$11*SIN(-50+$C147+AA$16) -> 0.611070953 | AB147: =SIN(-$C147+AB$16)+$C$11*SIN(-50+$C147+AB$16) -> 0.6800491534 | AE147: 0.6824594045
C148: 17.2 | D148: =SQRT(2*$D$7*$D$8)*SIN(-C148+C$16) -> -3.349881502 | E148: =SQRT(2*$D$7*$D$8)*C$11*SIN(-50+C148+C$16) -> 1.448552074 | F148: -1.901329428 | H148: =SIN(-$C148+H$16)+$C$11*SIN(-50+$C148+H$16) -> 0.6693607736 | I148: =SIN(-$C148+I$16)+$C$11*SIN(-50+$C148+I$16) -> 0.6314089694 | J148: =SIN(-$C148+J$16)+$C$11*SIN(-50+$C148+J$16) -> 0.531650456 | K148: =SIN(-$C148+K$16)+$C$11*SIN(-50+$C148+K$16) -> 0.3798502917 | L148: =SIN(-$C148+L$16)+$C$11*SIN(-50+$C148+L$16) -> 0.1908677343 | M148: =SIN(-$C148+M$16)+$C$11*SIN(-50+$C148+M$16) -> -0.01679828677 | N148: =SIN(-$C148+N$16)+$C$11*SIN(-50+$C148+N$16) -> -0.2228199745 | O148: =SIN(-$C148+O$16)+$C$11*SIN(-50+$C148+O$16) -> -0.4070304907 | P148: =SIN(-$C148+P$16)+$C$11*SIN(-50+$C148+P$16) -> -0.5513980264 | Q148: =SIN(-$C148+Q$16)+$C$11*SIN(-50+$C148+Q$16) -> -0.6417908816 | R148: =SIN(-$C148+R$16)+$C$11*SIN(-50+$C148+R$16) -> -0.6693607736 | S148: =SIN(-$C148+S$16)+$C$11*SIN(-50+$C148+S$16) -> -0.6314089694 | T148: =SIN(-$C148+T$16)+$C$11*SIN(-50+$C148+T$16) -> -0.531650456 | U148: =SIN(-$C148+U$16)+$C$11*SIN(-50+$C148+U$16) -> -0.3798502917 | V148: =SIN(-$C148+V$16)+$C$11*SIN(-50+$C148+V$16) -> -0.1908677343 | W148: =SIN(-$C148+W$16)+$C$11*SIN(-50+$C148+W$16) -> 0.01679828677 | X148: =SIN(-$C148+X$16)+$C$11*SIN(-50+$C148+X$16) -> 0.2228199745 | Y148: =SIN(-$C148+Y$16)+$C$11*SIN(-50+$C148+Y$16) -> 0.4070304907 | Z148: =SIN(-$C148+Z$16)+$C$11*SIN(-50+$C148+Z$16) -> 0.5513980264 | AA148: =SIN(-$C148+AA$16)+$C$11*SIN(-50+$C148+AA$16) -> 0.6417908816 | AB148: =SIN(-$C148+AB$16)+$C$11*SIN(-50+$C148+AB$16) -> 0.6693607736 | AE148: 0.6693607736
C149: 17.1 | D149: =SQRT(2*$D$7*$D$8)*SIN(-C149+C$16) -> -4.273798802 | E149: =SQRT(2*$D$7*$D$8)*C$11*SIN(-50+C149+C$16) -> 1.141602062 | F149: -3.132196741 | H149: =SIN(-$C149+H$16)+$C$11*SIN(-50+$C149+H$16) -> 0.6519843622 | I149: =SIN(-$C149+I$16)+$C$11*SIN(-50+$C149+I$16) -> 0.5740497045 | J149: =SIN(-$C149+J$16)+$C$11*SIN(-50+$C149+J$16) -> 0.4399230622 | K149: =SIN(-$C149+K$16)+$C$11*SIN(-50+$C149+K$16) -> 0.2627336854 | L149: =SIN(-$C149+L$16)+$C$11*SIN(-50+$C149+L$16) -> 0.05982610487 | M149: =SIN(-$C149+M$16)+$C$11*SIN(-50+$C149+M$16) -> -0.1489376716 | N149: =SIN(-$C149+N$16)+$C$11*SIN(-50+$C149+N$16) -> -0.3431223911 | O149: =SIN(-$C149+O$16)+$C$11*SIN(-50+$C149+O$16) -> -0.5037199002 | P149: =SIN(-$C149+P$16)+$C$11*SIN(-50+$C149+P$16) -> -0.6150097959 | Q149: =SIN(-$C149+Q$16)+$C$11*SIN(-50+$C149+Q$16) -> -0.6660982478 | R149: =SIN(-$C149+R$16)+$C$11*SIN(-50+$C149+R$16) -> -0.6519843622 | S149: =SIN(-$C149+S$16)+$C$11*SIN(-50+$C149+S$16) -> -0.5740497045 | T149: =SIN(-$C149+T$16)+$C$11*SIN(-50+$C149+T$16) -> -0.4399230622 | U149: =SIN(-$C149+U$16)+$C$11*SIN(-50+$C149+U$16) -> -0.2627336854 | V149: =SIN(-$C149+V$16)+$C$11*SIN(-50+$C149+V$16) -> -0.05982610487 | W149: =SIN(-$C149+W$16)+$C$11*SIN(-50+$C149+W$16) -> 0.1489376716 | X149: =SIN(-$C149+X$16)+$C$11*SIN(-50+$C149+X$16) -> 0.3431223911 | Y149: =SIN(-$C149+Y$16)+$C$11*SIN(-50+$C149+Y$16) -> 0.5037199002 | Z149: =SIN(-$C149+Z$16)+$C$11*SIN(-50+$C149+Z$16) -> 0.6150097959 | AA149: =SIN(-$C149+AA$16)+$C$11*SIN(-50+$C149+AA$16) -> 0.6660982478 | AB149: =SIN(-$C149+AB$16)+$C$11*SIN(-50+$C149+AB$16) -> 0.6519843622 | AE149: 0.6660982478
C150: 17 | D150: =SQRT(2*$D$7*$D$8)*SIN(-C150+C$16) -> -5.155013718 | E150: =SQRT(2*$D$7*$D$8)*C$11*SIN(-50+C150+C$16) -> 0.8232455391 | F150: -4.331768179 | H150: =SIN(-$C150+H$16)+$C$11*SIN(-50+$C150+H$16) -> 0.6280935385 | I150: =SIN(-$C150+I$16)+$C$11*SIN(-50+$C150+I$16) -> 0.5109547248 | J150: =SIN(-$C150+J$16)+$C$11*SIN(-50+$C150+J$16) -> 0.3438001026 | K150: =SIN(-$C150+K$16)+$C$11*SIN(-50+$C150+K$16) -> 0.1429919309 | L150: =SIN(-$C150+L$16)+$C$11*SIN(-50+$C150+L$16) -> -0.07181328723 | M150: =SIN(-$C150+M$16)+$C$11*SIN(-50+$C150+M$16) -> -0.2795889205 | N150: =SIN(-$C150+N$16)+$C$11*SIN(-50+$C150+N$16) -> -0.4599964421 | O150: =SIN(-$C150+O$16)+$C$11*SIN(-50+$C150+O$16) -> -0.5953763071 | P150: =SIN(-$C150+P$16)+$C$11*SIN(-50+$C150+P$16) -> -0.6724765909 | Q150: =SIN(-$C150+Q$16)+$C$11*SIN(-50+$C150+Q$16) -> -0.6837501805 | R150: =SIN(-$C150+R$16)+$C$11*SIN(-50+$C150+R$16) -> -0.6280935385 | S150: =SIN(-$C150+S$16)+$C$11*SIN(-50+$C150+S$16) -> -0.5109547248 | T150: =SIN(-$C150+T$16)+$C$11*SIN(-50+$C150+T$16) -> -0.3438001026 | U150: =SIN(-$C150+U$16)+$C$11*SIN(-50+$C150+U$16) -> -0.1429919309 | V150: =SIN(-$C150+V$16)+$C$11*SIN(-50+$C150+V$16) -> 0.07181328723 | W150: =SIN(-$C150+W$16)+$C$11*SIN(-50+$C150+W$16) -> 0.2795889205 | X150: =SIN(-$C150+X$16)+$C$11*SIN(-50+$C150+X$16) -> 0.4599964421 | Y150: =SIN(-$C150+Y$16)+$C$11*SIN(-50+$C150+Y$16) -> 0.5953763071 | Z150: =SIN(-$C150+Z$16)+$C$11*SIN(-50+$C150+Z$16) -> 0.6724765909 | AA150: =SIN(-$C150+AA$16)+$C$11*SIN(-50+$C150+AA$16) -> 0.6837501805 | AB150: =SIN(-$C150+AB$16)+$C$11*SIN(-50+$C150+AB$16) -> 0.6280935385 | AE150: 0.6837501805
C151: 16.9 | D151: =SQRT(2*$D$7*$D$8)*SIN(-C151+C$16) -> -5.984721441 | E151: =SQRT(2*$D$7*$D$8)*C$11*SIN(-50+C151+C$16) -> 0.4966634194 | F151: -5.488058022 | H151: =SIN(-$C151+H$16)+$C$11*SIN(-50+$C151+H$16) -> 0.5979270118 | I151: =SIN(-$C151+I$16)+$C$11*SIN(-50+$C151+I$16) -> 0.4427544543 | J151: =SIN(-$C151+J$16)+$C$11*SIN(-50+$C151+J$16) -> 0.244242006 | K151: =SIN(-$C151+K$16)+$C$11*SIN(-50+$C151+K$16) -> 0.02182144833 | L151: =SIN(-$C151+L$16)+$C$11*SIN(-50+$C151+L$16) -> -0.2027351447 | M151: =SIN(-$C151+M$16)+$C$11*SIN(-50+$C151+M$16) -> -0.4074466092 | N151: =SIN(-$C151+N$16)+$C$11*SIN(-50+$C151+N$16) -> -0.5722743608 | O151: =SIN(-$C151+O$16)+$C$11*SIN(-50+$C151+O$16) -> -0.6810839107 | P151: =SIN(-$C151+P$16)+$C$11*SIN(-50+$C151+P$16) -> -0.723224222 | Q151: =SIN(-$C151+Q$16)+$C$11*SIN(-50+$C151+Q$16) -> -0.6945703074 | R151: =SIN(-$C151+R$16)+$C$11*SIN(-50+$C151+R$16) -> -0.5979270118 | S151: =SIN(-$C151+S$16)+$C$11*SIN(-50+$C151+S$16) -> -0.4427544543 | T151: =SIN(-$C151+T$16)+$C$11*SIN(-50+$C151+T$16) -> -0.244242006 | U151: =SIN(-$C151+U$16)+$C$11*SIN(-50+$C151+U$16) -> -0.02182144833 | V151: =SIN(-$C151+V$16)+$C$11*SIN(-50+$C151+V$16) -> 0.2027351447 | W151: =SIN(-$C151+W$16)+$C$11*SIN(-50+$C151+W$16) -> 0.4074466092 | X151: =SIN(-$C151+X$16)+$C$11*SIN(-50+$C151+X$16) -> 0.5722743608 | Y151: =SIN(-$C151+Y$16)+$C$11*SIN(-50+$C151+Y$16) -> 0.6810839107 | Z151: =SIN(-$C151+Z$16)+$C$11*SIN(-50+$C151+Z$16) -> 0.723224222 | AA151: =SIN(-$C151+AA$16)+$C$11*SIN(-50+$C151+AA$16) -> 0.6945703074 | AB151: =SIN(-$C151+AB$16)+$C$11*SIN(-50+$C151+AB$16) -> 0.5979270118 | AE151: 0.723224222
C152: 16.8 | D152: =SQRT(2*$D$7*$D$8)*SIN(-C152+C$16) -> -6.754631806 | E152: =SQRT(2*$D$7*$D$8)*C$11*SIN(-50+C152+C$16) -> 0.1651188029 | F152: -6.589513003 | H152: =SIN(-$C152+H$16)+$C$11*SIN(-50+$C152+H$16) -> 0.5617861961 | I152: =SIN(-$C152+I$16)+$C$11*SIN(-50+$C152+I$16) -> 0.3701303277 | J152: =SIN(-$C152+J$16)+$C$11*SIN(-50+$C152+J$16) -> 0.142243524 | K152: =SIN(-$C152+K$16)+$C$11*SIN(-50+$C152+K$16) -> -0.09956706694 | L152: =SIN(-$C152+L$16)+$C$11*SIN(-50+$C152+L$16) -> -0.3316313396 | M152: =SIN(-$C152+M$16)+$C$11*SIN(-50+$C152+M$16) -> -0.5312332262 | N152: =SIN(-$C152+N$16)+$C$11*SIN(-50+$C152+N$16) -> -0.6788343032 | O152: =SIN(-$C152+O$16)+$C$11*SIN(-50+$C152+O$16) -> -0.759986349 | P152: =SIN(-$C152+P$16)+$C$11*SIN(-50+$C152+P$16) -> -0.7667456357 | Q152: =SIN(-$C152+Q$16)+$C$11*SIN(-50+$C152+Q$16) -> -0.6984505174 | R152: =SIN(-$C152+R$16)+$C$11*SIN(-50+$C152+R$16) -> -0.5617861961 | S152: =SIN(-$C152+S$16)+$C$11*SIN(-50+$C152+S$16) -> -0.3701303277 | T152: =SIN(-$C152+T$16)+$C$11*SIN(-50+$C152+T$16) -> -0.142243524 | U152: =SIN(-$C152+U$16)+$C$11*SIN(-50+$C152+U$16) -> 0.09956706694 | V152: =SIN(-$C152+V$16)+$C$11*SIN(-50+$C152+V$16) -> 0.3316313396 | W152: =SIN(-$C152+W$16)+$C$11*SIN(-50+$C152+W$16) -> 0.5312332262 | X152: =SIN(-$C152+X$16)+$C$11*SIN(-50+$C152+X$16) -> 0.6788343032 | Y152: =SIN(-$C152+Y$16)+$C$11*SIN(-50+$C152+Y$16) -> 0.759986349 | Z152: =SIN(-$C152+Z$16)+$C$11*SIN(-50+$C152+Z$16) -> 0.7667456357 | AA152: =SIN(-$C152+AA$16)+$C$11*SIN(-50+$C152+AA$16) -> 0.6984505174 | AB152: =SIN(-$C152+AB$16)+$C$11*SIN(-50+$C152+AB$16) -> 0.5617861961 | AE152: 0.7667456357
C153: 16.7 | D153: =SQRT(2*$D$7*$D$8)*SIN(-C153+C$16) -> -7.457052122 | E153: =SQRT(2*$D$7*$D$8)*C$11*SIN(-50+C153+C$16) -> -0.168075626 | F153: -7.625127748 | H153: =SIN(-$C153+H$16)+$C$11*SIN(-50+$C153+H$16) -> 0.5200321984 | I153: =SIN(-$C153+I$16)+$C$11*SIN(-50+$C153+I$16) -> 0.2938079812 | J153: =SIN(-$C153+J$16)+$C$11*SIN(-50+$C153+J$16) -> 0.03882379173 | K153: =SIN(-$C153+K$16)+$C$11*SIN(-50+$C153+K$16) -> -0.219960741 | L153: =SIN(-$C153+L$16)+$C$11*SIN(-50+$C153+L$16) -> -0.4572139838 | M153: =SIN(-$C153+M$16)+$C$11*SIN(-50+$C153+M$16) -> -0.6497119363 | N153: =SIN(-$C153+N$16)+$C$11*SIN(-50+$C153+N$16) -> -0.7786115577 | O153: =SIN(-$C153+O$16)+$C$11*SIN(-50+$C153+O$16) -> -0.8312952549 | P153: =SIN(-$C153+P$16)+$C$11*SIN(-50+$C153+P$16) -> -0.8026059806 | Q153: =SIN(-$C153+Q$16)+$C$11*SIN(-50+$C153+Q$16) -> -0.6953520408 | R153: =SIN(-$C153+R$16)+$C$11*SIN(-50+$C153+R$16) -> -0.5200321984 | S153: =SIN(-$C153+S$16)+$C$11*SIN(-50+$C153+S$16) -> -0.2938079812 | T153: =SIN(-$C153+T$16)+$C$11*SIN(-50+$C153+T$16) -> -0.03882379173 | U153: =SIN(-$C153+U$16)+$C$11*SIN(-50+$C153+U$16) -> 0.219960741 | V153: =SIN(-$C153+V$16)+$C$11*SIN(-50+$C153+V$16) -> 0.4572139838 | W153: =SIN(-$C153+W$16)+$C$11*SIN(-50+$C153+W$16) -> 0.6497119363 | X153: =SIN(-$C153+X$16)+$C$11*SIN(-50+$C153+X$16) -> 0.7786115577 | Y153: =SIN(-$C153+Y$16)+$C$11*SIN(-50+$C153+Y$16) -> 0.8312952549 | Z153: =SIN(-$C153+Z$16)+$C$11*SIN(-50+$C153+Z$16) -> 0.8026059806 | AA153: =SIN(-$C153+AA$16)+$C$11*SIN(-50+$C153+AA$16) -> 0.6953520408 | AB153: =SIN(-$C153+AB$16)+$C$11*SIN(-50+$C153+AB$16) -> 0.5200321984 | AE153: 0.8312952549
C154: 16.6 | D154: =SQRT(2*$D$7*$D$8)*SIN(-C154+C$16) -> -8.084964038 | E154: =SQRT(2*$D$7*$D$8)*C$11*SIN(-50+C154+C$16) -> -0.4995906989 | F154: -8.584554737 | H154: =SIN(-$C154+H$16)+$C$11*SIN(-50+$C154+H$16) -> 0.4730822109 | I154: =SIN(-$C154+I$16)+$C$11*SIN(-50+$C154+I$16) -> 0.2145500025 | J154: =SIN(-$C154+J$16)+$C$11*SIN(-50+$C154+J$16) -> -0.06498385502 | K154: =SIN(-$C154+K$16)+$C$11*SIN(-50+$C154+K$16) -> -0.33815664 | L154: =SIN(-$C154+L$16)+$C$11*SIN(-50+$C154+L$16) -> -0.578228297 | M154: =SIN(-$C154+M$16)+$C$11*SIN(-50+$C154+M$16) -> -0.7616989396 | N154: =SIN(-$C154+N$16)+$C$11*SIN(-50+$C154+N$16) -> -0.8706091829 | O154: =SIN(-$C154+O$16)+$C$11*SIN(-50+$C154+O$16) -> -0.8942981334 | P154: =SIN(-$C154+P$16)+$C$11*SIN(-50+$C154+P$16) -> -0.8304469517 | Q154: =SIN(-$C154+Q$16)+$C$11*SIN(-50+$C154+Q$16) -> -0.6853058364 | R154: =SIN(-$C154+R$16)+$C$11*SIN(-50+$C154+R$16) -> -0.4730822109 | S154: =SIN(-$C154+S$16)+$C$11*SIN(-50+$C154+S$16) -> -0.2145500025 | T154: =SIN(-$C154+T$16)+$C$11*SIN(-50+$C154+T$16) -> 0.06498385502 | U154: =SIN(-$C154+U$16)+$C$11*SIN(-50+$C154+U$16) -> 0.33815664 | V154: =SIN(-$C154+V$16)+$C$11*SIN(-50+$C154+V$16) -> 0.578228297 | W154: =SIN(-$C154+W$16)+$C$11*SIN(-50+$C154+W$16) -> 0.7616989396 | X154: =SIN(-$C154+X$16)+$C$11*SIN(-50+$C154+X$16) -> 0.8706091829 | Y154: =SIN(-$C154+Y$16)+$C$11*SIN(-50+$C154+Y$16) -> 0.8942981334 | Z154: =SIN(-$C154+Z$16)+$C$11*SIN(-50+$C154+Z$16) -> 0.8304469517 | AA154: =SIN(-$C154+AA$16)+$C$11*SIN(-50+$C154+AA$16) -> 0.6853058364 | AB154: =SIN(-$C154+AB$16)+$C$11*SIN(-50+$C154+AB$16) -> 0.4730822109 | AE154: 0.8942981334
C155: 16.5 | D155: =SQRT(2*$D$7*$D$8)*SIN(-C155+C$16) -> -8.632093666 | E155: =SQRT(2*$D$7*$D$8)*C$11*SIN(-50+C155+C$16) -> -0.8261140266 | F155: -9.458207693 | H155: =SIN(-$C155+H$16)+$C$11*SIN(-50+$C155+H$16) -> 0.4214053423 | I155: =SIN(-$C155+I$16)+$C$11*SIN(-50+$C155+I$16) -> 0.1331483111 | J155: =SIN(-$C155+J$16)+$C$11*SIN(-50+$C155+J$16) -> -0.1681422046 | K155: =SIN(-$C155+K$16)+$C$11*SIN(-50+$C155+K$16) -> -0.4529737897 | L155: =SIN(-$C155+L$16)+$C$11*SIN(-50+$C155+L$16) -> -0.6934651442 | M155: =SIN(-$C155+M$16)+$C$11*SIN(-50+$C155+M$16) -> -0.8660752988 | N155: =SIN(-$C155+N$16)+$C$11*SIN(-50+$C155+N$16) -> -0.9539079688 | O155: =SIN(-$C155+O$16)+$C$11*SIN(-50+$C155+O$16) -> -0.9483654806 | P155: =SIN(-$C155+P$16)+$C$11*SIN(-50+$C155+P$16) -> -0.8499903715 | Q155: =SIN(-$C155+Q$16)+$C$11*SIN(-50+$C155+Q$16) -> -0.6684122825 | R155: =SIN(-$C155+R$16)+$C$11*SIN(-50+$C155+R$16) -> -0.4214053423 | S155: =SIN(-$C155+S$16)+$C$11*SIN(-50+$C155+S$16) -> -0.1331483111 | T155: =SIN(-$C155+T$16)+$C$11*SIN(-50+$C155+T$16) -> 0.1681422046 | U155: =SIN(-$C155+U$16)+$C$11*SIN(-50+$C155+U$16) -> 0.4529737897 | V155: =SIN(-$C155+V$16)+$C$11*SIN(-50+$C155+V$16) -> 0.6934651442 | W155: =SIN(-$C155+W$16)+$C$11*SIN(-50+$C155+W$16) -> 0.8660752988 | X155: =SIN(-$C155+X$16)+$C$11*SIN(-50+$C155+X$16) -> 0.9539079688 | Y155: =SIN(-$C155+Y$16)+$C$11*SIN(-50+$C155+Y$16) -> 0.9483654806 | Z155: =SIN(-$C155+Z$16)+$C$11*SIN(-50+$C155+Z$16) -> 0.8499903715 | AA155: =SIN(-$C155+AA$16)+$C$11*SIN(-50+$C155+AA$16) -> 0.6684122825 | AB155: =SIN(-$C155+AB$16)+$C$11*SIN(-50+$C155+AB$16) -> 0.4214053423 | AE155: 0.9539079688
C156: 16.4 | D156: =SQRT(2*$D$7*$D$8)*SIN(-C156+C$16) -> -9.092974268 | E156: =SQRT(2*$D$7*$D$8)*C$11*SIN(-50+C156+C$16) -> -1.144383096 | F156: -10.23735736 | H156: =SIN(-$C156+H$16)+$C$11*SIN(-50+$C156+H$16) -> 0.3655179308 | I156: =SIN(-$C156+I$16)+$C$11*SIN(-50+$C156+I$16) -> 0.05041624573 | J156: =SIN(-$C156+J$16)+$C$11*SIN(-50+$C156+J$16) -> -0.2696205328 | K156: =SIN(-$C156+K$16)+$C$11*SIN(-50+$C156+K$16) -> -0.563264975 | L156: =SIN(-$C156+L$16)+$C$11*SIN(-50+$C156+L$16) -> -0.801773117 | M156: =SIN(-$C156+M$16)+$C$11*SIN(-50+$C156+M$16) -> -0.9617981199 | N156: =SIN(-$C156+N$16)+$C$11*SIN(-50+$C156+N$16) -> -1.027675622 | O156: =SIN(-$C156+O$16)+$C$11*SIN(-50+$C156+O$16) -> -0.9929570734 | P156: =SIN(-$C156+P$16)+$C$11*SIN(-50+$C156+P$16) -> -0.8610409684 | Q156: =SIN(-$C156+Q$16)+$C$11*SIN(-50+$C156+Q$16) -> -0.6448401742 | R156: =SIN(-$C156+R$16)+$C$11*SIN(-50+$C156+R$16) -> -0.3655179308 | S156: =SIN(-$C156+S$16)+$C$11*SIN(-50+$C156+S$16) -> -0.05041624573 | T156: =SIN(-$C156+T$16)+$C$11*SIN(-50+$C156+T$16) -> 0.2696205328 | U156: =SIN(-$C156+U$16)+$C$11*SIN(-50+$C156+U$16) -> 0.563264975 | V156: =SIN(-$C156+V$16)+$C$11*SIN(-50+$C156+V$16) -> 0.801773117 | W156: =SIN(-$C156+W$16)+$C$11*SIN(-50+$C156+W$16) -> 0.9617981199 | X156: =SIN(-$C156+X$16)+$C$11*SIN(-50+$C156+X$16) -> 1.027675622 | Y156: =SIN(-$C156+Y$16)+$C$11*SIN(-50+$C156+Y$16) -> 0.9929570734 | Z156: =SIN(-$C156+Z$16)+$C$11*SIN(-50+$C156+Z$16) -> 0.8610409684 | AA156: =SIN(-$C156+AA$16)+$C$11*SIN(-50+$C156+AA$16) -> 0.6448401742 | AB156: =SIN(-$C156+AB$16)+$C$11*SIN(-50+$C156+AB$16) -> 0.3655179308 | AE156: 1.027675622
C157: 16.3 | D157: =SQRT(2*$D$7*$D$8)*SIN(-C157+C$16) -> -9.463000877 | E157: =SQRT(2*$D$7*$D$8)*C$11*SIN(-50+C157+C$16) -> -1.451217868 | F157: -10.91421874 | H157: =SIN(-$C157+H$16)+$C$11*SIN(-50+$C157+H$16) -> 0.305978385 | I157: =SIN(-$C157+I$16)+$C$11*SIN(-50+$C157+I$16) -> -0.03281956207 | J157: =SIN(-$C157+J$16)+$C$11*SIN(-50+$C157+J$16) -> -0.3684049018 | K157: =SIN(-$C157+K$16)+$C$11*SIN(-50+$C157+K$16) -> -0.6679282029 | L157: =SIN(-$C157+L$16)+$C$11*SIN(-50+$C157+L$16) -> -0.9020700377 | M157: =SIN(-$C157+M$16)+$C$11*SIN(-50+$C157+M$16) -> -1.047910972 | N157: =SIN(-$C157+N$16)+$C$11*SIN(-50+$C157+N$16) -> -1.091175079 | O157: =SIN(-$C157+O$16)+$C$11*SIN(-50+$C157+O$16) -> -1.027627367 | P157: =SIN(-$C157+P$16)+$C$11*SIN(-50+$C157+P$16) -> -0.8634883286 | Q157: =SIN(-$C157+Q$16)+$C$11*SIN(-50+$C157+Q$16) -> -0.6148250359 | R157: =SIN(-$C157+R$16)+$C$11*SIN(-50+$C157+R$16) -> -0.305978385 | S157: =SIN(-$C157+S$16)+$C$11*SIN(-50+$C157+S$16) -> 0.03281956207 | T157: =SIN(-$C157+T$16)+$C$11*SIN(-50+$C157+T$16) -> 0.3684049018 | U157: =SIN(-$C157+U$16)+$C$11*SIN(-50+$C157+U$16) -> 0.6679282029 | V157: =SIN(-$C157+V$16)+$C$11*SIN(-50+$C157+V$16) -> 0.9020700377 | W157: =SIN(-$C157+W$16)+$C$11*SIN(-50+$C157+W$16) -> 1.047910972 | X157: =SIN(-$C157+X$16)+$C$11*SIN(-50+$C157+X$16) -> 1.091175079 | Y157: =SIN(-$C157+Y$16)+$C$11*SIN(-50+$C157+Y$16) -> 1.027627367 | Z157: =SIN(-$C157+Z$16)+$C$11*SIN(-50+$C157+Z$16) -> 0.8634883286 | AA157: =SIN(-$C157+AA$16)+$C$11*SIN(-50+$C157+AA$16) -> 0.6148250359 | AB157: =SIN(-$C157+AB$16)+$C$11*SIN(-50+$C157+AB$16) -> 0.305978385 | AE157: 1.091175079
C158: 16.2 | D158: =SQRT(2*$D$7*$D$8)*SIN(-C158+C$16) -> -9.738476309 | E158: =SQRT(2*$D$7*$D$8)*C$11*SIN(-50+C158+C$16) -> -1.743552551 | F158: -11.48202886 | H158: =SIN(-$C158+H$16)+$C$11*SIN(-50+$C158+H$16) -> 0.2433816043 | I158: =SIN(-$C158+I$16)+$C$11*SIN(-50+$C158+I$16) -> -0.1157274477 | J158: =SIN(-$C158+J$16)+$C$11*SIN(-50+$C158+J$16) -> -0.4635082908 | K158: =SIN(-$C158+K$16)+$C$11*SIN(-50+$C158+K$16) -> -0.7659177129 | L158: =SIN(-$C158+L$16)+$C$11*SIN(-50+$C158+L$16) -> -0.9933537728 | M158: =SIN(-$C158+M$16)+$C$11*SIN(-50+$C158+M$16) -> -1.123553444 | N158: =SIN(-$C158+N$16)+$C$11*SIN(-50+$C158+N$16) -> -1.143771877 | O158: =SIN(-$C158+O$16)+$C$11*SIN(-50+$C158+O$16) -> -1.052029948 | P158: =SIN(-$C158+P$16)+$C$11*SIN(-50+$C158+P$16) -> -0.8573079988 | Q158: =SIN(-$C158+Q$16)+$C$11*SIN(-50+$C158+Q$16) -> -0.5786667691 | R158: =SIN(-$C158+R$16)+$C$11*SIN(-50+$C158+R$16) -> -0.2433816043 | S158: =SIN(-$C158+S$16)+$C$11*SIN(-50+$C158+S$16) -> 0.1157274477 | T158: =SIN(-$C158+T$16)+$C$11*SIN(-50+$C158+T$16) -> 0.4635082908 | U158: =SIN(-$C158+U$16)+$C$11*SIN(-50+$C158+U$16) -> 0.7659177129 | V158: =SIN(-$C158+V$16)+$C$11*SIN(-50+$C158+V$16) -> 0.9933537728 | W158: =SIN(-$C158+W$16)+$C$11*SIN(-50+$C158+W$16) -> 1.123553444 | X158: =SIN(-$C158+X$16)+$C$11*SIN(-50+$C158+X$16) -> 1.143771877 | Y158: =SIN(-$C158+Y$16)+$C$11*SIN(-50+$C158+Y$16) -> 1.052029948 | Z158: =SIN(-$C158+Z$16)+$C$11*SIN(-50+$C158+Z$16) -> 0.8573079988 | AA158: =SIN(-$C158+AA$16)+$C$11*SIN(-50+$C158+AA$16) -> 0.5786667691 | AB158: =SIN(-$C158+AB$16)+$C$11*SIN(-50+$C158+AB$16) -> 0.2433816043 | AE158: 1.143771877
C159: 16.1 | D159: =SQRT(2*$D$7*$D$8)*SIN(-C159+C$16) -> -9.916648105 | E159: =SQRT(2*$D$7*$D$8)*C$11*SIN(-50+C159+C$16) -> -2.018466232 | F159: -11.93511434 | H159: =SIN(-$C159+H$16)+$C$11*SIN(-50+$C159+H$16) -> 0.1783530351 | I159: =SIN(-$C159+I$16)+$C$11*SIN(-50+$C159+I$16) -> -0.1974790228 | J159: =SIN(-$C159+J$16)+$C$11*SIN(-50+$C159+J$16) -> -0.5539804581 | K159: =SIN(-$C159+K$16)+$C$11*SIN(-50+$C159+K$16) -> -0.8562544263 | L159: =SIN(-$C159+L$16)+$C$11*SIN(-50+$C159+L$16) -> -1.074712245 | M159: =SIN(-$C159+M$16)+$C$11*SIN(-50+$C159+M$16) -> -1.187969742 | N159: =SIN(-$C159+N$16)+$C$11*SIN(-50+$C159+N$16) -> -1.184940483 | O159: =SIN(-$C159+O$16)+$C$11*SIN(-50+$C159+O$16) -> -1.065920994 | P159: =SIN(-$C159+P$16)+$C$11*SIN(-50+$C159+P$16) -> -0.8425617309 | Q159: =SIN(-$C159+Q$16)+$C$11*SIN(-50+$C159+Q$16) -> -0.5367266553 | R159: =SIN(-$C159+R$16)+$C$11*SIN(-50+$C159+R$16) -> -0.1783530351 | S159: =SIN(-$C159+S$16)+$C$11*SIN(-50+$C159+S$16) -> 0.1974790228 | T159: =SIN(-$C159+T$16)+$C$11*SIN(-50+$C159+T$16) -> 0.5539804581 | U159: =SIN(-$C159+U$16)+$C$11*SIN(-50+$C159+U$16) -> 0.8562544263 | V159: =SIN(-$C159+V$16)+$C$11*SIN(-50+$C159+V$16) -> 1.074712245 | W159: =SIN(-$C159+W$16)+$C$11*SIN(-50+$C159+W$16) -> 1.187969742 | X159: =SIN(-$C159+X$16)+$C$11*SIN(-50+$C159+X$16) -> 1.184940483 | Y159: =SIN(-$C159+Y$16)+$C$11*SIN(-50+$C159+Y$16) -> 1.065920994 | Z159: =SIN(-$C159+Z$16)+$C$11*SIN(-50+$C159+Z$16) -> 0.8425617309 | AA159: =SIN(-$C159+AA$16)+$C$11*SIN(-50+$C159+AA$16) -> 0.5367266553 | AB159: =SIN(-$C159+AB$16)+$C$11*SIN(-50+$C159+AB$16) -> 0.1783530351 | AE159: 1.187969742
C160: 16 | D160: =SQRT(2*$D$7*$D$8)*SIN(-C160+C$16) -> -9.99573603 | E160: =SQRT(2*$D$7*$D$8)*C$11*SIN(-50+C160+C$16) -> -2.273212067 | F160: -12.2689481 | H160: =SIN(-$C160+H$16)+$C$11*SIN(-50+$C160+H$16) -> 0.1115424213 | I160: =SIN(-$C160+I$16)+$C$11*SIN(-50+$C160+I$16) -> -0.2772574529 | J160: =SIN(-$C160+J$16)+$C$11*SIN(-50+$C160+J$16) -> -0.6389174359 | K160: =SIN(-$C160+K$16)+$C$11*SIN(-50+$C160+K$16) -> -0.9380357286 | L160: =SIN(-$C160+L$16)+$C$11*SIN(-50+$C160+L$16) -> -1.145332549 | M160: =SIN(-$C160+M$16)+$C$11*SIN(-50+$C160+M$16) -> -1.240516239 | N160: =SIN(-$C160+N$16)+$C$11*SIN(-50+$C160+N$16) -> -1.214269556 | O160: =SIN(-$C160+O$16)+$C$11*SIN(-50+$C160+O$16) -> -1.069161709 | P160: =SIN(-$C160+P$16)+$C$11*SIN(-50+$C160+P$16) -> -0.8193968647 | Q160: =SIN(-$C160+Q$16)+$C$11*SIN(-50+$C160+Q$16) -> -0.4894237461 | R160: =SIN(-$C160+R$16)+$C$11*SIN(-50+$C160+R$16) -> -0.1115424213 | S160: =SIN(-$C160+S$16)+$C$11*SIN(-50+$C160+S$16) -> 0.2772574529 | T160: =SIN(-$C160+T$16)+$C$11*SIN(-50+$C160+T$16) -> 0.6389174359 | U160: =SIN(-$C160+U$16)+$C$11*SIN(-50+$C160+U$16) -> 0.9380357286 | V160: =SIN(-$C160+V$16)+$C$11*SIN(-50+$C160+V$16) -> 1.145332549 | W160: =SIN(-$C160+W$16)+$C$11*SIN(-50+$C160+W$16) -> 1.240516239 | X160: =SIN(-$C160+X$16)+$C$11*SIN(-50+$C160+X$16) -> 1.214269556 | Y160: =SIN(-$C160+Y$16)+$C$11*SIN(-50+$C160+Y$16) -> 1.069161709 | Z160: =SIN(-$C160+Z$16)+$C$11*SIN(-50+$C160+Z$16) -> 0.8193968647 | AA160: =SIN(-$C160+AA$16)+$C$11*SIN(-50+$C160+AA$16) -> 0.4894237461 | AB160: =SIN(-$C160+AB$16)+$C$11*SIN(-50+$C160+AB$16) -> 0.1115424213 | AE160: 1.240516239
C161: 15.9 | D161: =SQRT(2*$D$7*$D$8)*SIN(-C161+C$16) -> -9.974949866 | E161: =SQRT(2*$D$7*$D$8)*C$11*SIN(-50+C161+C$16) -> -2.505244718 | F161: -12.48019458 | H161: =SIN(-$C161+H$16)+$C$11*SIN(-50+$C161+H$16) -> 0.04361731248 | I161: =SIN(-$C161+I$16)+$C$11*SIN(-50+$C161+I$16) -> -0.3542656182 | J161: =SIN(-$C161+J$16)+$C$11*SIN(-50+$C161+J$16) -> -0.7174705618 | K161: =SIN(-$C161+K$16)+$C$11*SIN(-50+$C161+K$16) -> -1.010444488 | L161: =SIN(-$C161+L$16)+$C$11*SIN(-50+$C161+L$16) -> -1.204509067 | M161: =SIN(-$C161+M$16)+$C$11*SIN(-50+$C161+M$16) -> -1.280667907 | N161: =SIN(-$C161+N$16)+$C$11*SIN(-50+$C161+N$16) -> -1.231466049 | O161: =SIN(-$C161+O$16)+$C$11*SIN(-50+$C161+O$16) -> -1.061719714 | P161: =SIN(-$C161+P$16)+$C$11*SIN(-50+$C161+P$16) -> -0.7880448559 | Q161: =SIN(-$C161+Q$16)+$C$11*SIN(-50+$C161+Q$16) -> -0.4372306767 | R161: =SIN(-$C161+R$16)+$C$11*SIN(-50+$C161+R$16) -> -0.04361731248 | S161: =SIN(-$C161+S$16)+$C$11*SIN(-50+$C161+S$16) -> 0.3542656182 | T161: =SIN(-$C161+T$16)+$C$11*SIN(-50+$C161+T$16) -> 0.7174705618 | U161: =SIN(-$C161+U$16)+$C$11*SIN(-50+$C161+U$16) -> 1.010444488 | V161: =SIN(-$C161+V$16)+$C$11*SIN(-50+$C161+V$16) -> 1.204509067 | W161: =SIN(-$C161+W$16)+$C$11*SIN(-50+$C161+W$16) -> 1.280667907 | X161: =SIN(-$C161+X$16)+$C$11*SIN(-50+$C161+X$16) -> 1.231466049 | Y161: =SIN(-$C161+Y$16)+$C$11*SIN(-50+$C161+Y$16) -> 1.061719714 | Z161: =SIN(-$C161+Z$16)+$C$11*SIN(-50+$C161+Z$16) -> 0.7880448559 | AA161: =SIN(-$C161+AA$16)+$C$11*SIN(-50+$C161+AA$16) -> 0.4372306767 | AB161: =SIN(-$C161+AB$16)+$C$11*SIN(-50+$C161+AB$16) -> 0.04361731248 | AE161: 1.280667907
C162: 15.8 | D162: =SQRT(2*$D$7*$D$8)*SIN(-C162+C$16) -> -9.8544973 | E162: =SQRT(2*$D$7*$D$8)*C$11*SIN(-50+C162+C$16) -> -2.712245792 | F162: -12.56674309 | H162: =SIN(-$C162+H$16)+$C$11*SIN(-50+$C162+H$16) -> -0.02474360609 | I162: =SIN(-$C162+I$16)+$C$11*SIN(-50+$C162+I$16) -> -0.4277340784 | J162: =SIN(-$C162+J$16)+$C$11*SIN(-50+$C162+J$16) -> -0.788854959 | K162: =SIN(-$C162+K$16)+$C$11*SIN(-50+$C162+K$16) -> -1.07275722 | L162: =SIN(-$C162+L$16)+$C$11*SIN(-50+$C162+L$16) -> -1.25165053 | M162: =SIN(-$C162+M$16)+$C$11*SIN(-50+$C162+M$16) -> -1.308023565 | N162: =SIN(-$C162+N$16)+$C$11*SIN(-50+$C162+N$16) -> -1.23635814 | O162: =SIN(-$C162+O$16)+$C$11*SIN(-50+$C162+O$16) -> -1.043669366 | P162: =SIN(-$C162+P$16)+$C$11*SIN(-50+$C162+P$16) -> -0.7488189633 | Q162: =SIN(-$C162+Q$16)+$C$11*SIN(-50+$C162+Q$16) -> -0.3806689428 | R162: =SIN(-$C162+R$16)+$C$11*SIN(-50+$C162+R$16) -> 0.02474360609 | S162: =SIN(-$C162+S$16)+$C$11*SIN(-50+$C162+S$16) -> 0.4277340784 | T162: =SIN(-$C162+T$16)+$C$11*SIN(-50+$C162+T$16) -> 0.788854959 | U162: =SIN(-$C162+U$16)+$C$11*SIN(-50+$C162+U$16) -> 1.07275722 | V162: =SIN(-$C162+V$16)+$C$11*SIN(-50+$C162+V$16) -> 1.25165053 | W162: =SIN(-$C162+W$16)+$C$11*SIN(-50+$C162+W$16) -> 1.308023565 | X162: =SIN(-$C162+X$16)+$C$11*SIN(-50+$C162+X$16) -> 1.23635814 | Y162: =SIN(-$C162+Y$16)+$C$11*SIN(-50+$C162+Y$16) -> 1.043669366 | Z162: =SIN(-$C162+Z$16)+$C$11*SIN(-50+$C162+Z$16) -> 0.7488189633 | AA162: =SIN(-$C162+AA$16)+$C$11*SIN(-50+$C162+AA$16) -> 0.3806689428 | AB162: =SIN(-$C162+AB$16)+$C$11*SIN(-50+$C162+AB$16) -> -0.02474360609 | AE162: 1.308023565
C163: 15.7 | D163: =SQRT(2*$D$7*$D$8)*SIN(-C163+C$16) -> -9.635581854 | E163: =SQRT(2*$D$7*$D$8)*C$11*SIN(-50+C163+C$16) -> -2.892147002 | F163: -12.52772886 | H163: =SIN(-$C163+H$16)+$C$11*SIN(-50+$C163+H$16) -> -0.09285729473 | I163: =SIN(-$C163+I$16)+$C$11*SIN(-50+$C163+I$16) -> -0.4969287612 | J163: =SIN(-$C163+J$16)+$C$11*SIN(-50+$C163+J$16) -> -0.8523573782 | K163: =SIN(-$C163+K$16)+$C$11*SIN(-50+$C163+K$16) -> -1.124351316 | L163: =SIN(-$C163+L$16)+$C$11*SIN(-50+$C163+L$16) -> -1.286285914 | M163: =SIN(-$C163+M$16)+$C$11*SIN(-50+$C163+M$16) -> -1.322309884 | N163: =SIN(-$C163+N$16)+$C$11*SIN(-50+$C163+N$16) -> -1.22889695 | O163: =SIN(-$C163+O$16)+$C$11*SIN(-50+$C163+O$16) -> -1.01519102 | P163: =SIN(-$C163+P$16)+$C$11*SIN(-50+$C163+P$16) -> -0.7021111193 | Q163: =SIN(-$C163+Q$16)+$C$11*SIN(-50+$C163+Q$16) -> -0.3203036907 | R163: =SIN(-$C163+R$16)+$C$11*SIN(-50+$C163+R$16) -> 0.09285729473 | S163: =SIN(-$C163+S$16)+$C$11*SIN(-50+$C163+S$16) -> 0.4969287612 | T163: =SIN(-$C163+T$16)+$C$11*SIN(-50+$C163+T$16) -> 0.8523573782 | U163: =SIN(-$C163+U$16)+$C$11*SIN(-50+$C163+U$16) -> 1.124351316 | V163: =SIN(-$C163+V$16)+$C$11*SIN(-50+$C163+V$16) -> 1.286285914 | W163: =SIN(-$C163+W$16)+$C$11*SIN(-50+$C163+W$16) -> 1.322309884 | X163: =SIN(-$C163+X$16)+$C$11*SIN(-50+$C163+X$16) -> 1.22889695 | Y163: =SIN(-$C163+Y$16)+$C$11*SIN(-50+$C163+Y$16) -> 1.01519102 | Z163: =SIN(-$C163+Z$16)+$C$11*SIN(-50+$C163+Z$16) -> 0.7021111193 | AA163: =SIN(-$C163+AA$16)+$C$11*SIN(-50+$C163+AA$16) -> 0.3203036907 | AB163: =SIN(-$C163+AB$16)+$C$11*SIN(-50+$C163+AB$16) -> -0.09285729473 | AE163: 1.322309884
C164: 15.6 | D164: =SQRT(2*$D$7*$D$8)*SIN(-C164+C$16) -> -9.32039086 | E164: =SQRT(2*$D$7*$D$8)*C$11*SIN(-50+C164+C$16) -> -3.043150836 | F164: -12.3635417 | H164: =SIN(-$C164+H$16)+$C$11*SIN(-50+$C164+H$16) -> -0.160043184 | I164: =SIN(-$C164+I$16)+$C$11*SIN(-50+$C164+I$16) -> -0.5611582961 | J164: =SIN(-$C164+J$16)+$C$11*SIN(-50+$C164+J$16) -> -0.9073433243 | K164: =SIN(-$C164+K$16)+$C$11*SIN(-50+$C164+K$16) -> -1.164711266 | L164: =SIN(-$C164+L$16)+$C$11*SIN(-50+$C164+L$16) -> -1.308069154 | M164: =SIN(-$C164+M$16)+$C$11*SIN(-50+$C164+M$16) -> -1.32338412 | N164: =SIN(-$C164+N$16)+$C$11*SIN(-50+$C164+N$16) -> -1.209157027 | O164: =SIN(-$C164+O$16)+$C$11*SIN(-50+$C164+O$16) -> -0.9765692196 | P164: =SIN(-$C164+P$16)+$C$11*SIN(-50+$C164+P$16) -> -0.648388013 | Q164: =SIN(-$C164+Q$16)+$C$11*SIN(-50+$C164+Q$16) -> -0.25673807 | R164: =SIN(-$C164+R$16)+$C$11*SIN(-50+$C164+R$16) -> 0.160043184 | S164: =SIN(-$C164+S$16)+$C$11*SIN(-50+$C164+S$16) -> 0.5611582961 | T164: =SIN(-$C164+T$16)+$C$11*SIN(-50+$C164+T$16) -> 0.9073433243 | U164: =SIN(-$C164+U$16)+$C$11*SIN(-50+$C164+U$16) -> 1.164711266 | V164: =SIN(-$C164+V$16)+$C$11*SIN(-50+$C164+V$16) -> 1.308069154 | W164: =SIN(-$C164+W$16)+$C$11*SIN(-50+$C164+W$16) -> 1.32338412 | X164: =SIN(-$C164+X$16)+$C$11*SIN(-50+$C164+X$16) -> 1.209157027 | Y164: =SIN(-$C164+Y$16)+$C$11*SIN(-50+$C164+Y$16) -> 0.9765692196 | Z164: =SIN(-$C164+Z$16)+$C$11*SIN(-50+$C164+Z$16) -> 0.648388013 | AA164: =SIN(-$C164+AA$16)+$C$11*SIN(-50+$C164+AA$16) -> 0.25673807 | AB164: =SIN(-$C164+AB$16)+$C$11*SIN(-50+$C164+AB$16) -> -0.160043184 | AE164: 1.32338412
C165: 15.5 | D165: =SQRT(2*$D$7*$D$8)*SIN(-C165+C$16) -> -8.912073601 | E165: =SQRT(2*$D$7*$D$8)*C$11*SIN(-50+C165+C$16) -> -3.163748512 | F165: -12.07582211 | H165: =SIN(-$C165+H$16)+$C$11*SIN(-50+$C165+H$16) -> -0.2256299746 | I165: =SIN(-$C165+I$16)+$C$11*SIN(-50+$C165+I$16) -> -0.6197809227 | J165: =SIN(-$C165+J$16)+$C$11*SIN(-50+$C165+J$16) -> -0.9532633958 | K165: =SIN(-$C165+K$16)+$C$11*SIN(-50+$C165+K$16) -> -1.193433806 | L165: =SIN(-$C165+L$16)+$C$11*SIN(-50+$C165+L$16) -> -1.3167826 | M165: =SIN(-$C165+M$16)+$C$11*SIN(-50+$C165+M$16) -> -1.311235539 | N165: =SIN(-$C165+N$16)+$C$11*SIN(-50+$C165+N$16) -> -1.177335607 | O165: =SIN(-$C165+O$16)+$C$11*SIN(-50+$C165+O$16) -> -0.9281898628 | P165: =SIN(-$C165+P$16)+$C$11*SIN(-50+$C165+P$16) -> -0.588186428 | Q165: =SIN(-$C165+Q$16)+$C$11*SIN(-50+$C165+Q$16) -> -0.1906072074 | R165: =SIN(-$C165+R$16)+$C$11*SIN(-50+$C165+R$16) -> 0.2256299746 | S165: =SIN(-$C165+S$16)+$C$11*SIN(-50+$C165+S$16) -> 0.6197809227 | T165: =SIN(-$C165+T$16)+$C$11*SIN(-50+$C165+T$16) -> 0.9532633958 | U165: =SIN(-$C165+U$16)+$C$11*SIN(-50+$C165+U$16) -> 1.193433806 | V165: =SIN(-$C165+V$16)+$C$11*SIN(-50+$C165+V$16) -> 1.3167826 | W165: =SIN(-$C165+W$16)+$C$11*SIN(-50+$C165+W$16) -> 1.311235539 | X165: =SIN(-$C165+X$16)+$C$11*SIN(-50+$C165+X$16) -> 1.177335607 | Y165: =SIN(-$C165+Y$16)+$C$11*SIN(-50+$C165+Y$16) -> 0.9281898628 | Z165: =SIN(-$C165+Z$16)+$C$11*SIN(-50+$C165+Z$16) -> 0.588186428 | AA165: =SIN(-$C165+AA$16)+$C$11*SIN(-50+$C165+AA$16) -> 0.1906072074 | AB165: =SIN(-$C165+AB$16)+$C$11*SIN(-50+$C165+AB$16) -> -0.2256299746 | AE165: 1.3167826
C166: 15.4 | D166: =SQRT(2*$D$7*$D$8)*SIN(-C166+C$16) -> -8.414709848 | E166: =SQRT(2*$D$7*$D$8)*C$11*SIN(-50+C166+C$16) -> -3.252735059 | F166: -11.66744491 | H166: =SIN(-$C166+H$16)+$C$11*SIN(-50+$C166+H$16) -> -0.2889623452 | I166: =SIN(-$C166+I$16)+$C$11*SIN(-50+$C166+I$16) -> -0.6722109033 | J166: =SIN(-$C166+J$16)+$C$11*SIN(-50+$C166+J$16) -> -0.9896587746 | K166: =SIN(-$C166+K$16)+$C$11*SIN(-50+$C166+K$16) -> -1.21023195 | L166: =SIN(-$C166+L$16)+$C$11*SIN(-50+$C166+L$16) -> -1.312339189 | M166: =SIN(-$C166+M$16)+$C$11*SIN(-50+$C166+M$16) -> -1.285985526 | N166: =SIN(-$C166+N$16)+$C$11*SIN(-50+$C166+N$16) -> -1.133750639 | O166: =SIN(-$C166+O$16)+$C$11*SIN(-50+$C166+O$16) -> -0.8705363397 | P166: =SIN(-$C166+P$16)+$C$11*SIN(-50+$C166+P$16) -> -0.5221078786 | Q166: =SIN(-$C166+Q$16)+$C$11*SIN(-50+$C166+Q$16) -> -0.1225718606 | R166: =SIN(-$C166+R$16)+$C$11*SIN(-50+$C166+R$16) -> 0.2889623452 | S166: =SIN(-$C166+S$16)+$C$11*SIN(-50+$C166+S$16) -> 0.6722109033 | T166: =SIN(-$C166+T$16)+$C$11*SIN(-50+$C166+T$16) -> 0.9896587746 | U166: =SIN(-$C166+U$16)+$C$11*SIN(-50+$C166+U$16) -> 1.21023195 | V166: =SIN(-$C166+V$16)+$C$11*SIN(-50+$C166+V$16) -> 1.312339189 | W166: =SIN(-$C166+W$16)+$C$11*SIN(-50+$C166+W$16) -> 1.285985526 | X166: =SIN(-$C166+X$16)+$C$11*SIN(-50+$C166+X$16) -> 1.133750639 | Y166: =SIN(-$C166+Y$16)+$C$11*SIN(-50+$C166+Y$16) -> 0.8705363397 | Z166: =SIN(-$C166+Z$16)+$C$11*SIN(-50+$C166+Z$16) -> 0.5221078786 | AA166: =SIN(-$C166+AA$16)+$C$11*SIN(-50+$C166+AA$16) -> 0.1225718606 | AB166: =SIN(-$C166+AB$16)+$C$11*SIN(-50+$C166+AB$16) -> -0.2889623452 | AE166: 1.312339189
C167: 15.3 | D167: =SQRT(2*$D$7*$D$8)*SIN(-C167+C$16) -> -7.833269096 | E167: =SQRT(2*$D$7*$D$8)*C$11*SIN(-50+C167+C$16) -> -3.309221353 | F167: -11.14249045 | H167: =SIN(-$C167+H$16)+$C$11*SIN(-50+$C167+H$16) -> -0.3494074995 | I167: =SIN(-$C167+I$16)+$C$11*SIN(-50+$C167+I$16) -> -0.7179243747 | J167: =SIN(-$C167+J$16)+$C$11*SIN(-50+$C167+J$16) -> -1.01616581 | K167: =SIN(-$C167+K$16)+$C$11*SIN(-50+$C167+K$16) -> -1.214937856 | L167: =SIN(-$C167+L$16)+$C$11*SIN(-50+$C167+L$16) -> -1.294783319 | M167: =SIN(-$C167+M$16)+$C$11*SIN(-50+$C167+M$16) -> -1.24788637 | N167: =SIN(-$C167+N$16)+$C$11*SIN(-50+$C167+N$16) -> -1.078837609 | O167: =SIN(-$C167+O$16)+$C$11*SIN(-50+$C167+O$16) -> -0.8041847053 | P167: =SIN(-$C167+P$16)+$C$11*SIN(-50+$C167+P$16) -> -0.4508125999 | Q167: =SIN(-$C167+Q$16)+$C$11*SIN(-50+$C167+Q$16) -> -0.05331181623 | R167: =SIN(-$C167+R$16)+$C$11*SIN(-50+$C167+R$16) -> 0.3494074995 | S167: =SIN(-$C167+S$16)+$C$11*SIN(-50+$C167+S$16) -> 0.7179243747 | T167: =SIN(-$C167+T$16)+$C$11*SIN(-50+$C167+T$16) -> 1.01616581 | U167: =SIN(-$C167+U$16)+$C$11*SIN(-50+$C167+U$16) -> 1.214937856 | V167: =SIN(-$C167+V$16)+$C$11*SIN(-50+$C167+V$16) -> 1.294783319 | W167: =SIN(-$C167+W$16)+$C$11*SIN(-50+$C167+W$16) -> 1.24788637 | X167: =SIN(-$C167+X$16)+$C$11*SIN(-50+$C167+X$16) -> 1.078837609 | Y167: =SIN(-$C167+Y$16)+$C$11*SIN(-50+$C167+Y$16) -> 0.8041847053 | Z167: =SIN(-$C167+Z$16)+$C$11*SIN(-50+$C167+Z$16) -> 0.4508125999 | AA167: =SIN(-$C167+AA$16)+$C$11*SIN(-50+$C167+AA$16) -> 0.05331181623 | AB167: =SIN(-$C167+AB$16)+$C$11*SIN(-50+$C167+AB$16) -> -0.3494074995 | AE167: 1.294783319
C168: 15.2 | D168: =SQRT(2*$D$7*$D$8)*SIN(-C168+C$16) -> -7.173560909 | E168: =SQRT(2*$D$7*$D$8)*C$11*SIN(-50+C168+C$16) -> -3.332643 | F168: -10.50620391 | H168: =SIN(-$C168+H$16)+$C$11*SIN(-50+$C168+H$16) -> -0.4063614895 | I168: =SIN(-$C168+I$16)+$C$11*SIN(-50+$C168+I$16) -> -0.756464583 | J168: =SIN(-$C168+J$16)+$C$11*SIN(-50+$C168+J$16) -> -1.032519653 | K168: =SIN(-$C168+K$16)+$C$11*SIN(-50+$C168+K$16) -> -1.207504504 | L168: =SIN(-$C168+L$16)+$C$11*SIN(-50+$C168+L$16) -> -1.264290402 | M168: =SIN(-$C168+M$16)+$C$11*SIN(-50+$C168+M$16) -> -1.197318747 | N168: =SIN(-$C168+N$16)+$C$11*SIN(-50+$C168+N$16) -> -1.01314519 | O168: =SIN(-$C168+O$16)+$C$11*SIN(-50+$C168+O$16) -> -0.7297979232 | P168: =SIN(-$C168+P$16)+$C$11*SIN(-50+$C168+P$16) -> -0.3750129507 | Q168: =SIN(-$C168+Q$16)+$C$11*SIN(-50+$C168+Q$16) -> 0.01648090216 | R168: =SIN(-$C168+R$16)+$C$11*SIN(-50+$C168+R$16) -> 0.4063614895 | S168: =SIN(-$C168+S$16)+$C$11*SIN(-50+$C168+S$16) -> 0.756464583 | T168: =SIN(-$C168+T$16)+$C$11*SIN(-50+$C168+T$16) -> 1.032519653 | U168: =SIN(-$C168+U$16)+$C$11*SIN(-50+$C168+U$16) -> 1.207504504 | V168: =SIN(-$C168+V$16)+$C$11*SIN(-50+$C168+V$16) -> 1.264290402 | W168: =SIN(-$C168+W$16)+$C$11*SIN(-50+$C168+W$16) -> 1.197318747 | X168: =SIN(-$C168+X$16)+$C$11*SIN(-50+$C168+X$16) -> 1.01314519 | Y168: =SIN(-$C168+Y$16)+$C$11*SIN(-50+$C168+Y$16) -> 0.7297979232 | Z168: =SIN(-$C168+Z$16)+$C$11*SIN(-50+$C168+Z$16) -> 0.3750129507 | AA168: =SIN(-$C168+AA$16)+$C$11*SIN(-50+$C168+AA$16) -> -0.01648090216 | AB168: =SIN(-$C168+AB$16)+$C$11*SIN(-50+$C168+AB$16) -> -0.4063614895 | AE168: 1.264290402
C169: 15.1 | D169: =SQRT(2*$D$7*$D$8)*SIN(-C169+C$16) -> -6.442176872 | E169: =SQRT(2*$D$7*$D$8)*C$11*SIN(-50+C169+C$16) -> -3.322765981 | F169: -9.764942853 | H169: =SIN(-$C169+H$16)+$C$11*SIN(-50+$C169+H$16) -> -0.4592552499 | I169: =SIN(-$C169+I$16)+$C$11*SIN(-50+$C169+I$16) -> -0.7874464473 | J169: =SIN(-$C169+J$16)+$C$11*SIN(-50+$C169+J$16) -> -1.0385569 | K169: =SIN(-$C169+K$16)+$C$11*SIN(-50+$C169+K$16) -> -1.188006167 | L169: =SIN(-$C169+L$16)+$C$11*SIN(-50+$C169+L$16) -> -1.221165114 | M169: =SIN(-$C169+M$16)+$C$11*SIN(-50+$C169+M$16) -> -1.13478791 | N169: =SIN(-$C169+N$16)+$C$11*SIN(-50+$C169+N$16) -> -0.9373297596 | O169: =SIN(-$C169+O$16)+$C$11*SIN(-50+$C169+O$16) -> -0.6481192414 | P169: =SIN(-$C169+P$16)+$C$11*SIN(-50+$C169+P$16) -> -0.2954662961 | Q169: =SIN(-$C169+Q$16)+$C$11*SIN(-50+$C169+Q$16) -> 0.08610894883 | R169: =SIN(-$C169+R$16)+$C$11*SIN(-50+$C169+R$16) -> 0.4592552499 | S169: =SIN(-$C169+S$16)+$C$11*SIN(-50+$C169+S$16) -> 0.7874464473 | T169: =SIN(-$C169+T$16)+$C$11*SIN(-50+$C169+T$16) -> 1.0385569 | U169: =SIN(-$C169+U$16)+$C$11*SIN(-50+$C169+U$16) -> 1.188006167 | V169: =SIN(-$C169+V$16)+$C$11*SIN(-50+$C169+V$16) -> 1.221165114 | W169: =SIN(-$C169+W$16)+$C$11*SIN(-50+$C169+W$16) -> 1.13478791 | X169: =SIN(-$C169+X$16)+$C$11*SIN(-50+$C169+X$16) -> 0.9373297596 | Y169: =SIN(-$C169+Y$16)+$C$11*SIN(-50+$C169+Y$16) -> 0.6481192414 | Z169: =SIN(-$C169+Z$16)+$C$11*SIN(-50+$C169+Z$16) -> 0.2954662961 | AA169: =SIN(-$C169+AA$16)+$C$11*SIN(-50+$C169+AA$16) -> -0.08610894883 | AB169: =SIN(-$C169+AB$16)+$C$11*SIN(-50+$C169+AB$16) -> -0.4592552499 | AE169: 1.221165114
C170: 15 | D170: =SQRT(2*$D$7*$D$8)*SIN(-C170+C$16) -> -5.646424734 | E170: =SQRT(2*$D$7*$D$8)*C$11*SIN(-50+C170+C$16) -> -3.279688982 | F170: -8.926113716 | H170: =SIN(-$C170+H$16)+$C$11*SIN(-50+$C170+H$16) -> -0.5075602837 | I170: =SIN(-$C170+I$16)+$C$11*SIN(-50+$C170+I$16) -> -0.810560407 | J170: =SIN(-$C170+J$16)+$C$11*SIN(-50+$C170+J$16) -> -1.03421723 | K170: =SIN(-$C170+K$16)+$C$11*SIN(-50+$C170+K$16) -> -1.156637665 | L170: =SIN(-$C170+L$16)+$C$11*SIN(-50+$C170+L$16) -> -1.165838347 | M170: =SIN(-$C170+M$16)+$C$11*SIN(-50+$C170+M$16) -> -1.060918648 | N170: =SIN(-$C170+N$16)+$C$11*SIN(-50+$C170+N$16) -> -0.85214884 | O170: =SIN(-$C170+O$16)+$C$11*SIN(-50+$C170+O$16) -> -0.5599647664 | P170: =SIN(-$C170+P$16)+$C$11*SIN(-50+$C170+P$16) -> -0.21296744 | Q170: =SIN(-$C170+Q$16)+$C$11*SIN(-50+$C170+Q$16) -> 0.1548766233 | R170: =SIN(-$C170+R$16)+$C$11*SIN(-50+$C170+R$16) -> 0.5075602837 | S170: =SIN(-$C170+S$16)+$C$11*SIN(-50+$C170+S$16) -> 0.810560407 | T170: =SIN(-$C170+T$16)+$C$11*SIN(-50+$C170+T$16) -> 1.03421723 | U170: =SIN(-$C170+U$16)+$C$11*SIN(-50+$C170+U$16) -> 1.156637665 | V170: =SIN(-$C170+V$16)+$C$11*SIN(-50+$C170+V$16) -> 1.165838347 | W170: =SIN(-$C170+W$16)+$C$11*SIN(-50+$C170+W$16) -> 1.060918648 | X170: =SIN(-$C170+X$16)+$C$11*SIN(-50+$C170+X$16) -> 0.85214884 | Y170: =SIN(-$C170+Y$16)+$C$11*SIN(-50+$C170+Y$16) -> 0.5599647664 | Z170: =SIN(-$C170+Z$16)+$C$11*SIN(-50+$C170+Z$16) -> 0.21296744 | AA170: =SIN(-$C170+AA$16)+$C$11*SIN(-50+$C170+AA$16) -> -0.1548766233 | AB170: =SIN(-$C170+AB$16)+$C$11*SIN(-50+$C170+AB$16) -> -0.5075602837 | AE170: 1.165838347
C171: 14.9 | D171: =SQRT(2*$D$7*$D$8)*SIN(-C171+C$16) -> -4.794255386 | E171: =SQRT(2*$D$7*$D$8)*C$11*SIN(-50+C171+C$16) -> -3.203842415 | F171: -7.998097801 | H171: =SIN(-$C171+H$16)+$C$11*SIN(-50+$C171+H$16) -> -0.5507939428 | I171: =SIN(-$C171+I$16)+$C$11*SIN(-50+$C171+I$16) -> -0.8255755151 | J171: =SIN(-$C171+J$16)+$C$11*SIN(-50+$C171+J$16) -> -1.019544004 | K171: =SIN(-$C171+K$16)+$C$11*SIN(-50+$C171+K$16) -> -1.113712422 | L171: =SIN(-$C171+L$16)+$C$11*SIN(-50+$C171+L$16) -> -1.098862908 | M171: =SIN(-$C171+M$16)+$C$11*SIN(-50+$C171+M$16) -> -0.9764490372 | N171: =SIN(-$C171+N$16)+$C$11*SIN(-50+$C171+N$16) -> -0.7584535309 | O171: =SIN(-$C171+O$16)+$C$11*SIN(-50+$C171+O$16) -> -0.4662153086 | P171: =SIN(-$C171+P$16)+$C$11*SIN(-50+$C171+P$16) -> -0.1283406835 | Q171: =SIN(-$C171+Q$16)+$C$11*SIN(-50+$C171+Q$16) -> 0.2220968218 | R171: =SIN(-$C171+R$16)+$C$11*SIN(-50+$C171+R$16) -> 0.5507939428 | S171: =SIN(-$C171+S$16)+$C$11*SIN(-50+$C171+S$16) -> 0.8255755151 | T171: =SIN(-$C171+T$16)+$C$11*SIN(-50+$C171+T$16) -> 1.019544004 | U171: =SIN(-$C171+U$16)+$C$11*SIN(-50+$C171+U$16) -> 1.113712422 | V171: =SIN(-$C171+V$16)+$C$11*SIN(-50+$C171+V$16) -> 1.098862908 | W171: =SIN(-$C171+W$16)+$C$11*SIN(-50+$C171+W$16) -> 0.9764490372 | X171: =SIN(-$C171+X$16)+$C$11*SIN(-50+$C171+X$16) -> 0.7584535309 | Y171: =SIN(-$C171+Y$16)+$C$11*SIN(-50+$C171+Y$16) -> 0.4662153086 | Z171: =SIN(-$C171+Z$16)+$C$11*SIN(-50+$C171+Z$16) -> 0.1283406835 | AA171: =SIN(-$C171+AA$16)+$C$11*SIN(-50+$C171+AA$16) -> -0.2220968218 | AB171: =SIN(-$C171+AB$16)+$C$11*SIN(-50+$C171+AB$16) -> -0.5507939428 | AE171: 1.113712422
C172: 14.8 | D172: =SQRT(2*$D$7*$D$8)*SIN(-C172+C$16) -> -3.894183423 | E172: =SQRT(2*$D$7*$D$8)*C$11*SIN(-50+C172+C$16) -> -3.095984114 | F172: -6.990167537 | H172: =SIN(-$C172+H$16)+$C$11*SIN(-50+$C172+H$16) -> -0.588524251 | I172: =SIN(-$C172+I$16)+$C$11*SIN(-50+$C172+I$16) -> -0.8323417455 | J172: =SIN(-$C172+J$16)+$C$11*SIN(-50+$C172+J$16) -> -0.9946838307 | K172: =SIN(-$C172+K$16)+$C$11*SIN(-50+$C172+K$16) -> -1.059659332 | L172: =SIN(-$C172+L$16)+$C$11*SIN(-50+$C172+L$16) -> -1.020907995 | M172: =SIN(-$C172+M$16)+$C$11*SIN(-50+$C172+M$16) -> -0.8822230704 | N172: =SIN(-$C172+N$16)+$C$11*SIN(-50+$C172+N$16) -> -0.6571800048 | O172: =SIN(-$C172+O$16)+$C$11*SIN(-50+$C172+O$16) -> -0.3678075815 | P172: =SIN(-$C172+P$16)+$C$11*SIN(-50+$C172+P$16) -> -0.0424315894 | Q172: =SIN(-$C172+Q$16)+$C$11*SIN(-50+$C172+Q$16) -> 0.2870979023 | R172: =SIN(-$C172+R$16)+$C$11*SIN(-50+$C172+R$16) -> 0.588524251 | S172: =SIN(-$C172+S$16)+$C$11*SIN(-50+$C172+S$16) -> 0.8323417455 | T172: =SIN(-$C172+T$16)+$C$11*SIN(-50+$C172+T$16) -> 0.9946838307 | U172: =SIN(-$C172+U$16)+$C$11*SIN(-50+$C172+U$16) -> 1.059659332 | V172: =SIN(-$C172+V$16)+$C$11*SIN(-50+$C172+V$16) -> 1.020907995 | W172: =SIN(-$C172+W$16)+$C$11*SIN(-50+$C172+W$16) -> 0.8822230704 | X172: =SIN(-$C172+X$16)+$C$11*SIN(-50+$C172+X$16) -> 0.6571800048 | Y172: =SIN(-$C172+Y$16)+$C$11*SIN(-50+$C172+Y$16) -> 0.3678075815 | Z172: =SIN(-$C172+Z$16)+$C$11*SIN(-50+$C172+Z$16) -> 0.0424315894 | AA172: =SIN(-$C172+AA$16)+$C$11*SIN(-50+$C172+AA$16) -> -0.2870979023 | AB172: =SIN(-$C172+AB$16)+$C$11*SIN(-50+$C172+AB$16) -> -0.588524251 | AE172: 1.059659332
C173: 14.7 | D173: =SQRT(2*$D$7*$D$8)*SIN(-C173+C$16) -> -2.955202067 | E173: =SQRT(2*$D$7*$D$8)*C$11*SIN(-50+C173+C$16) -> -2.957191762 | F173: -5.912393829 | H173: =SIN(-$C173+H$16)+$C$11*SIN(-50+$C173+H$16) -> -0.6203742193 | I173: =SIN(-$C173+I$16)+$C$11*SIN(-50+$C173+I$16) -> -0.8307914923 | J173: =SIN(-$C173+J$16)+$C$11*SIN(-50+$C173+J$16) -> -0.9598851055 | K173: =SIN(-$C173+K$16)+$C$11*SIN(-50+$C173+K$16) -> -0.9950184767 | L173: =SIN(-$C173+L$16)+$C$11*SIN(-50+$C173+L$16) -> -0.9327525067 | M173: =SIN(-$C173+M$16)+$C$11*SIN(-50+$C173+M$16) -> -0.7791822224 | N173: =SIN(-$C173+N$16)+$C$11*SIN(-50+$C173+N$16) -> -0.5493401534 | O173: =SIN(-$C173+O$16)+$C$11*SIN(-50+$C173+O$16) -> -0.2657248426 | P173: =SIN(-$C173+P$16)+$C$11*SIN(-50+$C173+P$16) -> 0.04390146714 | Q173: =SIN(-$C173+Q$16)+$C$11*SIN(-50+$C173+Q$16) -> 0.3492303954 | R173: =SIN(-$C173+R$16)+$C$11*SIN(-50+$C173+R$16) -> 0.6203742193 | S173: =SIN(-$C173+S$16)+$C$11*SIN(-50+$C173+S$16) -> 0.8307914923 | T173: =SIN(-$C173+T$16)+$C$11*SIN(-50+$C173+T$16) -> 0.9598851055 | U173: =SIN(-$C173+U$16)+$C$11*SIN(-50+$C173+U$16) -> 0.9950184767 | V173: =SIN(-$C173+V$16)+$C$11*SIN(-50+$C173+V$16) -> 0.9327525067 | W173: =SIN(-$C173+W$16)+$C$11*SIN(-50+$C173+W$16) -> 0.7791822224 | X173: =SIN(-$C173+X$16)+$C$11*SIN(-50+$C173+X$16) -> 0.5493401534 | Y173: =SIN(-$C173+Y$16)+$C$11*SIN(-50+$C173+Y$16) -> 0.2657248426 | Z173: =SIN(-$C173+Z$16)+$C$11*SIN(-50+$C173+Z$16) -> -0.04390146714 | AA173: =SIN(-$C173+AA$16)+$C$11*SIN(-50+$C173+AA$16) -> -0.3492303954 | AB173: =SIN(-$C173+AB$16)+$C$11*SIN(-50+$C173+AB$16) -> -0.6203742193 | AE173: 0.9950184767
C174: 14.6 | D174: =SQRT(2*$D$7*$D$8)*SIN(-C174+C$16) -> -1.986693308 | E174: =SQRT(2*$D$7*$D$8)*C$11*SIN(-50+C174+C$16) -> -2.788852128 | F174: -4.775545436 | H174: =SIN(-$C174+H$16)+$C$11*SIN(-50+$C174+H$16) -> -0.6460256136 | I174: =SIN(-$C174+I$16)+$C$11*SIN(-50+$C174+I$16) -> -0.8209402451 | J174: =SIN(-$C174+J$16)+$C$11*SIN(-50+$C174+J$16) -> -0.9154955257 | K174: =SIN(-$C174+K$16)+$C$11*SIN(-50+$C174+K$16) -> -0.9204357255 | L174: =SIN(-$C174+L$16)+$C$11*SIN(-50+$C174+L$16) -> -0.8352772635 | M174: =SIN(-$C174+M$16)+$C$11*SIN(-50+$C174+M$16) -> -0.6683560432 | N174: =SIN(-$C174+N$16)+$C$11*SIN(-50+$C174+N$16) -> -0.4360114767 | O174: =SIN(-$C174+O$16)+$C$11*SIN(-50+$C174+O$16) -> -0.160987069 | P174: =SIN(-$C174+P$16)+$C$11*SIN(-50+$C174+P$16) -> 0.1297958747 | Q174: =SIN(-$C174+Q$16)+$C$11*SIN(-50+$C174+Q$16) -> 0.4078734939 | R174: =SIN(-$C174+R$16)+$C$11*SIN(-50+$C174+R$16) -> 0.6460256136 | S174: =SIN(-$C174+S$16)+$C$11*SIN(-50+$C174+S$16) -> 0.8209402451 | T174: =SIN(-$C174+T$16)+$C$11*SIN(-50+$C174+T$16) -> 0.9154955257 | U174: =SIN(-$C174+U$16)+$C$11*SIN(-50+$C174+U$16) -> 0.9204357255 | V174: =SIN(-$C174+V$16)+$C$11*SIN(-50+$C174+V$16) -> 0.8352772635 | W174: =SIN(-$C174+W$16)+$C$11*SIN(-50+$C174+W$16) -> 0.6683560432 | X174: =SIN(-$C174+X$16)+$C$11*SIN(-50+$C174+X$16) -> 0.4360114767 | Y174: =SIN(-$C174+Y$16)+$C$11*SIN(-50+$C174+Y$16) -> 0.160987069 | Z174: =SIN(-$C174+Z$16)+$C$11*SIN(-50+$C174+Z$16) -> -0.1297958747 | AA174: =SIN(-$C174+AA$16)+$C$11*SIN(-50+$C174+AA$16) -> -0.4078734939 | AB174: =SIN(-$C174+AB$16)+$C$11*SIN(-50+$C174+AB$16) -> -0.6460256136 | AE174: 0.9204357255
C175: 14.5 | D175: =SQRT(2*$D$7*$D$8)*SIN(-C175+C$16) -> -0.9983341665 | E175: =SQRT(2*$D$7*$D$8)*C$11*SIN(-50+C175+C$16) -> -2.592647206 | F175: -3.590981372 | H175: =SIN(-$C175+H$16)+$C$11*SIN(-50+$C175+H$16) -> -0.6652221335 | I175: =SIN(-$C175+I$16)+$C$11*SIN(-50+$C175+I$16) -> -0.8028864344 | J175: =SIN(-$C175+J$16)+$C$11*SIN(-50+$C175+J$16) -> -0.8619586172 | K175: =SIN(-$C175+K$16)+$C$11*SIN(-50+$C175+K$16) -> -0.8366562848 | L175: =SIN(-$C175+L$16)+$C$11*SIN(-50+$C175+L$16) -> -0.729456206 | M175: =SIN(-$C175+M$16)+$C$11*SIN(-50+$C175+M$16) -> -0.5508518713 | N175: =SIN(-$C175+N$16)+$C$11*SIN(-50+$C175+N$16) -> -0.3183263174 | O175: =SIN(-$C175+O$16)+$C$11*SIN(-50+$C175+O$16) -> -0.05464076573 | P175: =SIN(-$C175+P$16)+$C$11*SIN(-50+$C175+P$16) -> 0.2143934048 | Q175: =SIN(-$C175+Q$16)+$C$11*SIN(-50+$C175+Q$16) -> 0.4624412552 | R175: =SIN(-$C175+R$16)+$C$11*SIN(-50+$C175+R$16) -> 0.6652221335 | S175: =SIN(-$C175+S$16)+$C$11*SIN(-50+$C175+S$16) -> 0.8028864344 | T175: =SIN(-$C175+T$16)+$C$11*SIN(-50+$C175+T$16) -> 0.8619586172 | U175: =SIN(-$C175+U$16)+$C$11*SIN(-50+$C175+U$16) -> 0.8366562848 | V175: =SIN(-$C175+V$16)+$C$11*SIN(-50+$C175+V$16) -> 0.729456206 | W175: =SIN(-$C175+W$16)+$C$11*SIN(-50+$C175+W$16) -> 0.5508518713 | X175: =SIN(-$C175+X$16)+$C$11*SIN(-50+$C175+X$16) -> 0.3183263174 | Y175: =SIN(-$C175+Y$16)+$C$11*SIN(-50+$C175+Y$16) -> 0.05464076573 | Z175: =SIN(-$C175+Z$16)+$C$11*SIN(-50+$C175+Z$16) -> -0.2143934048 | AA175: =SIN(-$C175+AA$16)+$C$11*SIN(-50+$C175+AA$16) -> -0.4624412552 | AB175: =SIN(-$C175+AB$16)+$C$11*SIN(-50+$C175+AB$16) -> -0.6652221335 | AE175: 0.8619586172
C176: 14.4 | D176: =SQRT(2*$D$7*$D$8)*SIN(-C176+C$16) -> 1.900701818e-12 | E176: =SQRT(2*$D$7*$D$8)*C$11*SIN(-50+C176+C$16) -> -2.37053741 | F176: -2.37053741 | H176: =SIN(-$C176+H$16)+$C$11*SIN(-50+$C176+H$16) -> -0.6777719737 | I176: =SIN(-$C176+I$16)+$C$11*SIN(-50+$C176+I$16) -> -0.7768104479 | J176: =SIN(-$C176+J$16)+$C$11*SIN(-50+$C176+J$16) -> -0.7998093031 | K176: =SIN(-$C176+K$16)+$C$11*SIN(-50+$C176+K$16) -> -0.7445172511 | L176: =SIN(-$C176+L$16)+$C$11*SIN(-50+$C176+L$16) -> -0.6163466632 | M176: =SIN(-$C176+M$16)+$C$11*SIN(-50+$C176+M$16) -> -0.4278437696 | N176: =SIN(-$C176+N$16)+$C$11*SIN(-50+$C176+N$16) -> -0.1974605469 | O176: =SIN(-$C176+O$16)+$C$11*SIN(-50+$C176+O$16) -> 0.05225148997 | P176: =SIN(-$C176+P$16)+$C$11*SIN(-50+$C176+P$16) -> 0.2968487869 | Q176: =SIN(-$C176+Q$16)+$C$11*SIN(-50+$C176+Q$16) -> 0.5123884564 | R176: =SIN(-$C176+R$16)+$C$11*SIN(-50+$C176+R$16) -> 0.6777719737 | S176: =SIN(-$C176+S$16)+$C$11*SIN(-50+$C176+S$16) -> 0.7768104479 | T176: =SIN(-$C176+T$16)+$C$11*SIN(-50+$C176+T$16) -> 0.7998093031 | U176: =SIN(-$C176+U$16)+$C$11*SIN(-50+$C176+U$16) -> 0.7445172511 | V176: =SIN(-$C176+V$16)+$C$11*SIN(-50+$C176+V$16) -> 0.6163466632 | W176: =SIN(-$C176+W$16)+$C$11*SIN(-50+$C176+W$16) -> 0.4278437696 | X176: =SIN(-$C176+X$16)+$C$11*SIN(-50+$C176+X$16) -> 0.1974605469 | Y176: =SIN(-$C176+Y$16)+$C$11*SIN(-50+$C176+Y$16) -> -0.05225148997 | Z176: =SIN(-$C176+Z$16)+$C$11*SIN(-50+$C176+Z$16) -> -0.2968487869 | AA176: =SIN(-$C176+AA$16)+$C$11*SIN(-50+$C176+AA$16) -> -0.5123884564 | AB176: =SIN(-$C176+AB$16)+$C$11*SIN(-50+$C176+AB$16) -> -0.6777719737 | AE176: 0.7998093031
C177: 14.3 | D177: =SQRT(2*$D$7*$D$8)*SIN(-C177+C$16) -> 0.9983341665 | E177: =SQRT(2*$D$7*$D$8)*C$11*SIN(-50+C177+C$16) -> -2.124741987 | F177: =D177+E177 -> -1.126407821 | H177: =SIN(-$C177+H$16)+$C$11*SIN(-50+$C177+H$16) -> -0.6835497403 | I177: =SIN(-$C177+I$16)+$C$11*SIN(-50+$C177+I$16) -> -0.7429728281 | J177: =SIN(-$C177+J$16)+$C$11*SIN(-50+$C177+J$16) -> -0.7296685588 | K177: =SIN(-$C177+K$16)+$C$11*SIN(-50+$C177+K$16) -> -0.6449392471 | L177: =SIN(-$C177+L$16)+$C$11*SIN(-50+$C177+L$16) -> -0.4970787883 | M177: =SIN(-$C177+M$16)+$C$11*SIN(-50+$C177+M$16) -> -0.3005607944 | N177: =SIN(-$C177+N$16)+$C$11*SIN(-50+$C177+N$16) -> -0.0746218158 | O177: =SIN(-$C177+O$16)+$C$11*SIN(-50+$C177+O$16) -> 0.1586216661 | P177: =SIN(-$C177+P$16)+$C$11*SIN(-50+$C177+P$16) -> 0.3763381541 | Q177: =SIN(-$C177+Q$16)+$C$11*SIN(-50+$C177+Q$16) -> 0.5572160414 | R177: =SIN(-$C177+R$16)+$C$11*SIN(-50+$C177+R$16) -> 0.6835497403 | S177: =SIN(-$C177+S$16)+$C$11*SIN(-50+$C177+S$16) -> 0.7429728281 | T177: =SIN(-$C177+T$16)+$C$11*SIN(-50+$C177+T$16) -> 0.7296685588 | U177: =SIN(-$C177+U$16)+$C$11*SIN(-50+$C177+U$16) -> 0.6449392471 | V177: =SIN(-$C177+V$16)+$C$11*SIN(-50+$C177+V$16) -> 0.4970787883 | W177: =SIN(-$C177+W$16)+$C$11*SIN(-50+$C177+W$16) -> 0.3005607944 | X177: =SIN(-$C177+X$16)+$C$11*SIN(-50+$C177+X$16) -> 0.0746218158 | Y177: =SIN(-$C177+Y$16)+$C$11*SIN(-50+$C177+Y$16) -> -0.1586216661 | Z177: =SIN(-$C177+Z$16)+$C$11*SIN(-50+$C177+Z$16) -> -0.3763381541 | AA177: =SIN(-$C177+AA$16)+$C$11*SIN(-50+$C177+AA$16) -> -0.5572160414 | AB177: =SIN(-$C177+AB$16)+$C$11*SIN(-50+$C177+AB$16) -> -0.6835497403 | AE177: 0.7429728281
C178: 14.2 | D178: =SQRT(2*$D$7*$D$8)*SIN(-C178+C$16) -> 1.986693308 | E178: =SQRT(2*$D$7*$D$8)*C$11*SIN(-50+C178+C$16) -> -1.857716845 | F178: 0.1289764629 | H178: =SIN(-$C178+H$16)+$C$11*SIN(-50+$C178+H$16) -> -0.682497704 | I178: =SIN(-$C178+I$16)+$C$11*SIN(-50+$C178+I$16) -> -0.7017116694 | J178: =SIN(-$C178+J$16)+$C$11*SIN(-50+$C178+J$16) -> -0.6522372075 | K178: =SIN(-$C178+K$16)+$C$11*SIN(-50+$C178+K$16) -> -0.5389172233 | L178: =SIN(-$C178+L$16)+$C$11*SIN(-50+$C178+L$16) -> -0.3728442665 | M178: =SIN(-$C178+M$16)+$C$11*SIN(-50+$C178+M$16) -> -0.1702747151 | N178: =SIN(-$C178+N$16)+$C$11*SIN(-50+$C178+N$16) -> 0.0489625118 | O178: =SIN(-$C178+O$16)+$C$11*SIN(-50+$C178+O$16) -> 0.2634069469 | P178: =SIN(-$C178+P$16)+$C$11*SIN(-50+$C178+P$16) -> 0.4520672748 | Q178: =SIN(-$C178+Q$16)+$C$11*SIN(-50+$C178+Q$16) -> 0.596476108 | R178: =SIN(-$C178+R$16)+$C$11*SIN(-50+$C178+R$16) -> 0.682497704 | S178: =SIN(-$C178+S$16)+$C$11*SIN(-50+$C178+S$16) -> 0.7017116694 | T178: =SIN(-$C178+T$16)+$C$11*SIN(-50+$C178+T$16) -> 0.6522372075 | U178: =SIN(-$C178+U$16)+$C$11*SIN(-50+$C178+U$16) -> 0.5389172233 | V178: =SIN(-$C178+V$16)+$C$11*SIN(-50+$C178+V$16) -> 0.3728442665 | W178: =SIN(-$C178+W$16)+$C$11*SIN(-50+$C178+W$16) -> 0.1702747151 | X178: =SIN(-$C178+X$16)+$C$11*SIN(-50+$C178+X$16) -> -0.0489625118 | Y178: =SIN(-$C178+Y$16)+$C$11*SIN(-50+$C178+Y$16) -> -0.2634069469 | Z178: =SIN(-$C178+Z$16)+$C$11*SIN(-50+$C178+Z$16) -> -0.4520672748 | AA178: =SIN(-$C178+AA$16)+$C$11*SIN(-50+$C178+AA$16) -> -0.596476108 | AB178: =SIN(-$C178+AB$16)+$C$11*SIN(-50+$C178+AB$16) -> -0.682497704 | AE178: 0.7017116694
C179: 14.1 | D179: =SQRT(2*$D$7*$D$8)*SIN(-C179+C$16) -> 2.955202067 | E179: =SQRT(2*$D$7*$D$8)*C$11*SIN(-50+C179+C$16) -> -1.57213001 | F179: 1.383072056 | H179: =SIN(-$C179+H$16)+$C$11*SIN(-50+$C179+H$16) -> -0.6746263761 | I179: =SIN(-$C179+I$16)+$C$11*SIN(-50+$C179+I$16) -> -0.6534392396 | J179: =SIN(-$C179+J$16)+$C$11*SIN(-50+$C179+J$16) -> -0.5682889176 | K179: =SIN(-$C179+K$16)+$C$11*SIN(-50+$C179+K$16) -> -0.4275105168 | L179: =SIN(-$C179+L$16)+$C$11*SIN(-50+$C179+L$16) -> -0.244884408 | M179: =SIN(-$C179+M$16)+$C$11*SIN(-50+$C179+M$16) -> -0.0382873071 | N179: =SIN(-$C179+N$16)+$C$11*SIN(-50+$C179+N$16) -> 0.1720576222 | O179: =SIN(-$C179+O$16)+$C$11*SIN(-50+$C179+O$16) -> 0.3655603526 | P179: =SIN(-$C179+P$16)+$C$11*SIN(-50+$C179+P$16) -> 0.5232794887 | Q179: =SIN(-$C179+Q$16)+$C$11*SIN(-50+$C179+Q$16) -> 0.6297763825 | R179: =SIN(-$C179+R$16)+$C$11*SIN(-50+$C179+R$16) -> 0.6746263761 | S179: =SIN(-$C179+S$16)+$C$11*SIN(-50+$C179+S$16) -> 0.6534392396 | T179: =SIN(-$C179+T$16)+$C$11*SIN(-50+$C179+T$16) -> 0.5682889176 | U179: =SIN(-$C179+U$16)+$C$11*SIN(-50+$C179+U$16) -> 0.4275105168 | V179: =SIN(-$C179+V$16)+$C$11*SIN(-50+$C179+V$16) -> 0.244884408 | W179: =SIN(-$C179+W$16)+$C$11*SIN(-50+$C179+W$16) -> 0.0382873071 | X179: =SIN(-$C179+X$16)+$C$11*SIN(-50+$C179+X$16) -> -0.1720576222 | Y179: =SIN(-$C179+Y$16)+$C$11*SIN(-50+$C179+Y$16) -> -0.3655603526 | Z179: =SIN(-$C179+Z$16)+$C$11*SIN(-50+$C179+Z$16) -> -0.5232794887 | AA179: =SIN(-$C179+AA$16)+$C$11*SIN(-50+$C179+AA$16) -> -0.6297763825 | AB179: =SIN(-$C179+AB$16)+$C$11*SIN(-50+$C179+AB$16) -> -0.6746263761 | AE179: 0.6746263761
C180: 14 | D180: =SQRT(2*$D$7*$D$8)*SIN(-C180+C$16) -> 3.894183423 | E180: =SQRT(2*$D$7*$D$8)*C$11*SIN(-50+C180+C$16) -> -1.270834972 | F180: 2.623348451 | H180: =SIN(-$C180+H$16)+$C$11*SIN(-50+$C180+H$16) -> -0.6600144045 | I180: =SIN(-$C180+I$16)+$C$11*SIN(-50+$C180+I$16) -> -0.598637861 | J180: =SIN(-$C180+J$16)+$C$11*SIN(-50+$C180+J$16) -> -0.4786624727 | K180: =SIN(-$C180+K$16)+$C$11*SIN(-50+$C180+K$16) -> -0.3118322665 | L180: =SIN(-$C180+L$16)+$C$11*SIN(-50+$C180+L$16) -> -0.1144777454 | M180: =SIN(-$C180+M$16)+$C$11*SIN(-50+$C180+M$16) -> 0.094082655 | N180: =SIN(-$C180+N$16)+$C$11*SIN(-50+$C180+N$16) -> 0.2934335896 | O180: =SIN(-$C180+O$16)+$C$11*SIN(-50+$C180+O$16) -> 0.4640612001 | P180: =SIN(-$C180+P$16)+$C$11*SIN(-50+$C180+P$16) -> 0.5892632669 | Q180: =SIN(-$C180+Q$16)+$C$11*SIN(-50+$C180+Q$16) -> 0.6567841396 | R180: =SIN(-$C180+R$16)+$C$11*SIN(-50+$C180+R$16) -> 0.6600144045 | S180: =SIN(-$C180+S$16)+$C$11*SIN(-50+$C180+S$16) -> 0.598637861 | T180: =SIN(-$C180+T$16)+$C$11*SIN(-50+$C180+T$16) -> 0.4786624727 | U180: =SIN(-$C180+U$16)+$C$11*SIN(-50+$C180+U$16) -> 0.3118322665 | V180: =SIN(-$C180+V$16)+$C$11*SIN(-50+$C180+V$16) -> 0.1144777454 | W180: =SIN(-$C180+W$16)+$C$11*SIN(-50+$C180+W$16) -> -0.094082655 | X180: =SIN(-$C180+X$16)+$C$11*SIN(-50+$C180+X$16) -> -0.2934335896 | Y180: =SIN(-$C180+Y$16)+$C$11*SIN(-50+$C180+Y$16) -> -0.4640612001 | Z180: =SIN(-$C180+Z$16)+$C$11*SIN(-50+$C180+Z$16) -> -0.5892632669 | AA180: =SIN(-$C180+AA$16)+$C$11*SIN(-50+$C180+AA$16) -> -0.6567841396 | AB180: =SIN(-$C180+AB$16)+$C$11*SIN(-50+$C180+AB$16) -> -0.6600144045 | AE180: 0.6600144045
C181: 13.9 | D181: =SQRT(2*$D$7*$D$8)*SIN(-C181+C$16) -> 4.794255386 | E181: =SQRT(2*$D$7*$D$8)*C$11*SIN(-50+C181+C$16) -> -0.9568421711 | F181: 3.837413215 | H181: =SIN(-$C181+H$16)+$C$11*SIN(-50+$C181+H$16) -> -0.6388077872 | I181: =SIN(-$C181+I$16)+$C$11*SIN(-50+$C181+I$16) -> -0.5378550908 | J181: =SIN(-$C181+J$16)+$C$11*SIN(-50+$C181+J$16) -> -0.3842533906 | K181: =SIN(-$C181+K$16)+$C$11*SIN(-50+$C181+K$16) -> -0.1930382913 | L181: =SIN(-$C181+L$16)+$C$11*SIN(-50+$C181+L$16) -> 0.01707274092 | M181: =SIN(-$C181+M$16)+$C$11*SIN(-50+$C181+M$16) -> 0.2255125743 | N181: =SIN(-$C181+N$16)+$C$11*SIN(-50+$C181+N$16) -> 0.4118776657 | O181: =SIN(-$C181+O$16)+$C$11*SIN(-50+$C181+O$16) -> 0.5579253014 | P181: =SIN(-$C181+P$16)+$C$11*SIN(-50+$C181+P$16) -> 0.6493593214 | Q181: =SIN(-$C181+Q$16)+$C$11*SIN(-50+$C181+Q$16) -> 0.6772295266 | R181: =SIN(-$C181+R$16)+$C$11*SIN(-50+$C181+R$16) -> 0.6388077872 | S181: =SIN(-$C181+S$16)+$C$11*SIN(-50+$C181+S$16) -> 0.5378550908 | T181: =SIN(-$C181+T$16)+$C$11*SIN(-50+$C181+T$16) -> 0.3842533906 | U181: =SIN(-$C181+U$16)+$C$11*SIN(-50+$C181+U$16) -> 0.1930382913 | V181: =SIN(-$C181+V$16)+$C$11*SIN(-50+$C181+V$16) -> -0.01707274092 | W181: =SIN(-$C181+W$16)+$C$11*SIN(-50+$C181+W$16) -> -0.2255125743 | X181: =SIN(-$C181+X$16)+$C$11*SIN(-50+$C181+X$16) -> -0.4118776657 | Y181: =SIN(-$C181+Y$16)+$C$11*SIN(-50+$C181+Y$16) -> -0.5579253014 | Z181: =SIN(-$C181+Z$16)+$C$11*SIN(-50+$C181+Z$16) -> -0.6493593214 | AA181: =SIN(-$C181+AA$16)+$C$11*SIN(-50+$C181+AA$16) -> -0.6772295266 | AB181: =SIN(-$C181+AB$16)+$C$11*SIN(-50+$C181+AB$16) -> -0.6388077872 | AE181: 0.6772295266
C182: 13.8 | D182: =SQRT(2*$D$7*$D$8)*SIN(-C182+C$16) -> 5.646424734 | E182: =SQRT(2*$D$7*$D$8)*C$11*SIN(-50+C182+C$16) -> -0.6332889193 | F182: 5.013135815 | H182: =SIN(-$C182+H$16)+$C$11*SIN(-50+$C182+H$16) -> -0.6112184136 | I182: =SIN(-$C182+I$16)+$C$11*SIN(-50+$C182+I$16) -> -0.4716982503 | J182: =SIN(-$C182+J$16)+$C$11*SIN(-50+$C182+J$16) -> -0.2860049756 | K182: =SIN(-$C182+K$16)+$C$11*SIN(-50+$C182+K$16) -> -0.0723155413 | L182: =SIN(-$C182+L$16)+$C$11*SIN(-50+$C182+L$16) -> 0.1484526421 | M182: =SIN(-$C182+M$16)+$C$11*SIN(-50+$C182+M$16) -> 0.3546892465 | N182: =SIN(-$C182+N$16)+$C$11*SIN(-50+$C182+N$16) -> 0.5262063963 | O182: =SIN(-$C182+O$16)+$C$11*SIN(-50+$C182+O$16) -> 0.6462147976 | P182: =SIN(-$C182+P$16)+$C$11*SIN(-50+$C182+P$16) -> 0.7029671922 | Q182: =SIN(-$C182+Q$16)+$C$11*SIN(-50+$C182+Q$16) -> 0.6909082601 | R182: =SIN(-$C182+R$16)+$C$11*SIN(-50+$C182+R$16) -> 0.6112184136 | S182: =SIN(-$C182+S$16)+$C$11*SIN(-50+$C182+S$16) -> 0.4716982503 | T182: =SIN(-$C182+T$16)+$C$11*SIN(-50+$C182+T$16) -> 0.2860049756 | U182: =SIN(-$C182+U$16)+$C$11*SIN(-50+$C182+U$16) -> 0.0723155413 | V182: =SIN(-$C182+V$16)+$C$11*SIN(-50+$C182+V$16) -> -0.1484526421 | W182: =SIN(-$C182+W$16)+$C$11*SIN(-50+$C182+W$16) -> -0.3546892465 | X182: =SIN(-$C182+X$16)+$C$11*SIN(-50+$C182+X$16) -> -0.5262063963 | Y182: =SIN(-$C182+Y$16)+$C$11*SIN(-50+$C182+Y$16) -> -0.6462147976 | Z182: =SIN(-$C182+Z$16)+$C$11*SIN(-50+$C182+Z$16) -> -0.7029671922 | AA182: =SIN(-$C182+AA$16)+$C$11*SIN(-50+$C182+AA$16) -> -0.6909082601 | AB182: =SIN(-$C182+AB$16)+$C$11*SIN(-50+$C182+AB$16) -> -0.6112184136 | AE182: 0.7029671922
C183: 13.7 | D183: =SQRT(2*$D$7*$D$8)*SIN(-C183+C$16) -> 6.442176872 | E183: =SQRT(2*$D$7*$D$8)*C$11*SIN(-50+C183+C$16) -> -0.303408054 | F183: 6.138768818 | H183: =SIN(-$C183+H$16)+$C$11*SIN(-50+$C183+H$16) -> -0.5775219477 | I183: =SIN(-$C183+I$16)+$C$11*SIN(-50+$C183+I$16) -> -0.4008283567 | J183: =SIN(-$C183+J$16)+$C$11*SIN(-50+$C183+J$16) -> -0.1848988935 | K183: =SIN(-$C183+K$16)+$C$11*SIN(-50+$C183+K$16) -> 0.0491297617 | L183: =SIN(-$C183+L$16)+$C$11*SIN(-50+$C183+L$16) -> 0.2783492535 | M183: =SIN(-$C183+M$16)+$C$11*SIN(-50+$C183+M$16) -> 0.480321981 | N183: =SIN(-$C183+N$16)+$C$11*SIN(-50+$C183+N$16) -> 0.6352774464 | O183: =SIN(-$C183+O$16)+$C$11*SIN(-50+$C183+O$16) -> 0.7280475292 | P183: =SIN(-$C183+P$16)+$C$11*SIN(-50+$C183+P$16) -> 0.7495512471 | Q183: =SIN(-$C183+Q$16)+$C$11*SIN(-50+$C183+Q$16) -> 0.6976836666 | R183: =SIN(-$C183+R$16)+$C$11*SIN(-50+$C183+R$16) -> 0.5775219477 | S183: =SIN(-$C183+S$16)+$C$11*SIN(-50+$C183+S$16) -> 0.4008283567 | T183: =SIN(-$C183+T$16)+$C$11*SIN(-50+$C183+T$16) -> 0.1848988935 | U183: =SIN(-$C183+U$16)+$C$11*SIN(-50+$C183+U$16) -> -0.0491297617 | V183: =SIN(-$C183+V$16)+$C$11*SIN(-50+$C183+V$16) -> -0.2783492535 | W183: =SIN(-$C183+W$16)+$C$11*SIN(-50+$C183+W$16) -> -0.480321981 | X183: =SIN(-$C183+X$16)+$C$11*SIN(-50+$C183+X$16) -> -0.6352774464 | Y183: =SIN(-$C183+Y$16)+$C$11*SIN(-50+$C183+Y$16) -> -0.7280475292 | Z183: =SIN(-$C183+Z$16)+$C$11*SIN(-50+$C183+Z$16) -> -0.7495512471 | AA183: =SIN(-$C183+AA$16)+$C$11*SIN(-50+$C183+AA$16) -> -0.6976836666 | AB183: =SIN(-$C183+AB$16)+$C$11*SIN(-50+$C183+AB$16) -> -0.5775219477 | AE183: 0.7495512471
C184: 13.6 | D184: =SQRT(2*$D$7*$D$8)*SIN(-C184+C$16) -> 7.173560909 | E184: =SQRT(2*$D$7*$D$8)*C$11*SIN(-50+C184+C$16) -> 0.0295043643 | F184: 7.203065273 | H184: =SIN(-$C184+H$16)+$C$11*SIN(-50+$C184+H$16) -> -0.5380550734 | I184: =SIN(-$C184+I$16)+$C$11*SIN(-50+$C184+I$16) -> -0.3259535188 | J184: =SIN(-$C184+J$16)+$C$11*SIN(-50+$C184+J$16) -> -0.08194536274 | K184: =SIN(-$C184+K$16)+$C$11*SIN(-50+$C184+K$16) -> 0.1700841764 | L184: =SIN(-$C184+L$16)+$C$11*SIN(-50+$C184+L$16) -> 0.4054646912 | M184: =SIN(-$C184+M$16)+$C$11*SIN(-50+$C184+M$16) -> 0.6011554971 | N184: =SIN(-$C184+N$16)+$C$11*SIN(-50+$C184+N$16) -> 0.7380010144 | O184: =SIN(-$C184+O$16)+$C$11*SIN(-50+$C184+O$16) -> 0.8026058504 | P184: =SIN(-$C184+P$16)+$C$11*SIN(-50+$C184+P$16) -> 0.7886460338 | Q184: =SIN(-$C184+Q$16)+$C$11*SIN(-50+$C184+Q$16) -> 0.6974880485 | R184: =SIN(-$C184+R$16)+$C$11*SIN(-50+$C184+R$16) -> 0.5380550734 | S184: =SIN(-$C184+S$16)+$C$11*SIN(-50+$C184+S$16) -> 0.3259535188 | T184: =SIN(-$C184+T$16)+$C$11*SIN(-50+$C184+T$16) -> 0.08194536274 | U184: =SIN(-$C184+U$16)+$C$11*SIN(-50+$C184+U$16) -> -0.1700841764 | V184: =SIN(-$C184+V$16)+$C$11*SIN(-50+$C184+V$16) -> -0.4054646912 | W184: =SIN(-$C184+W$16)+$C$11*SIN(-50+$C184+W$16) -> -0.6011554971 | X184: =SIN(-$C184+X$16)+$C$11*SIN(-50+$C184+X$16) -> -0.7380010144 | Y184: =SIN(-$C184+Y$16)+$C$11*SIN(-50+$C184+Y$16) -> -0.8026058504 | Z184: =SIN(-$C184+Z$16)+$C$11*SIN(-50+$C184+Z$16) -> -0.7886460338 | AA184: =SIN(-$C184+AA$16)+$C$11*SIN(-50+$C184+AA$16) -> -0.6974880485 | AB184: =SIN(-$C184+AB$16)+$C$11*SIN(-50+$C184+AB$16) -> -0.5380550734 | AE184: 0.8026058504
C185: 13.5 | D185: =SQRT(2*$D$7*$D$8)*SIN(-C185+C$16) -> 7.833269096 | E185: =SQRT(2*$D$7*$D$8)*C$11*SIN(-50+C185+C$16) -> 0.3621219847 | F185: 8.195391081 | H185: =SIN(-$C185+H$16)+$C$11*SIN(-50+$C185+H$16) -> -0.4932121306 | I185: =SIN(-$C185+I$16)+$C$11*SIN(-50+$C185+I$16) -> -0.247821861 | J185: =SIN(-$C185+J$16)+$C$11*SIN(-50+$C185+J$16) -> 0.021826939 | K185: =SIN(-$C185+K$16)+$C$11*SIN(-50+$C185+K$16) -> 0.2893391661 | L185: =SIN(-$C185+L$16)+$C$11*SIN(-50+$C185+L$16) -> 0.5285288598 | M185: =SIN(-$C185+M$16)+$C$11*SIN(-50+$C185+M$16) -> 0.7159824661 | N185: =SIN(-$C185+N$16)+$C$11*SIN(-50+$C185+N$16) -> 0.8333507201 | O185: =SIN(-$C185+O$16)+$C$11*SIN(-50+$C185+O$16) -> 0.8691447994 | P185: =SIN(-$C185+P$16)+$C$11*SIN(-50+$C185+P$16) -> 0.81986093 | Q185: =SIN(-$C185+Q$16)+$C$11*SIN(-50+$C185+Q$16) -> 0.6903233604 | R185: =SIN(-$C185+R$16)+$C$11*SIN(-50+$C185+R$16) -> 0.4932121306 | S185: =SIN(-$C185+S$16)+$C$11*SIN(-50+$C185+S$16) -> 0.247821861 | T185: =SIN(-$C185+T$16)+$C$11*SIN(-50+$C185+T$16) -> -0.021826939 | U185: =SIN(-$C185+U$16)+$C$11*SIN(-50+$C185+U$16) -> -0.2893391661 | V185: =SIN(-$C185+V$16)+$C$11*SIN(-50+$C185+V$16) -> -0.5285288598 | W185: =SIN(-$C185+W$16)+$C$11*SIN(-50+$C185+W$16) -> -0.7159824661 | X185: =SIN(-$C185+X$16)+$C$11*SIN(-50+$C185+X$16) -> -0.8333507201 | Y185: =SIN(-$C185+Y$16)+$C$11*SIN(-50+$C185+Y$16) -> -0.8691447994 | Z185: =SIN(-$C185+Z$16)+$C$11*SIN(-50+$C185+Z$16) -> -0.81986093 | AA185: =SIN(-$C185+AA$16)+$C$11*SIN(-50+$C185+AA$16) -> -0.6903233604 | AB185: =SIN(-$C185+AB$16)+$C$11*SIN(-50+$C185+AB$16) -> -0.4932121306 | AE185: 0.8691447994
C186: 13.4 | D186: =SQRT(2*$D$7*$D$8)*SIN(-C186+C$16) -> 8.414709848 | E186: =SQRT(2*$D$7*$D$8)*C$11*SIN(-50+C186+C$16) -> 0.691121402 | F186: 9.10583125 | H186: =SIN(-$C186+H$16)+$C$11*SIN(-50+$C186+H$16) -> -0.4434411753 | I186: =SIN(-$C186+I$16)+$C$11*SIN(-50+$C186+I$16) -> -0.1672140491 | J186: =SIN(-$C186+J$16)+$C$11*SIN(-50+$C186+J$16) -> 0.1253811532 | K186: =SIN(-$C186+K$16)+$C$11*SIN(-50+$C186+K$16) -> 0.4057031746 | L186: =SIN(-$C186+L$16)+$C$11*SIN(-50+$C186+L$16) -> 0.6463121426 | M186: =SIN(-$C186+M$16)+$C$11*SIN(-50+$C186+M$16) -> 0.823655575 | N186: =SIN(-$C186+N$16)+$C$11*SIN(-50+$C186+N$16) -> 0.920373861 | O186: =SIN(-$C186+O$16)+$C$11*SIN(-50+$C186+O$16) -> 0.9269995408 | P186: =SIN(-$C186+P$16)+$C$11*SIN(-50+$C186+P$16) -> 0.8428840468 | Q186: =SIN(-$C186+Q$16)+$C$11*SIN(-50+$C186+Q$16) -> 0.6762611895 | R186: =SIN(-$C186+R$16)+$C$11*SIN(-50+$C186+R$16) -> 0.4434411753 | S186: =SIN(-$C186+S$16)+$C$11*SIN(-50+$C186+S$16) -> 0.1672140491 | T186: =SIN(-$C186+T$16)+$C$11*SIN(-50+$C186+T$16) -> -0.1253811532 | U186: =SIN(-$C186+U$16)+$C$11*SIN(-50+$C186+U$16) -> -0.4057031746 | V186: =SIN(-$C186+V$16)+$C$11*SIN(-50+$C186+V$16) -> -0.6463121426 | W186: =SIN(-$C186+W$16)+$C$11*SIN(-50+$C186+W$16) -> -0.823655575 | X186: =SIN(-$C186+X$16)+$C$11*SIN(-50+$C186+X$16) -> -0.920373861 | Y186: =SIN(-$C186+Y$16)+$C$11*SIN(-50+$C186+Y$16) -> -0.9269995408 | Z186: =SIN(-$C186+Z$16)+$C$11*SIN(-50+$C186+Z$16) -> -0.8428840468 | AA186: =SIN(-$C186+AA$16)+$C$11*SIN(-50+$C186+AA$16) -> -0.6762611895 | AB186: =SIN(-$C186+AB$16)+$C$11*SIN(-50+$C186+AB$16) -> -0.4434411753 | AE186: 0.9269995408
C187: 13.3 | D187: =SQRT(2*$D$7*$D$8)*SIN(-C187+C$16) -> 8.912073601 | E187: =SQRT(2*$D$7*$D$8)*C$11*SIN(-50+C187+C$16) -> 1.013215363 | F187: 9.925288963 | H187: =SIN(-$C187+H$16)+$C$11*SIN(-50+$C187+H$16) -> -0.3892395023 | I187: =SIN(-$C187+I$16)+$C$11*SIN(-50+$C187+I$16) -> -0.08493548974 | J187: =SIN(-$C187+J$16)+$C$11*SIN(-50+$C187+J$16) -> 0.2276826003 | K187: =SIN(-$C187+K$16)+$C$11*SIN(-50+$C187+K$16) -> 0.5180135311 | L187: =SIN(-$C187+L$16)+$C$11*SIN(-50+$C187+L$16) -> 0.7576376882 | M187: =SIN(-$C187+M$16)+$C$11*SIN(-50+$C187+M$16) -> 0.9230989897 | N187: =SIN(-$C187+N$16)+$C$11*SIN(-50+$C187+N$16) -> 0.9982009304 | O187: =SIN(-$C187+O$16)+$C$11*SIN(-50+$C187+O$16) -> 0.9755920092 | P187: =SIN(-$C187+P$16)+$C$11*SIN(-50+$C187+P$16) -> 0.8574853448 | Q187: =SIN(-$C187+Q$16)+$C$11*SIN(-50+$C187+Q$16) -> 0.6554420403 | R187: =SIN(-$C187+R$16)+$C$11*SIN(-50+$C187+R$16) -> 0.3892395023 | S187: =SIN(-$C187+S$16)+$C$11*SIN(-50+$C187+S$16) -> 0.08493548974 | T187: =SIN(-$C187+T$16)+$C$11*SIN(-50+$C187+T$16) -> -0.2276826003 | U187: =SIN(-$C187+U$16)+$C$11*SIN(-50+$C187+U$16) -> -0.5180135311 | V187: =SIN(-$C187+V$16)+$C$11*SIN(-50+$C187+V$16) -> -0.7576376882 | W187: =SIN(-$C187+W$16)+$C$11*SIN(-50+$C187+W$16) -> -0.9230989897 | X187: =SIN(-$C187+X$16)+$C$11*SIN(-50+$C187+X$16) -> -0.9982009304 | Y187: =SIN(-$C187+Y$16)+$C$11*SIN(-50+$C187+Y$16) -> -0.9755920092 | Z187: =SIN(-$C187+Z$16)+$C$11*SIN(-50+$C187+Z$16) -> -0.8574853448 | AA187: =SIN(-$C187+AA$16)+$C$11*SIN(-50+$C187+AA$16) -> -0.6554420403 | AB187: =SIN(-$C187+AB$16)+$C$11*SIN(-50+$C187+AB$16) -> -0.3892395023 | AE187: 0.9982009304
C188: 13.2 | D188: =SQRT(2*$D$7*$D$8)*SIN(-C188+C$16) -> 9.32039086 | E188: =SQRT(2*$D$7*$D$8)*C$11*SIN(-50+C188+C$16) -> 1.32518561 | F188: 10.64557647 | H188: =SIN(-$C188+H$16)+$C$11*SIN(-50+$C188+H$16) -> -0.3311486769 | I188: =SIN(-$C188+I$16)+$C$11*SIN(-50+$C188+I$16) -> -0.001808283008 | J188: =SIN(-$C188+J$16)+$C$11*SIN(-50+$C188+J$16) -> 0.3277091182 | K188: =SIN(-$C188+K$16)+$C$11*SIN(-50+$C188+K$16) -> 0.6251480676 | L188: =SIN(-$C188+L$16)+$C$11*SIN(-50+$C188+L$16) -> 0.8613931685 | M188: =SIN(-$C188+M$16)+$C$11*SIN(-50+$C188+M$16) -> 1.013319104 | N188: =SIN(-$C188+N$16)+$C$11*SIN(-50+$C188+N$16) -> 1.066054306 | O188: =SIN(-$C188+O$16)+$C$11*SIN(-50+$C188+O$16) -> 1.014436685 | P188: =SIN(-$C188+P$16)+$C$11*SIN(-50+$C188+P$16) -> 0.8635189327 | Q188: =SIN(-$C188+Q$16)+$C$11*SIN(-50+$C188+Q$16) -> 0.628073931 | R188: =SIN(-$C188+R$16)+$C$11*SIN(-50+$C188+R$16) -> 0.3311486769 | S188: =SIN(-$C188+S$16)+$C$11*SIN(-50+$C188+S$16) -> 0.001808283008 | T188: =SIN(-$C188+T$16)+$C$11*SIN(-50+$C188+T$16) -> -0.3277091182 | U188: =SIN(-$C188+U$16)+$C$11*SIN(-50+$C188+U$16) -> -0.6251480676 | V188: =SIN(-$C188+V$16)+$C$11*SIN(-50+$C188+V$16) -> -0.8613931685 | W188: =SIN(-$C188+W$16)+$C$11*SIN(-50+$C188+W$16) -> -1.013319104 | X188: =SIN(-$C188+X$16)+$C$11*SIN(-50+$C188+X$16) -> -1.066054306 | Y188: =SIN(-$C188+Y$16)+$C$11*SIN(-50+$C188+Y$16) -> -1.014436685 | Z188: =SIN(-$C188+Z$16)+$C$11*SIN(-50+$C188+Z$16) -> -0.8635189327 | AA188: =SIN(-$C188+AA$16)+$C$11*SIN(-50+$C188+AA$16) -> -0.628073931 | AB188: =SIN(-$C188+AB$16)+$C$11*SIN(-50+$C188+AB$16) -> -0.3311486769 | AE188: 1.066054306
C189: 13.1 | D189: =SQRT(2*$D$7*$D$8)*SIN(-C189+C$16) -> 9.635581854 | E189: =SQRT(2*$D$7*$D$8)*C$11*SIN(-50+C189+C$16) -> 1.623915042 | F189: 11.2594969 | H189: =SIN(-$C189+H$16)+$C$11*SIN(-50+$C189+H$16) -> -0.2697491233 | I189: =SIN(-$C189+I$16)+$C$11*SIN(-50+$C189+I$16) -> 0.08133699149 | J189: =SIN(-$C189+J$16)+$C$11*SIN(-50+$C189+J$16) -> 0.4244612749 | K189: =SIN(-$C189+K$16)+$C$11*SIN(-50+$C189+K$16) -> 0.7260363313 | L189: =SIN(-$C189+L$16)+$C$11*SIN(-50+$C189+L$16) -> 0.956541893 | M189: =SIN(-$C189+M$16)+$C$11*SIN(-50+$C189+M$16) -> 1.09341447 | N189: =SIN(-$C189+N$16)+$C$11*SIN(-50+$C189+N$16) -> 1.12325602 | O189: =SIN(-$C189+O$16)+$C$11*SIN(-50+$C189+O$16) -> 1.043145444 | P189: =SIN(-$C189+P$16)+$C$11*SIN(-50+$C189+P$16) -> 0.8609245248 | Q189: =SIN(-$C189+Q$16)+$C$11*SIN(-50+$C189+Q$16) -> 0.5944303145 | R189: =SIN(-$C189+R$16)+$C$11*SIN(-50+$C189+R$16) -> 0.2697491233 | S189: =SIN(-$C189+S$16)+$C$11*SIN(-50+$C189+S$16) -> -0.08133699149 | T189: =SIN(-$C189+T$16)+$C$11*SIN(-50+$C189+T$16) -> -0.4244612749 | U189: =SIN(-$C189+U$16)+$C$11*SIN(-50+$C189+U$16) -> -0.7260363313 | V189: =SIN(-$C189+V$16)+$C$11*SIN(-50+$C189+V$16) -> -0.956541893 | W189: =SIN(-$C189+W$16)+$C$11*SIN(-50+$C189+W$16) -> -1.09341447 | X189: =SIN(-$C189+X$16)+$C$11*SIN(-50+$C189+X$16) -> -1.12325602 | Y189: =SIN(-$C189+Y$16)+$C$11*SIN(-50+$C189+Y$16) -> -1.043145444 | Z189: =SIN(-$C189+Z$16)+$C$11*SIN(-50+$C189+Z$16) -> -0.8609245248 | AA189: =SIN(-$C189+AA$16)+$C$11*SIN(-50+$C189+AA$16) -> -0.5944303145 | AB189: =SIN(-$C189+AB$16)+$C$11*SIN(-50+$C189+AB$16) -> -0.2697491233 | AE189: 1.12325602
C190: 13 | D190: =SQRT(2*$D$7*$D$8)*SIN(-C190+C$16) -> 9.8544973 | E190: =SQRT(2*$D$7*$D$8)*C$11*SIN(-50+C190+C$16) -> 1.90641885 | F190: 11.76091615 | H190: =SIN(-$C190+H$16)+$C$11*SIN(-50+$C190+H$16) -> -0.2056543257 | I190: =SIN(-$C190+I$16)+$C$11*SIN(-50+$C190+I$16) -> 0.1636695737 | J190: =SIN(-$C190+J$16)+$C$11*SIN(-50+$C190+J$16) -> 0.5169723548 | K190: =SIN(-$C190+K$16)+$C$11*SIN(-50+$C190+K$16) -> 0.8196702799 | L190: =SIN(-$C190+L$16)+$C$11*SIN(-50+$C190+L$16) -> 1.042133167 | M190: =SIN(-$C190+M$16)+$C$11*SIN(-50+$C190+M$16) -> 1.162584799 | N190: =SIN(-$C190+N$16)+$C$11*SIN(-50+$C190+N$16) -> 1.16923453 | O190: =SIN(-$C190+O$16)+$C$11*SIN(-50+$C190+O$16) -> 1.061431439 | P190: =SIN(-$C190+P$16)+$C$11*SIN(-50+$C190+P$16) -> 0.8497280437 | Q190: =SIN(-$C190+Q$16)+$C$11*SIN(-50+$C190+Q$16) -> 0.5548473468 | R190: =SIN(-$C190+R$16)+$C$11*SIN(-50+$C190+R$16) -> 0.2056543257 | S190: =SIN(-$C190+S$16)+$C$11*SIN(-50+$C190+S$16) -> -0.1636695737 | T190: =SIN(-$C190+T$16)+$C$11*SIN(-50+$C190+T$16) -> -0.5169723548 | U190: =SIN(-$C190+U$16)+$C$11*SIN(-50+$C190+U$16) -> -0.8196702799 | V190: =SIN(-$C190+V$16)+$C$11*SIN(-50+$C190+V$16) -> -1.042133167 | W190: =SIN(-$C190+W$16)+$C$11*SIN(-50+$C190+W$16) -> -1.162584799 | X190: =SIN(-$C190+X$16)+$C$11*SIN(-50+$C190+X$16) -> -1.16923453 | Y190: =SIN(-$C190+Y$16)+$C$11*SIN(-50+$C190+Y$16) -> -1.061431439 | Z190: =SIN(-$C190+Z$16)+$C$11*SIN(-50+$C190+Z$16) -> -0.8497280437 | AA190: =SIN(-$C190+AA$16)+$C$11*SIN(-50+$C190+AA$16) -> -0.5548473468 | AB190: =SIN(-$C190+AB$16)+$C$11*SIN(-50+$C190+AB$16) -> -0.2056543257 | AE190: 1.16923453
C191: 12.9 | D191: =SQRT(2*$D$7*$D$8)*SIN(-C191+C$16) -> 9.974949866 | E191: =SQRT(2*$D$7*$D$8)*C$11*SIN(-50+C191+C$16) -> 2.169874352 | F191: 12.14482422 | H191: =SIN(-$C191+H$16)+$C$11*SIN(-50+$C191+H$16) -> -0.1395046981 | I191: =SIN(-$C191+I$16)+$C$11*SIN(-50+$C191+I$16) -> 0.2443668235 | J191: =SIN(-$C191+J$16)+$C$11*SIN(-50+$C191+J$16) -> 0.6043180178 | K191: =SIN(-$C191+K$16)+$C$11*SIN(-50+$C191+K$16) -> 0.905114354 | L191: =SIN(-$C191+L$16)+$C$11*SIN(-50+$C191+L$16) -> 1.117311791 | M191: =SIN(-$C191+M$16)+$C$11*SIN(-50+$C191+M$16) -> 1.220138965 | N191: =SIN(-$C191+N$16)+$C$11*SIN(-50+$C191+N$16) -> 1.203530436 | O191: =SIN(-$C191+O$16)+$C$11*SIN(-50+$C191+O$16) -> 1.069111962 | P191: =SIN(-$C191+P$16)+$C$11*SIN(-50+$C191+P$16) -> 0.8300413609 | Q191: =SIN(-$C191+Q$16)+$C$11*SIN(-50+$C191+Q$16) -> 0.5097205278 | R191: =SIN(-$C191+R$16)+$C$11*SIN(-50+$C191+R$16) -> 0.1395046981 | S191: =SIN(-$C191+S$16)+$C$11*SIN(-50+$C191+S$16) -> -0.2443668235 | T191: =SIN(-$C191+T$16)+$C$11*SIN(-50+$C191+T$16) -> -0.6043180178 | U191: =SIN(-$C191+U$16)+$C$11*SIN(-50+$C191+U$16) -> -0.905114354 | V191: =SIN(-$C191+V$16)+$C$11*SIN(-50+$C191+V$16) -> -1.117311791 | W191: =SIN(-$C191+W$16)+$C$11*SIN(-50+$C191+W$16) -> -1.220138965 | X191: =SIN(-$C191+X$16)+$C$11*SIN(-50+$C191+X$16) -> -1.203530436 | Y191: =SIN(-$C191+Y$16)+$C$11*SIN(-50+$C191+Y$16) -> -1.069111962 | Z191: =SIN(-$C191+Z$16)+$C$11*SIN(-50+$C191+Z$16) -> -0.8300413609 | AA191: =SIN(-$C191+AA$16)+$C$11*SIN(-50+$C191+AA$16) -> -0.5097205278 | AB191: =SIN(-$C191+AB$16)+$C$11*SIN(-50+$C191+AB$16) -> -0.1395046981 | AE191: 1.220138965
C192: 12.8 | D192: =SQRT(2*$D$7*$D$8)*SIN(-C192+C$16) -> 9.99573603 | E192: =SQRT(2*$D$7*$D$8)*C$11*SIN(-50+C192+C$16) -> 2.411649187 | F192: 12.40738522 | H192: =SIN(-$C192+H$16)+$C$11*SIN(-50+$C192+H$16) -> -0.07196118557 | I192: =SIN(-$C192+I$16)+$C$11*SIN(-50+$C192+I$16) -> 0.3226224409 | J192: =SIN(-$C192+J$16)+$C$11*SIN(-50+$C192+J$16) -> 0.685625535 | K192: =SIN(-$C192+K$16)+$C$11*SIN(-50+$C192+K$16) -> 0.9815148247 | L192: =SIN(-$C192+L$16)+$C$11*SIN(-50+$C192+L$16) -> 1.181326605 | M192: =SIN(-$C192+M$16)+$C$11*SIN(-50+$C192+M$16) -> 1.265501906 | N192: =SIN(-$C192+N$16)+$C$11*SIN(-50+$C192+N$16) -> 1.225801063 | O192: =SIN(-$C192+O$16)+$C$11*SIN(-50+$C192+O$16) -> 1.066110272 | P192: =SIN(-$C192+P$16)+$C$11*SIN(-50+$C192+P$16) -> 0.8020611791 | Q192: =SIN(-$C192+Q$16)+$C$11*SIN(-50+$C192+Q$16) -> 0.4595007498 | R192: =SIN(-$C192+R$16)+$C$11*SIN(-50+$C192+R$16) -> 0.07196118557 | S192: =SIN(-$C192+S$16)+$C$11*SIN(-50+$C192+S$16) -> -0.3226224409 | T192: =SIN(-$C192+T$16)+$C$11*SIN(-50+$C192+T$16) -> -0.685625535 | U192: =SIN(-$C192+U$16)+$C$11*SIN(-50+$C192+U$16) -> -0.9815148247 | V192: =SIN(-$C192+V$16)+$C$11*SIN(-50+$C192+V$16) -> -1.181326605 | W192: =SIN(-$C192+W$16)+$C$11*SIN(-50+$C192+W$16) -> -1.265501906 | X192: =SIN(-$C192+X$16)+$C$11*SIN(-50+$C192+X$16) -> -1.225801063 | Y192: =SIN(-$C192+Y$16)+$C$11*SIN(-50+$C192+Y$16) -> -1.066110272 | Z192: =SIN(-$C192+Z$16)+$C$11*SIN(-50+$C192+Z$16) -> -0.8020611791 | AA192: =SIN(-$C192+AA$16)+$C$11*SIN(-50+$C192+AA$16) -> -0.4595007498 | AB192: =SIN(-$C192+AB$16)+$C$11*SIN(-50+$C192+AB$16) -> -0.07196118557 | AE192: 1.265501906
C193: 12.7 | D193: =SQRT(2*$D$7*$D$8)*SIN(-C193+C$16) -> 9.916648105 | E193: =SQRT(2*$D$7*$D$8)*C$11*SIN(-50+C193+C$16) -> 2.62932762 | F193: 12.54597572 | H193: =SIN(-$C193+H$16)+$C$11*SIN(-50+$C193+H$16) -> -0.003698660711 | I193: =SIN(-$C193+I$16)+$C$11*SIN(-50+$C193+I$16) -> 0.3976545215 | J193: =SIN(-$C193+J$16)+$C$11*SIN(-50+$C193+J$16) -> 0.7600825085 | K193: =SIN(-$C193+K$16)+$C$11*SIN(-50+$C193+K$16) -> 1.048108324 | L193: =SIN(-$C193+L$16)+$C$11*SIN(-50+$C193+L$16) -> 1.233537994 | M193: =SIN(-$C193+M$16)+$C$11*SIN(-50+$C193+M$16) -> 1.29822037 | N193: =SIN(-$C193+N$16)+$C$11*SIN(-50+$C193+N$16) -> 1.235823892 | O193: =SIN(-$C193+O$16)+$C$11*SIN(-50+$C193+O$16) -> 1.05245636 | P193: =SIN(-$C193+P$16)+$C$11*SIN(-50+$C193+P$16) -> 0.7660670672 | Q193: =SIN(-$C193+Q$16)+$C$11*SIN(-50+$C193+Q$16) -> 0.4046897922 | R193: =SIN(-$C193+R$16)+$C$11*SIN(-50+$C193+R$16) -> 0.003698660711 | S193: =SIN(-$C193+S$16)+$C$11*SIN(-50+$C193+S$16) -> -0.3976545215 | T193: =SIN(-$C193+T$16)+$C$11*SIN(-50+$C193+T$16) -> -0.7600825085 | U193: =SIN(-$C193+U$16)+$C$11*SIN(-50+$C193+U$16) -> -1.048108324 | V193: =SIN(-$C193+V$16)+$C$11*SIN(-50+$C193+V$16) -> -1.233537994 | W193: =SIN(-$C193+W$16)+$C$11*SIN(-50+$C193+W$16) -> -1.29822037 | X193: =SIN(-$C193+X$16)+$C$11*SIN(-50+$C193+X$16) -> -1.235823892 | Y193: =SIN(-$C193+Y$16)+$C$11*SIN(-50+$C193+Y$16) -> -1.05245636 | Z193: =SIN(-$C193+Z$16)+$C$11*SIN(-50+$C193+Z$16) -> -0.7660670672 | AA193: =SIN(-$C193+AA$16)+$C$11*SIN(-50+$C193+AA$16) -> -0.4046897922 | AB193: =SIN(-$C193+AB$16)+$C$11*SIN(-50+$C193+AB$16) -> -0.003698660711 | AE193: 1.29822037
C194: 12.6 | D194: =SQRT(2*$D$7*$D$8)*SIN(-C194+C$16) -> 9.738476309 | E194: =SQRT(2*$D$7*$D$8)*C$11*SIN(-50+C194+C$16) -> 2.820734681 | F194: 12.55921099 | H194: =SIN(-$C194+H$16)+$C$11*SIN(-50+$C194+H$16) -> 0.06460081995 | I194: =SIN(-$C194+I$16)+$C$11*SIN(-50+$C194+I$16) -> 0.4687133695 | J194: =SIN(-$C194+J$16)+$C$11*SIN(-50+$C194+J$16) -> 0.8269449888 | K194: =SIN(-$C194+K$16)+$C$11*SIN(-50+$C194+K$16) -> 1.104229471 | L194: =SIN(-$C194+L$16)+$C$11*SIN(-50+$C194+L$16) -> 1.273424279 | M194: =SIN(-$C194+M$16)+$C$11*SIN(-50+$C194+M$16) -> 1.317967446 | N194: =SIN(-$C194+N$16)+$C$11*SIN(-50+$C194+N$16) -> 1.233498776 | O194: =SIN(-$C194+O$16)+$C$11*SIN(-50+$C194+O$16) -> 1.028286652 | P194: =SIN(-$C194+P$16)+$C$11*SIN(-50+$C194+P$16) -> 0.7224186664 | Q194: =SIN(-$C194+Q$16)+$C$11*SIN(-50+$C194+Q$16) -> 0.345835308 | R194: =SIN(-$C194+R$16)+$C$11*SIN(-50+$C194+R$16) -> -0.06460081995 | S194: =SIN(-$C194+S$16)+$C$11*SIN(-50+$C194+S$16) -> -0.4687133695 | T194: =SIN(-$C194+T$16)+$C$11*SIN(-50+$C194+T$16) -> -0.8269449888 | U194: =SIN(-$C194+U$16)+$C$11*SIN(-50+$C194+U$16) -> -1.104229471 | V194: =SIN(-$C194+V$16)+$C$11*SIN(-50+$C194+V$16) -> -1.273424279 | W194: =SIN(-$C194+W$16)+$C$11*SIN(-50+$C194+W$16) -> -1.317967446 | X194: =SIN(-$C194+X$16)+$C$11*SIN(-50+$C194+X$16) -> -1.233498776 | Y194: =SIN(-$C194+Y$16)+$C$11*SIN(-50+$C194+Y$16) -> -1.028286652 | Z194: =SIN(-$C194+Z$16)+$C$11*SIN(-50+$C194+Z$16) -> -0.7224186664 | AA194: =SIN(-$C194+AA$16)+$C$11*SIN(-50+$C194+AA$16) -> -0.345835308 | AB194: =SIN(-$C194+AB$16)+$C$11*SIN(-50+$C194+AB$16) -> 0.06460081995 | AE194: 1.317967446
C195: 12.5 | D195: =SQRT(2*$D$7*$D$8)*SIN(-C195+C$16) -> 9.463000877 | E195: =SQRT(2*$D$7*$D$8)*C$11*SIN(-50+C195+C$16) -> 2.983957893 | F195: 12.44695877 | H195: =SIN(-$C195+H$16)+$C$11*SIN(-50+$C195+H$16) -> 0.1322548306 | I195: =SIN(-$C195+I$16)+$C$11*SIN(-50+$C195+I$16) -> 0.5350889885 | J195: =SIN(-$C195+J$16)+$C$11*SIN(-50+$C195+J$16) -> 0.8855449081 | K195: =SIN(-$C195+K$16)+$C$11*SIN(-50+$C195+K$16) -> 1.149317522 | L195: =SIN(-$C195+L$16)+$C$11*SIN(-50+$C195+L$16) -> 1.300586929 | M195: =SIN(-$C195+M$16)+$C$11*SIN(-50+$C195+M$16) -> 1.324545826 | N195: =SIN(-$C195+N$16)+$C$11*SIN(-50+$C195+N$16) -> 1.218848949 | O195: =SIN(-$C195+O$16)+$C$11*SIN(-50+$C195+O$16) -> 0.9938426442 | P195: =SIN(-$C195+P$16)+$C$11*SIN(-50+$C195+P$16) -> 0.6715520971 | Q195: =SIN(-$C195+Q$16)+$C$11*SIN(-50+$C195+Q$16) -> 0.2835253517 | R195: =SIN(-$C195+R$16)+$C$11*SIN(-50+$C195+R$16) -> -0.1322548306 | S195: =SIN(-$C195+S$16)+$C$11*SIN(-50+$C195+S$16) -> -0.5350889885 | T195: =SIN(-$C195+T$16)+$C$11*SIN(-50+$C195+T$16) -> -0.8855449081 | U195: =SIN(-$C195+U$16)+$C$11*SIN(-50+$C195+U$16) -> -1.149317522 | V195: =SIN(-$C195+V$16)+$C$11*SIN(-50+$C195+V$16) -> -1.300586929 | W195: =SIN(-$C195+W$16)+$C$11*SIN(-50+$C195+W$16) -> -1.324545826 | X195: =SIN(-$C195+X$16)+$C$11*SIN(-50+$C195+X$16) -> -1.218848949 | Y195: =SIN(-$C195+Y$16)+$C$11*SIN(-50+$C195+Y$16) -> -0.9938426442 | Z195: =SIN(-$C195+Z$16)+$C$11*SIN(-50+$C195+Z$16) -> -0.6715520971 | AA195: =SIN(-$C195+AA$16)+$C$11*SIN(-50+$C195+AA$16) -> -0.2835253517 | AB195: =SIN(-$C195+AB$16)+$C$11*SIN(-50+$C195+AB$16) -> 0.1322548306 | AE195: 1.324545826
C196: 12.4 | D196: =SQRT(2*$D$7*$D$8)*SIN(-C196+C$16) -> 9.092974268 | E196: =SQRT(2*$D$7*$D$8)*C$11*SIN(-50+C196+C$16) -> 3.117366384 | F196: 12.21034065 | H196: =SIN(-$C196+H$16)+$C$11*SIN(-50+$C196+H$16) -> 0.1985873946 | I196: =SIN(-$C196+I$16)+$C$11*SIN(-50+$C196+I$16) -> 0.5961181752 | J196: =SIN(-$C196+J$16)+$C$11*SIN(-50+$C196+J$16) -> 0.9352967554 | K196: =SIN(-$C196+K$16)+$C$11*SIN(-50+$C196+K$16) -> 1.182921973 | L196: =SIN(-$C196+L$16)+$C$11*SIN(-50+$C196+L$16) -> 1.314754545 | M196: =SIN(-$C196+M$16)+$C$11*SIN(-50+$C196+M$16) -> 1.317889782 | N196: =SIN(-$C196+N$16)+$C$11*SIN(-50+$C196+N$16) -> 1.192020786 | O196: =SIN(-$C196+O$16)+$C$11*SIN(-50+$C196+O$16) -> 0.9494684889 | P196: =SIN(-$C196+P$16)+$C$11*SIN(-50+$C196+P$16) -> 0.6139756012 | Q196: =SIN(-$C196+Q$16)+$C$11*SIN(-50+$C196+Q$16) -> 0.2183825038 | R196: =SIN(-$C196+R$16)+$C$11*SIN(-50+$C196+R$16) -> -0.1985873946 | S196: =SIN(-$C196+S$16)+$C$11*SIN(-50+$C196+S$16) -> -0.5961181752 | T196: =SIN(-$C196+T$16)+$C$11*SIN(-50+$C196+T$16) -> -0.9352967554 | U196: =SIN(-$C196+U$16)+$C$11*SIN(-50+$C196+U$16) -> -1.182921973 | V196: =SIN(-$C196+V$16)+$C$11*SIN(-50+$C196+V$16) -> -1.314754545 | W196: =SIN(-$C196+W$16)+$C$11*SIN(-50+$C196+W$16) -> -1.317889782 | X196: =SIN(-$C196+X$16)+$C$11*SIN(-50+$C196+X$16) -> -1.192020786 | Y196: =SIN(-$C196+Y$16)+$C$11*SIN(-50+$C196+Y$16) -> -0.9494684889 | Z196: =SIN(-$C196+Z$16)+$C$11*SIN(-50+$C196+Z$16) -> -0.6139756012 | AA196: =SIN(-$C196+AA$16)+$C$11*SIN(-50+$C196+AA$16) -> -0.2183825038 | AB196: =SIN(-$C196+AB$16)+$C$11*SIN(-50+$C196+AB$16) -> 0.1985873946 | AE196: 1.317889782
C197: 12.3 | D197: =SQRT(2*$D$7*$D$8)*SIN(-C197+C$16) -> 8.632093666 | E197: =SQRT(2*$D$7*$D$8)*C$11*SIN(-50+C197+C$16) -> 3.219627181 | F197: 11.85172085 | H197: =SIN(-$C197+H$16)+$C$11*SIN(-50+$C197+H$16) -> 0.2629357391 | I197: =SIN(-$C197+I$16)+$C$11*SIN(-50+$C197+I$16) -> 0.6511911462 | J197: =SIN(-$C197+J$16)+$C$11*SIN(-50+$C197+J$16) -> 0.9757034267 | K197: =SIN(-$C197+K$16)+$C$11*SIN(-50+$C197+K$16) -> 1.204707058 | L197: =SIN(-$C197+L$16)+$C$11*SIN(-50+$C197+L$16) -> 1.315785568 | M197: =SIN(-$C197+M$16)+$C$11*SIN(-50+$C197+M$16) -> 1.29806582 | N197: =SIN(-$C197+N$16)+$C$11*SIN(-50+$C197+N$16) -> 1.153282345 | O197: =SIN(-$C197+O$16)+$C$11*SIN(-50+$C197+O$16) -> 0.8956075583 | P197: =SIN(-$C197+P$16)+$C$11*SIN(-50+$C197+P$16) -> 0.550264464 | Q197: =SIN(-$C197+Q$16)+$C$11*SIN(-50+$C197+Q$16) -> 0.1510576501 | R197: =SIN(-$C197+R$16)+$C$11*SIN(-50+$C197+R$16) -> -0.2629357391 | S197: =SIN(-$C197+S$16)+$C$11*SIN(-50+$C197+S$16) -> -0.6511911462 | T197: =SIN(-$C197+T$16)+$C$11*SIN(-50+$C197+T$16) -> -0.9757034267 | U197: =SIN(-$C197+U$16)+$C$11*SIN(-50+$C197+U$16) -> -1.204707058 | V197: =SIN(-$C197+V$16)+$C$11*SIN(-50+$C197+V$16) -> -1.315785568 | W197: =SIN(-$C197+W$16)+$C$11*SIN(-50+$C197+W$16) -> -1.29806582 | X197: =SIN(-$C197+X$16)+$C$11*SIN(-50+$C197+X$16) -> -1.153282345 | Y197: =SIN(-$C197+Y$16)+$C$11*SIN(-50+$C197+Y$16) -> -0.8956075583 | Z197: =SIN(-$C197+Z$16)+$C$11*SIN(-50+$C197+Z$16) -> -0.550264464 | AA197: =SIN(-$C197+AA$16)+$C$11*SIN(-50+$C197+AA$16) -> -0.1510576501 | AB197: =SIN(-$C197+AB$16)+$C$11*SIN(-50+$C197+AB$16) -> 0.2629357391 | AE197: 1.315785568
C198: 12.2 | D198: =SQRT(2*$D$7*$D$8)*SIN(-C198+C$16) -> 8.084964038 | E198: =SQRT(2*$D$7*$D$8)*C$11*SIN(-50+C198+C$16) -> 3.289718527 | F198: 11.37468257 | H198: =SIN(-$C198+H$16)+$C$11*SIN(-50+$C198+H$16) -> 0.3246569166 | I198: =SIN(-$C198+I$16)+$C$11*SIN(-50+$C198+I$16) -> 0.6997576304 | J198: =SIN(-$C198+J$16)+$C$11*SIN(-50+$C198+J$16) -> 1.006361192 | K198: =SIN(-$C198+K$16)+$C$11*SIN(-50+$C198+K$16) -> 1.214455108 | L198: =SIN(-$C198+L$16)+$C$11*SIN(-50+$C198+L$16) -> 1.303669697 | M198: =SIN(-$C198+M$16)+$C$11*SIN(-50+$C198+M$16) -> 1.265272012 | N198: =SIN(-$C198+N$16)+$C$11*SIN(-50+$C198+N$16) -> 1.103020688 | O198: =SIN(-$C198+O$16)+$C$11*SIN(-50+$C198+O$16) -> 0.832798013 | P198: =SIN(-$C198+P$16)+$C$11*SIN(-50+$C198+P$16) -> 0.4810552662 | Q198: =SIN(-$C198+Q$16)+$C$11*SIN(-50+$C198+Q$16) -> 0.08222347829 | R198: =SIN(-$C198+R$16)+$C$11*SIN(-50+$C198+R$16) -> -0.3246569166 | S198: =SIN(-$C198+S$16)+$C$11*SIN(-50+$C198+S$16) -> -0.6997576304 | T198: =SIN(-$C198+T$16)+$C$11*SIN(-50+$C198+T$16) -> -1.006361192 | U198: =SIN(-$C198+U$16)+$C$11*SIN(-50+$C198+U$16) -> -1.214455108 | V198: =SIN(-$C198+V$16)+$C$11*SIN(-50+$C198+V$16) -> -1.303669697 | W198: =SIN(-$C198+W$16)+$C$11*SIN(-50+$C198+W$16) -> -1.265272012 | X198: =SIN(-$C198+X$16)+$C$11*SIN(-50+$C198+X$16) -> -1.103020688 | Y198: =SIN(-$C198+Y$16)+$C$11*SIN(-50+$C198+Y$16) -> -0.832798013 | Z198: =SIN(-$C198+Z$16)+$C$11*SIN(-50+$C198+Z$16) -> -0.4810552662 | AA198: =SIN(-$C198+AA$16)+$C$11*SIN(-50+$C198+AA$16) -> -0.08222347829 | AB198: =SIN(-$C198+AB$16)+$C$11*SIN(-50+$C198+AB$16) -> 0.3246569166 | AE198: 1.303669697
C199: 12.1 | D199: =SQRT(2*$D$7*$D$8)*SIN(-C199+C$16) -> 7.457052122 | E199: =SQRT(2*$D$7*$D$8)*C$11*SIN(-50+C199+C$16) -> 3.326940093 | F199: 10.78399222 | H199: =SIN(-$C199+H$16)+$C$11*SIN(-50+$C199+H$16) -> 0.3831342295 | I199: =SIN(-$C199+I$16)+$C$11*SIN(-50+$C199+I$16) -> 0.7413323677 | J199: =SIN(-$C199+J$16)+$C$11*SIN(-50+$C199+J$16) -> 1.026963729 | K199: =SIN(-$C199+K$16)+$C$11*SIN(-50+$C199+K$16) -> 1.212068725 | L199: =SIN(-$C199+L$16)+$C$11*SIN(-50+$C199+L$16) -> 1.278527989 | M199: =SIN(-$C199+M$16)+$C$11*SIN(-50+$C199+M$16) -> 1.219836025 | N199: =SIN(-$C199+N$16)+$C$11*SIN(-50+$C199+N$16) -> 1.041738013 | O199: =SIN(-$C199+O$16)+$C$11*SIN(-50+$C199+O$16) -> 0.7616674252 | P199: =SIN(-$C199+P$16)+$C$11*SIN(-50+$C199+P$16) -> 0.4070395232 | Q199: =SIN(-$C199+Q$16)+$C$11*SIN(-50+$C199+Q$16) -> 0.01256775667 | R199: =SIN(-$C199+R$16)+$C$11*SIN(-50+$C199+R$16) -> -0.3831342295 | S199: =SIN(-$C199+S$16)+$C$11*SIN(-50+$C199+S$16) -> -0.7413323677 | T199: =SIN(-$C199+T$16)+$C$11*SIN(-50+$C199+T$16) -> -1.026963729 | U199: =SIN(-$C199+U$16)+$C$11*SIN(-50+$C199+U$16) -> -1.212068725 | V199: =SIN(-$C199+V$16)+$C$11*SIN(-50+$C199+V$16) -> -1.278527989 | W199: =SIN(-$C199+W$16)+$C$11*SIN(-50+$C199+W$16) -> -1.219836025 | X199: =SIN(-$C199+X$16)+$C$11*SIN(-50+$C199+X$16) -> -1.041738013 | Y199: =SIN(-$C199+Y$16)+$C$11*SIN(-50+$C199+Y$16) -> -0.7616674252 | Z199: =SIN(-$C199+Z$16)+$C$11*SIN(-50+$C199+Z$16) -> -0.4070395232 | AA199: =SIN(-$C199+AA$16)+$C$11*SIN(-50+$C199+AA$16) -> -0.01256775667 | AB199: =SIN(-$C199+AB$16)+$C$11*SIN(-50+$C199+AB$16) -> 0.3831342295 | AE199: 1.278527989
C200: 12 | D200: =SQRT(2*$D$7*$D$8)*SIN(-C200+C$16) -> 6.754631806 | E200: =SQRT(2*$D$7*$D$8)*C$11*SIN(-50+C200+C$16) -> 3.330919974 | F200: 10.08555178 | H200: =SIN(-$C200+H$16)+$C$11*SIN(-50+$C200+H$16) -> 0.4377833918 | I200: =SIN(-$C200+I$16)+$C$11*SIN(-50+$C200+I$16) -> 0.7754999571 | J200: =SIN(-$C200+J$16)+$C$11*SIN(-50+$C200+J$16) -> 1.037305183 | K200: =SIN(-$C200+K$16)+$C$11*SIN(-50+$C200+K$16) -> 1.197571751 | L200: =SIN(-$C200+L$16)+$C$11*SIN(-50+$C200+L$16) -> 1.240611652 | M200: =SIN(-$C200+M$16)+$C$11*SIN(-50+$C200+M$16) -> 1.16221184 | N200: =SIN(-$C200+N$16)+$C$11*SIN(-50+$C200+N$16) -> 0.9700466359 | O200: =SIN(-$C200+O$16)+$C$11*SIN(-50+$C200+O$16) -> 0.6829265083 | P200: =SIN(-$C200+P$16)+$C$11*SIN(-50+$C200+P$16) -> 0.3289567758 | Q200: =SIN(-$C200+Q$16)+$C$11*SIN(-50+$C200+Q$16) -> -0.05721353781 | R200: =SIN(-$C200+R$16)+$C$11*SIN(-50+$C200+R$16) -> -0.4377833918 | S200: =SIN(-$C200+S$16)+$C$11*SIN(-50+$C200+S$16) -> -0.7754999571 | T200: =SIN(-$C200+T$16)+$C$11*SIN(-50+$C200+T$16) -> -1.037305183 | U200: =SIN(-$C200+U$16)+$C$11*SIN(-50+$C200+U$16) -> -1.197571751 | V200: =SIN(-$C200+V$16)+$C$11*SIN(-50+$C200+V$16) -> -1.240611652 | W200: =SIN(-$C200+W$16)+$C$11*SIN(-50+$C200+W$16) -> -1.16221184 | X200: =SIN(-$C200+X$16)+$C$11*SIN(-50+$C200+X$16) -> -0.9700466359 | Y200: =SIN(-$C200+Y$16)+$C$11*SIN(-50+$C200+Y$16) -> -0.6829265083 | Z200: =SIN(-$C200+Z$16)+$C$11*SIN(-50+$C200+Z$16) -> -0.3289567758 | AA200: =SIN(-$C200+AA$16)+$C$11*SIN(-50+$C200+AA$16) -> 0.05721353781 | AB200: =SIN(-$C200+AB$16)+$C$11*SIN(-50+$C200+AB$16) -> 0.4377833918 | AE200: =MAX(H200:AB200) -> 1.240611652
... 120 more rows
